IMPORTO_RIGA;BENEFICIARIO;CIG;TITOLO_PAGAMENTO;DATA_MANDATO;CAPITOLO;ARTICOLO;NUMERO_IMPEGNO;TITOLO;DESCR_TITOLO;LIVELLO_II;DESCR_LIVELLO_II;LIVELLO_III;DESCR_LIVELLO_III;LIVELLO_IV;DESCR_LIVELLO_IV;LIVELLO_V;DESCR_LIVELLO_V
500;CIRCOLO TENNIS DI BOARA PISANI; ;LIQUIDAZIONE CONTRIBUTO ECONOMICO A PERSONA GIURIDICA - ANNO 2015.;19/01/2017;2089;0;239;1;Spese correnti;4;Trasferimenti correnti;4;Trasferimenti correnti a Istituzioni Sociali Private;1;Trasferimenti correnti a Istituzioni Sociali Private;1;Trasferimenti correnti a Istituzioni Sociali Private
1.789,50;COMUNE DI MONSELICE; ;Centro per l'impiego di Monselice. Concorso spese anno 2016.;19/01/2017;1904;0;378;1;Spese correnti;3;Acquisto di beni e servizi;2;Acquisto di servizi;7;Utilizzo di beni di terzi;999;Altre spese sostenute per utilizzo di beni di terzi n.a.c.
385,13;COMUNE DI VESCOVANA; ;Liquidazione attivita' ambulatoriale LILT presso il Comune di Vescovana. Anno 2016.;19/01/2017;1885;0;403;1;Spese correnti;4;Trasferimenti correnti;1;Trasferimenti correnti a Amministrazioni Pubbliche;2;Trasferimenti correnti a Amministrazioni Locali;3;Trasferimenti correnti a Comuni
51,61;PROVINCIA DI PADOVA; ;Liquidazione competenze  per predisposizione fascicoli previdenziali lavorati nell'anno 2016.;19/01/2017;1030;0;494;1;Spese correnti;3;Acquisto di beni e servizi;2;Acquisto di servizi;99;Altri servizi;999;Altri servizi diversi n.a.c.
486,18;CONSORZIO BIBLIOTECHE PADOVANE ASSOCIATE; ;Acquisto libri Biblioteca comunale: erogazione contributo BPA.;19/01/2017;1480;0;444;1;Spese correnti;3;Acquisto di beni e servizi;1;Acquisto di beni;1;Giornali, riviste e pubblicazioni;2;Pubblicazioni
310;ASSOCIAZIONE NAZ. UFFICIALI DI STATO CIVILE E ANAGRAFE; ;Rinnovo quota associativa all'Associazione Nazionale Ufficiali di Stato Civile e d'Anagrafe (A.N.U.S.C.A.) - Anno 2017.;19/01/2017;1119;1;454;1;Spese correnti;3;Acquisto di beni e servizi;2;Acquisto di servizi;99;Altri servizi;3;Quote di associazioni
19.000,00;POSTE ITALIANESPA - ALT NORD EST - INCASSI MAAF;ZBB1CCAD24;CONTO CONTRATTUALE 30126549-002. INTEGRAZIONE CONTO DI CREDITO AFFRANCATRICE POSTALE.;19/01/2017;1246;0;478;1;Spese correnti;3;Acquisto di beni e servizi;2;Acquisto di servizi;16;Servizi amministrativi;2;Spese postali
1.000,00;CSI - COMITATO PROVINCIALE ROVIGO; ;Erogazione contributo ASD Polisportiva CSI Rovigo.;19/01/2017;2089;0;400;1;Spese correnti;4;Trasferimenti correnti;4;Trasferimenti correnti a Istituzioni Sociali Private;1;Trasferimenti correnti a Istituzioni Sociali Private;1;Trasferimenti correnti a Istituzioni Sociali Private
500;CSI - COMITATO PROVINCIALE ROVIGO; ;Erogazione contributo ASD Polisportiva CSI Rovigo.;19/01/2017;1423;0;401;1;Spese correnti;4;Trasferimenti correnti;2;Trasferimenti correnti a Famiglie;5;Altri trasferimenti a famiglie;999;Altri trasferimenti a famiglie n.a.c.
429;CSI - COMITATO PROVINCIALE ROVIGO; ;Erogazione contributo ASD Polisportiva CSI Rovigo.;19/01/2017;1919;0;402;1;Spese correnti;4;Trasferimenti correnti;4;Trasferimenti correnti a Istituzioni Sociali Private;1;Trasferimenti correnti a Istituzioni Sociali Private;1;Trasferimenti correnti a Istituzioni Sociali Private
50,41;TELECOM ITALIA S.P.A.; ;SALDO Fatt.n. 2E16018541  del 20/12/2016 NUMERO VERDE ASSISTENZA SOCIALE. GENNAIO 2017.;19/01/2017;1835;0;8;1;Spese correnti;3;Acquisto di beni e servizi;2;Acquisto di servizi;5;Utenze e canoni;1;Telefonia fissa
6,88;CITTA' DI SELVAZZANO  DENTRO; ;SPESE PER NOTIFICA N. 1431 DEL 28/12/16;19/01/2017;1055;0;505;1;Spese correnti;3;Acquisto di beni e servizi;2;Acquisto di servizi;16;Servizi amministrativi;999;Altre spese per servizi amministrativi
6,88;COMUNE DI BATTAGLIA TERME; ;SPESE PER NOTIFICA CRON. REG. 66/2016;19/01/2017;1055;0;505;1;Spese correnti;3;Acquisto di beni e servizi;2;Acquisto di servizi;16;Servizi amministrativi;999;Altre spese per servizi amministrativi
6,88;COMUNE DI ESTE; ;UFFICIO MESSI DIRITTI DI NOTIFICA;19/01/2017;1055;0;505;1;Spese correnti;3;Acquisto di beni e servizi;2;Acquisto di servizi;16;Servizi amministrativi;999;Altre spese per servizi amministrativi
6,88;COMUNE DI MARENO DI PIAVE; ;SPESE PER NOTIFICHE ANNO 2016. N. ATTO 1694 DEL 10/12/2016;19/01/2017;1055;0;505;1;Spese correnti;3;Acquisto di beni e servizi;2;Acquisto di servizi;16;Servizi amministrativi;999;Altre spese per servizi amministrativi
6,88;COMUNE DI MILANO; ;COMUNICAZIONE_A906_04. NOTIFICA N.69316 DEL 21/07/2010;19/01/2017;1055;0;505;1;Spese correnti;3;Acquisto di beni e servizi;2;Acquisto di servizi;16;Servizi amministrativi;999;Altre spese per servizi amministrativi
12,76;COMUNE DI NOGARA; ;SPESE PER NOTIFICHE NN. 443-444 DEL 14/09/16.;19/01/2017;1055;0;505;1;Spese correnti;3;Acquisto di beni e servizi;2;Acquisto di servizi;16;Servizi amministrativi;999;Altre spese per servizi amministrativi
11,48;COMUNE DI NOVENTA DI PIAVE; ;SPESE PER NOTIFICHE ANNO 2016.;19/01/2017;1055;0;505;1;Spese correnti;3;Acquisto di beni e servizi;2;Acquisto di servizi;16;Servizi amministrativi;999;Altre spese per servizi amministrativi
9,03;COMUNE DI VERONA; ;SPESE NOTIFICA N. 161458;19/01/2017;1055;0;505;1;Spese correnti;3;Acquisto di beni e servizi;2;Acquisto di servizi;16;Servizi amministrativi;999;Altre spese per servizi amministrativi
6,88;COMUNE DI VILLANOVA DI CAMPOSAMPIERO; ;SPESE PER NOTIFICA N. REG. 476/16 DEL 27/12/2016.;19/01/2017;1055;0;505;1;Spese correnti;3;Acquisto di beni e servizi;2;Acquisto di servizi;16;Servizi amministrativi;999;Altre spese per servizi amministrativi
150;MEDIACARE Spa;Z491D2735B;RICARICA NUMERO VERDE 800984441. ANNO 2017.;31/01/2017;1835;0;10;1;Spese correnti;3;Acquisto di beni e servizi;2;Acquisto di servizi;5;Utenze e canoni;1;Telefonia fissa
1.200,00;B.M.; ;Liquidazione Impegnativa di Cura Domiciliare - m. Terzo trimestre 2016.;01/02/2017;1909;0;443;1;Spese correnti;4;Trasferimenti correnti;2;Trasferimenti correnti a Famiglie;5;Altri trasferimenti a famiglie;999;Altri trasferimenti a famiglie n.a.c.
1.200,00;S.A.; ;Liquidazione Impegnativa di Cura Domiciliare - m. Terzo trimestre 2016.;01/02/2017;1909;0;443;1;Spese correnti;4;Trasferimenti correnti;2;Trasferimenti correnti a Famiglie;5;Altri trasferimenti a famiglie;999;Altri trasferimenti a famiglie n.a.c.
1.200,00;Z.R.; ;Liquidazione Impegnativa di Cura Domiciliare - m. Terzo trimestre 2016.;01/02/2017;1909;0;443;1;Spese correnti;4;Trasferimenti correnti;2;Trasferimenti correnti a Famiglie;5;Altri trasferimenti a famiglie;999;Altri trasferimenti a famiglie n.a.c.
1.078,87;COOPERATIVA SOCIALE SPERANZA; ;Fatt.n. PA/245 del 30/12/2016 SERVIZIO DI PULIZIA DELLA SEDE MUNICIPALE. DICEMBRE 2016.;01/02/2017;1029;0;504;1;Spese correnti;3;Acquisto di beni e servizi;2;Acquisto di servizi;13;Servizi ausiliari per il funzionamento dell'ente;2;Servizi di pulizia e lavanderia
1.307,18;SINERGIE SPA;3888505FD2;Fatt.n. 331600003334 del 16/12/2016 FORNITURA CALORE A.T. 2016-2017. 3^ RATA DICEMBRE 2016.;01/02/2017;1043;3;412;1;Spese correnti;3;Acquisto di beni e servizi;2;Acquisto di servizi;5;Utenze e canoni;6;Gas
2.440,00;ACCATRE S.R.L.;Z741695928;Fatt.n. 1/161227 del 01/12/2016 BONIFICA BANCA DATI IMMOBILIARI ANNO 2016.;01/02/2017;1070;0;270;1;Spese correnti;3;Acquisto di beni e servizi;2;Acquisto di servizi;99;Altri servizi;999;Altri servizi diversi n.a.c.
353,11;BNP PARIBAS LEASING SOLUTIONS SPA;Z520C61179;Fatt.n. AWE23116 del 15/12/2016 NOLEGGIO STAMPANTI MULTIFUNZIONE. 1^ RATA GENNAIO 2017.;01/02/2017;1077;0;14;1;Spese correnti;3;Acquisto di beni e servizi;2;Acquisto di servizi;19;Servizi informatici e di telecomunicazioni;11;Processi trasversali alle classi di servizio
2.928,00;ACCATRE S.R.L.;Z081AC6491;"Fatt.n. 1/161304 del 12/12/2016 ATTIVAZIONE E AVVIAMENTO ""CONSERVAZIONE A NORMA DEI DOCUMENTI NELLE P.A.L.""";01/02/2017;1077;0;190;1;Spese correnti;3;Acquisto di beni e servizi;2;Acquisto di servizi;19;Servizi informatici e di telecomunicazioni;1;Gestione e manutenzione applicazioni
854;ACCATRE S.R.L.;ZB11BA172C;Fatt.n. 1/161496 del 29/12/2016 ATTIVAZIONE NUOVO INVENTARIO BENI.;01/02/2017;1077;0;303;1;Spese correnti;3;Acquisto di beni e servizi;2;Acquisto di servizi;19;Servizi informatici e di telecomunicazioni;1;Gestione e manutenzione applicazioni
2.614,40;SINERGIE SPA; ;Fatt.n. 331600003334 del 16/12/2016 FORNITURA CALORE A.T. 2016-2017. 3^ RATA DICEMBRE 2016.;01/02/2017;1366;3;413;1;Spese correnti;3;Acquisto di beni e servizi;2;Acquisto di servizi;5;Utenze e canoni;6;Gas
2.614,40;SINERGIE SPA; ;Fatt.n. 331600003334 del 16/12/2016 FORNITURA CALORE A.T. 2016-2017. 3^ RATA DICEMBRE 2016.;01/02/2017;1386;3;414;1;Spese correnti;3;Acquisto di beni e servizi;2;Acquisto di servizi;5;Utenze e canoni;6;Gas
308,48;S.A.G.I. DI CONTI G. & C. SNC;Z061C6B9BB;Fatt.n. 74E del 21/12/2016 Manutenzione e riparazione del self service bagnomaria Modello Zanussi installato presso la mensa scolastica delle scuole.;01/02/2017;1156;0;373;1;Spese correnti;3;Acquisto di beni e servizi;2;Acquisto di servizi;9;Manutenzione ordinaria e riparazioni;11;Manutenzione ordinaria e riparazioni di altri beni materiali
1.366,40;ARTE FUNERARIA GS DI MINGARDO SILVANO & C. SNC;Z311AB31F2;Fatt.n. 10 PA del 31/12/2016 LAVORI DI TUMULAZIONE PRESSO CIMITERO;01/02/2017;1658;0;177;1;Spese correnti;3;Acquisto di beni e servizi;2;Acquisto di servizi;13;Servizi ausiliari per il funzionamento dell'ente;999;Altri servizi ausiliari n.a.c.
1.415,20;ARTE FUNERARIA GS DI MINGARDO SILVANO & C. SNC;Z311AB31F2;Fatt.n. 10 PA del 31/12/2016 LAVORI DI TUMULAZIONE PRESSO CIMITERO;01/02/2017;1658;0;177;1;Spese correnti;3;Acquisto di beni e servizi;2;Acquisto di servizi;13;Servizi ausiliari per il funzionamento dell'ente;999;Altri servizi ausiliari n.a.c.
1.219,78;MORO ANTONIO S.R.L. - IMPIANTI ELETTRICI;Z721C74A89;Fatt.n. 56/PA del 30/12/2016 MANUTENZIONE IMPIANTO LUCI VOTIVE CIMITERO COM.LE;01/02/2017;1660;0;376;1;Spese correnti;3;Acquisto di beni e servizi;2;Acquisto di servizi;9;Manutenzione ordinaria e riparazioni;11;Manutenzione ordinaria e riparazioni di altri beni materiali
2.116,58;MORETTI FRATELLI DI MORETTI LAMBERTO & C. SNC;ZAE1C6F9A4;"Fatt.n. FATTPA 15_16 del 20/12/2016 Manutenzione e riparazione trattrice agricola comunale, ""Same Explorer 75 Classic targata BB168R e albero rotore del braccio decespugliatore Marolin M 600.";01/02/2017;1926;0;374;1;Spese correnti;3;Acquisto di beni e servizi;2;Acquisto di servizi;9;Manutenzione ordinaria e riparazioni;1;Manutenzione ordinaria e riparazioni di mezzi di trasporto ad uso civile, di sicurezza e ordine pubblico
5,9;TELECOM ITALIA S.P.A.; ;Fatt.n. 8A00040002 del 10/01/2017 CONTO TELECOM ITALIA 1' BIM. 2017. ALICE BUSINESS POSTA - PROFILO 1.;01/02/2017;1043;1;13;1;Spese correnti;3;Acquisto di beni e servizi;2;Acquisto di servizi;5;Utenze e canoni;1;Telefonia fissa
85,16;TELECOM ITALIA S.P.A.; ;Fatt.n. 8E00046895 del 10/01/2017 CONTO TELECOM ITALIA 1' BIM. 2017. 0425-486082;01/02/2017;1043;1;13;1;Spese correnti;3;Acquisto di beni e servizi;2;Acquisto di servizi;5;Utenze e canoni;1;Telefonia fissa
110,26;TELECOM ITALIA S.P.A.; ;Fatt.n. 8E00046633 del 10/01/2017 CONTO TELECOM 1' BIM. 2017. 0425-485225 SEDE PROTEZIONE CIVILE.;01/02/2017;1043;1;13;1;Spese correnti;3;Acquisto di beni e servizi;2;Acquisto di servizi;5;Utenze e canoni;1;Telefonia fissa
126,29;TELECOM ITALIA S.P.A.; ;Fatt.n. 8E00043071 del 10/01/2017 CONTO TELECOM 1' BIM. 2017. 0425-48221;01/02/2017;1043;1;13;1;Spese correnti;3;Acquisto di beni e servizi;2;Acquisto di servizi;5;Utenze e canoni;1;Telefonia fissa
274,54;TELECOM ITALIA S.P.A.; ;Fatt.n. 8E00042083 del 10/01/2017 CONTO TELECOM. 1' BIM. 2017. ALICE BUSINESS 2M LARGE 512 F;01/02/2017;1043;1;13;1;Spese correnti;3;Acquisto di beni e servizi;2;Acquisto di servizi;5;Utenze e canoni;1;Telefonia fissa
345,92;TELECOM ITALIA S.P.A.; ;Fatt.n. 8E00047388 del 10/01/2017 CONTO TELECOM ITALIA 1' BIM. 2017. ALICE BUSINESS 2M LARGE 512F;01/02/2017;1043;1;13;1;Spese correnti;3;Acquisto di beni e servizi;2;Acquisto di servizi;5;Utenze e canoni;1;Telefonia fissa
1.224,73;TELECOM ITALIA S.P.A.; ;Fatt.n. 8E00043334 del 10/01/2017 CONTO TELECOM. 1' BIM. 2017. AZIENDA TUTTOCOMPRESO UTENTI FASCIA M;01/02/2017;1043;1;13;1;Spese correnti;3;Acquisto di beni e servizi;2;Acquisto di servizi;5;Utenze e canoni;1;Telefonia fissa
106,01;TELECOM ITALIA S.P.A.; ;Fatt.n. 8E00043879 del 10/01/2017 CONTO TELECOM. 1' BIM. 2017. 0425-484757;01/02/2017;1366;1;11;1;Spese correnti;3;Acquisto di beni e servizi;2;Acquisto di servizi;5;Utenze e canoni;1;Telefonia fissa
106,01;TELECOM ITALIA S.P.A.; ;Fatt.n. 8E00043879 del 10/01/2017 CONTO TELECOM. 1' BIM. 2017. 0425-484757;01/02/2017;1386;1;12;1;Spese correnti;3;Acquisto di beni e servizi;2;Acquisto di servizi;5;Utenze e canoni;1;Telefonia fissa
110,56;TELECOM ITALIA S.P.A.; ;Fatt.n. 8E00042624 del 10/01/2017 CONTO TELECOM ITALIA. 1' BIM. 2017. 0425-484762;01/02/2017;1476;1;14;1;Spese correnti;3;Acquisto di beni e servizi;2;Acquisto di servizi;5;Utenze e canoni;1;Telefonia fissa
111,45;TELECOM ITALIA S.P.A.; ;Fatt.n. 8E00041713 del 10/01/2017 CONTO TELECOM ITALIA 1' BIM. 2017. 0425-486037;01/02/2017;1476;1;14;1;Spese correnti;3;Acquisto di beni e servizi;2;Acquisto di servizi;5;Utenze e canoni;1;Telefonia fissa
183;TELECOM ITALIA S.P.A.; ;Fatt.n. 8E00045196 del 10/01/2017 CONTO TELECOM. 1' BIM. 2017. AZIENDA TUTTOCOMPRESO - UTENTI FASCIA XS;01/02/2017;1476;1;14;1;Spese correnti;3;Acquisto di beni e servizi;2;Acquisto di servizi;5;Utenze e canoni;1;Telefonia fissa
50,41;TELECOM ITALIA S.P.A.; ;Fatt.n. 2E17001057 del 20/01/2017 NUMERO VERDE ASSISTENZA SOCIALE FEBBRAIO 2017.;01/02/2017;1835;0;10;1;Spese correnti;3;Acquisto di beni e servizi;2;Acquisto di servizi;5;Utenze e canoni;1;Telefonia fissa
33;MEDIACARE Spa;Z491D2735B;SALDO Fatt.n. FATTPA 1_17  del 01/02/2017 RICARICA NUMERO VERDE ASSISTENZA SOCIALE.;02/02/2017;1835;0;10;1;Spese correnti;3;Acquisto di beni e servizi;2;Acquisto di servizi;5;Utenze e canoni;1;Telefonia fissa
900,69;CAVALLARO PINO SRL;ZC91BB2E36;Fatt.n. 0071/2016 del 21/12/2016 FORNITURA CARTA USO UFFICI.;02/02/2017;1049;0;323;1;Spese correnti;3;Acquisto di beni e servizi;1;Acquisto di beni;2;Altri beni di consumo;1;Carta, cancelleria e stampati
187,2;GRAFICHE E. GASPARI SRL.;ZF81C0F79F;Fatt.n. 18930 del 23/11/2016 PUBBLICAZIONE ON-LINE TESTO SULLA RIFORMA COSTITUZIONALE.;02/02/2017;1052;0;397;1;Spese correnti;3;Acquisto di beni e servizi;1;Acquisto di beni;1;Giornali, riviste e pubblicazioni;2;Pubblicazioni
4.270,00;TECNOAMBIENTE SAS DELL'ING. ARMANDO PELLIZZARI;Z461C38C86;Fatt.n. 4/E del 01/12/2016 CORRISPETTIVO PER L'INCARICO DI RSPP - ANNO 2016;02/02/2017;1095;0;357;1;Spese correnti;3;Acquisto di beni e servizi;2;Acquisto di servizi;4;Acquisto di servizi per formazione e addestramento del personale dell'ente;4;Acquisto di servizi per formazione obbligatoria
2.000,00;VOGLIARDI STEFANO;Z461C38C86;Fatt.n. 000002-2016-E del 23/12/2016 PRESTAZIONI SANITARIE RESE NELL'AMBITO DELLA MEDICINA DEL LAVORO.;02/02/2017;1095;0;357;1;Spese correnti;3;Acquisto di beni e servizi;2;Acquisto di servizi;4;Acquisto di servizi per formazione e addestramento del personale dell'ente;4;Acquisto di servizi per formazione obbligatoria
156,04;MERLO SERVIZI PER L'AGRICOLTURA DI MERLO FRANCO & C.;Z0517DE4DE;Fatt.n. 50/D del 31/07/2016 FORNITURA MATERIALE VARIO;02/02/2017;1270;0;474;1;Spese correnti;3;Acquisto di beni e servizi;1;Acquisto di beni;2;Altri beni di consumo;3;Equipaggiamento
1.513,96;MERLO SERVIZI PER L'AGRICOLTURA DI MERLO FRANCO & C.;Z0517DE4DE;Fatt.n. 50/D del 31/07/2016 FORNITURA MATERIALE VARIO;02/02/2017;1271;0;473;1;Spese correnti;3;Acquisto di beni e servizi;1;Acquisto di beni;2;Altri beni di consumo;3;Equipaggiamento
1.037,00;GRAFICHE E. GASPARI SRL.;Z261C2F4C0;Fatt.n. 19538 del 30/11/2016 FORNITURA VERBALI AUTOIMBUSTANTI PER UFFICIO POLIZIA LOCALE;02/02/2017;1273;0;399;1;Spese correnti;3;Acquisto di beni e servizi;1;Acquisto di beni;2;Altri beni di consumo;1;Carta, cancelleria e stampati
403,29;SERENISSIMA RISTORAZIONE S.P.A.;Z281244682;Fatt.n. 06554/4 del 30/11/2016 SERVIZIO MENSA SCUOLE. NOVEMBRE 2016.;02/02/2017;1416;0;280;1;Spese correnti;3;Acquisto di beni e servizi;2;Acquisto di servizi;15;Contratti di servizio pubblico;6;Contratti di servizio per le mense scolastiche
2.907,33;SERENISSIMA RISTORAZIONE S.P.A.;Z281244682;Fatt.n. 06554/4 del 30/11/2016 SERVIZIO MENSA SCUOLE. NOVEMBRE 2016.;02/02/2017;1416;0;280;1;Spese correnti;3;Acquisto di beni e servizi;2;Acquisto di servizi;15;Contratti di servizio pubblico;6;Contratti di servizio per le mense scolastiche
155,61;COOPERATIVA SOCIALE SPERANZA;ZCB1B0F5E1;Fatt.n. PA/250 del 30/12/2016 SERVIZIO ACCOMPAGNAMENTO SCUOLABUS. DICEMBRE 2016.;02/02/2017;1432;0;242;1;Spese correnti;3;Acquisto di beni e servizi;2;Acquisto di servizi;99;Altri servizi;999;Altri servizi diversi n.a.c.
16;ASL 18 DI ROVIGO; ;Fatt.n. VE  201600000186 del 19/12/2016 IDENTIFICAZIONE GATTI CON MICROCHIP;02/02/2017;1621;0;183;1;Spese correnti;4;Trasferimenti correnti;1;Trasferimenti correnti a Amministrazioni Pubbliche;2;Trasferimenti correnti a Amministrazioni Locali;11;Trasferimenti correnti a Aziende sanitarie locali  n.a.f.
55;ASL 18 DI ROVIGO; ;Fatt.n. DS  201600000081 del 19/12/2016 SERVIZIO OBITORIALE LUGLIO-NOVENBRE 2016.;02/02/2017;1899;0;453;1;Spese correnti;3;Acquisto di beni e servizi;2;Acquisto di servizi;99;Altri servizi;999;Altri servizi diversi n.a.c.
250;ASL 18 DI ROVIGO; ;Fatt.n. DS  201600000081 del 19/12/2016 SERVIZIO OBITORIALE LUGLIO-NOVENBRE 2016.;02/02/2017;1899;0;453;1;Spese correnti;3;Acquisto di beni e servizi;2;Acquisto di servizi;99;Altri servizi;999;Altri servizi diversi n.a.c.
2.110,88;LAERTE SERVIZI COOPERATIVA SOCIALE ONLUS;XD90FA8615;Fatt.n. 288/PA/2016 del 31/12/2016 SERVIZIO DI ASSISTENZA SOCIALE E DOMICILIARE. DICEMBRE 2016.;02/02/2017;1906;0;109;1;Spese correnti;3;Acquisto di beni e servizi;2;Acquisto di servizi;15;Contratti di servizio pubblico;9;Contratti di servizio di assistenza sociale domiciliare
2.156,78;LAERTE SERVIZI COOPERATIVA SOCIALE ONLUS;XD90FA8615;Fatt.n. 257/PA/2016 del 30/11/2016 ASSISTENZA SOCIALE E DOMICILIARE. NOVEMBRE 2016.;02/02/2017;1906;0;109;1;Spese correnti;3;Acquisto di beni e servizi;2;Acquisto di servizi;15;Contratti di servizio pubblico;9;Contratti di servizio di assistenza sociale domiciliare
2.254,69;LAERTE SERVIZI COOPERATIVA SOCIALE ONLUS;XD90FA8615;Fatt.n. 231/PA/2016 del 31/10/2016 SERVIZIO ASSISTENZA SOCIALE E DOMICILIARE. OTTOBRE 2016.;02/02/2017;1906;0;109;1;Spese correnti;3;Acquisto di beni e servizi;2;Acquisto di servizi;15;Contratti di servizio pubblico;9;Contratti di servizio di assistenza sociale domiciliare
923,8;LAERTE SERVIZI COOPERATIVA SOCIALE ONLUS;XD90FA8615;Fatt.n. 260/PA/2016 del 30/11/2016 SPORTELLO PLUS II EDIZIONE;02/02/2017;1906;1;122;1;Spese correnti;3;Acquisto di beni e servizi;2;Acquisto di servizi;15;Contratti di servizio pubblico;9;Contratti di servizio di assistenza sociale domiciliare
902,2;MERLO SERVIZI PER L'AGRICOLTURA DI MERLO FRANCO & C.;Z0517DE4DE;Fatt.n. 50/D del 31/07/2016 FORNITURA MATERIALE VARIO;02/02/2017;1934;1;475;1;Spese correnti;3;Acquisto di beni e servizi;1;Acquisto di beni;2;Altri beni di consumo;3;Equipaggiamento
37,43;ENEL ENERGIA SPA; ;Fatt.n. 004800029228 del 11/01/2017 FORNITURA ENERGIA ELETTRICA. DICEMBRE 2016. PIAZZA ATHESIA SNC.;02/02/2017;1043;2;484;1;Spese correnti;3;Acquisto di beni e servizi;2;Acquisto di servizi;5;Utenze e canoni;4;Energia elettrica
131,1;ENEL ENERGIA SPA; ;Fatt.n. 004800034912 del 12/01/2017 FORNITURA ENERGIA ELETTRICA. NOVEMBRE-DICEMBRE 2016. VIA ROMA 35.;02/02/2017;1043;2;484;1;Spese correnti;3;Acquisto di beni e servizi;2;Acquisto di servizi;5;Utenze e canoni;4;Energia elettrica
761,35;ENEL ENERGIA SPA; ;Fatt.n. 004800038813 del 13/01/2017 FORNITURA ENERGIA ELETTRICA. DICEMBRE 2016. PIAZZA ATHESIA 5.;02/02/2017;1043;2;484;1;Spese correnti;3;Acquisto di beni e servizi;2;Acquisto di servizi;5;Utenze e canoni;4;Energia elettrica
845,26;ENEL ENERGIA SPA; ;Fatt.n. 004800029227 del 11/01/2017 FORNITURA ENERGIA ELETTRICA. DICEMBRE 2016. PIAZZA ATHESIA 2.;02/02/2017;1043;2;484;1;Spese correnti;3;Acquisto di beni e servizi;2;Acquisto di servizi;5;Utenze e canoni;4;Energia elettrica
38,33;ENEL ENERGIA SPA; ;Fatt.n. 004800028311 del 11/01/2017 FORNITURA ENERGIA ELETTRICA. DICEMBRE 2016. VIA E. FERMI 18.;02/02/2017;1366;2;16;1;Spese correnti;3;Acquisto di beni e servizi;2;Acquisto di servizi;5;Utenze e canoni;4;Energia elettrica
385,56;ENEL ENERGIA SPA; ;Fatt.n. 004800028311 del 11/01/2017 FORNITURA ENERGIA ELETTRICA. DICEMBRE 2016. VIA E. FERMI 18.;02/02/2017;1366;2;486;1;Spese correnti;3;Acquisto di beni e servizi;2;Acquisto di servizi;5;Utenze e canoni;4;Energia elettrica
38,33;ENEL ENERGIA SPA; ;Fatt.n. 004800028311 del 11/01/2017 FORNITURA ENERGIA ELETTRICA. DICEMBRE 2016. VIA E. FERMI 18.;02/02/2017;1386;2;17;1;Spese correnti;3;Acquisto di beni e servizi;2;Acquisto di servizi;5;Utenze e canoni;4;Energia elettrica
385,56;ENEL ENERGIA SPA; ;Fatt.n. 004800028311 del 11/01/2017 FORNITURA ENERGIA ELETTRICA. DICEMBRE 2016. VIA E. FERMI 18.;02/02/2017;1386;2;488;1;Spese correnti;3;Acquisto di beni e servizi;2;Acquisto di servizi;5;Utenze e canoni;4;Energia elettrica
4,47;ENEL ENERGIA SPA; ;Fatt.n. 004800030337 del 11/01/2017 FORNITURA ENERGIA ELETTRICA. DICEMBRE 2016. VIA VECCHIA SNC.;02/02/2017;1937;0;15;1;Spese correnti;3;Acquisto di beni e servizi;2;Acquisto di servizi;5;Utenze e canoni;4;Energia elettrica
8,91;ENEL ENERGIA SPA; ;Fatt.n. 004800029494 del 11/01/2017 FORNITURA ENERGIA ELETTRICA. DICEMBRE 2016. VIA PASCOLON VIC 9.;02/02/2017;1937;0;15;1;Spese correnti;3;Acquisto di beni e servizi;2;Acquisto di servizi;5;Utenze e canoni;4;Energia elettrica
16,75;ENEL ENERGIA SPA; ;Fatt.n. 004800028310 del 11/01/2017 FORNITURA ENERGIA ELETTRICA. DICEMBRE 2016. VIA VECCHIA VIC 2.;02/02/2017;1937;0;15;1;Spese correnti;3;Acquisto di beni e servizi;2;Acquisto di servizi;5;Utenze e canoni;4;Energia elettrica
27,83;ENEL ENERGIA SPA; ;Fatt.n. 004800028580 del 11/01/2017 FORNITURA ENERGIA ELETTRICA. DICEMBRE 2016. VIA BRAGANTE SNC.;02/02/2017;1937;0;15;1;Spese correnti;3;Acquisto di beni e servizi;2;Acquisto di servizi;5;Utenze e canoni;4;Energia elettrica
42,68;ENEL ENERGIA SPA; ;Fatt.n. 004800046968 del 14/01/2017 FORNITURA ENERGIA ELETTRICA. DICEMBRE 2016. VIA FONTANE SNC.;02/02/2017;1937;0;15;1;Spese correnti;3;Acquisto di beni e servizi;2;Acquisto di servizi;5;Utenze e canoni;4;Energia elettrica
43,7;ENEL ENERGIA SPA; ;Fatt.n. 004800034913 del 12/01/2017 FORNITURA ENERGIA ELETTRICA. NOVEMBRE-DICEMBRE 2016. VIA CANALETTA SNC.;02/02/2017;1937;0;15;1;Spese correnti;3;Acquisto di beni e servizi;2;Acquisto di servizi;5;Utenze e canoni;4;Energia elettrica
50,11;ENEL ENERGIA SPA; ;Fatt.n. 004800029488 del 11/01/2017 FORNITURA ENERGIA ELETTRICA. DICEMBRE 2016. VIA PASCOLON VIC 2.;02/02/2017;1937;0;15;1;Spese correnti;3;Acquisto di beni e servizi;2;Acquisto di servizi;5;Utenze e canoni;4;Energia elettrica
57;ENEL ENERGIA SPA; ;Fatt.n. 004800028278 del 11/01/2017 FORNITURA ENERGIA ELETTRICA. DICEMBRE 2016. VIA PASCOLON 3.;02/02/2017;1937;0;15;1;Spese correnti;3;Acquisto di beni e servizi;2;Acquisto di servizi;5;Utenze e canoni;4;Energia elettrica
71,55;ENEL ENERGIA SPA; ;Fatt.n. 004800029495 del 11/01/2017 FORNITURA ENERGIA ELETTRICA. DICEMBRE 2016. VIA FERRARIA VIC 3.;02/02/2017;1937;0;15;1;Spese correnti;3;Acquisto di beni e servizi;2;Acquisto di servizi;5;Utenze e canoni;4;Energia elettrica
84,49;ENEL ENERGIA SPA; ;Fatt.n. 004800041936 del 14/01/2017 FORNITURA ENERGIA ELETTRICA. DICEMBRE 2016. VIA GORGHETTI SNC.;02/02/2017;1937;0;15;1;Spese correnti;3;Acquisto di beni e servizi;2;Acquisto di servizi;5;Utenze e canoni;4;Energia elettrica
84,49;ENEL ENERGIA SPA; ;Fatt.n. 004800078630 del 14/01/2017 FORNITURA ENERGIA ELETTRICA. DICEMBRE 2016. VIA GALLO VIC 2..;02/02/2017;1937;0;15;1;Spese correnti;3;Acquisto di beni e servizi;2;Acquisto di servizi;5;Utenze e canoni;4;Energia elettrica
107,4;ENEL ENERGIA SPA; ;Fatt.n. 004800029489 del 11/01/2017 FORNITURA ENERGIA ELETTRICA. DICEMBRE 2016. VIA G. MARCONI VIC 7.;02/02/2017;1937;0;15;1;Spese correnti;3;Acquisto di beni e servizi;2;Acquisto di servizi;5;Utenze e canoni;4;Energia elettrica
115,57;ENEL ENERGIA SPA; ;Fatt.n. 004800028290 del 11/01/2017 FORNITURA ENERGIA ELETTRICA. DICEMBRE 2016. VIA GORGHETTI VIC 2;02/02/2017;1937;0;15;1;Spese correnti;3;Acquisto di beni e servizi;2;Acquisto di servizi;5;Utenze e canoni;4;Energia elettrica
124,34;ENEL ENERGIA SPA; ;Fatt.n. 004800041937 del 14/01/2017 FORNITURA ENERGIA ELETTRICA. DICEMBRE 2016. VIA GALLO 50.;02/02/2017;1937;0;15;1;Spese correnti;3;Acquisto di beni e servizi;2;Acquisto di servizi;5;Utenze e canoni;4;Energia elettrica
429,94;ENEL ENERGIA SPA; ;Fatt.n. 004800028303 del 11/01/2017 FORNITURA ENERGIA ELETTRICA. DICEMBRE 2016. VIA BONIOLE SNC;02/02/2017;1937;0;15;1;Spese correnti;3;Acquisto di beni e servizi;2;Acquisto di servizi;5;Utenze e canoni;4;Energia elettrica
437,28;ENEL ENERGIA SPA; ;Fatt.n. 004800028277 del 11/01/2017 FORNITURA ENERGIA ELETTRICA. DICEMBRE 2016. VIA ROMA SNC.;02/02/2017;1937;0;15;1;Spese correnti;3;Acquisto di beni e servizi;2;Acquisto di servizi;5;Utenze e canoni;4;Energia elettrica
439,8;ENEL ENERGIA SPA; ;Fatt.n. 004800028300 del 11/01/2017 FORNITURA ENERGIA ELETTRICA. DICEMBRE 2016. VIA BONIOLE SNC.;02/02/2017;1937;0;15;1;Spese correnti;3;Acquisto di beni e servizi;2;Acquisto di servizi;5;Utenze e canoni;4;Energia elettrica
493,65;ENEL ENERGIA SPA; ;Fatt.n. 004800028297 del 11/01/2017 FORNITURA ENERGIA ELETTRICA. DICEMBRE 2016. VIA L. DA VINCI VIC 1.;02/02/2017;1937;0;15;1;Spese correnti;3;Acquisto di beni e servizi;2;Acquisto di servizi;5;Utenze e canoni;4;Energia elettrica
569,62;ENEL ENERGIA SPA; ;Fatt.n. 004800028304 del 11/01/2017 FORNITURA ENERGIA ELETTRICA. DICEMBRE 2016. VIA DELLO SPORT SN.;02/02/2017;1937;0;15;1;Spese correnti;3;Acquisto di beni e servizi;2;Acquisto di servizi;5;Utenze e canoni;4;Energia elettrica
645,11;ENEL ENERGIA SPA; ;Fatt.n. 004800028298 del 11/01/2017 FORNITURA ENERGIA ELETTRICA. DICEMBRE 2016. VIA BARCHESSA VIC 5;02/02/2017;1937;0;15;1;Spese correnti;3;Acquisto di beni e servizi;2;Acquisto di servizi;5;Utenze e canoni;4;Energia elettrica
687,07;ENEL ENERGIA SPA; ;Fatt.n. 004800028288 del 11/01/2017 FORNITURA ENERGIA ELETTRICA. DICEMBRE 2016. VIA ROMA SNC.;02/02/2017;1937;0;15;1;Spese correnti;3;Acquisto di beni e servizi;2;Acquisto di servizi;5;Utenze e canoni;4;Energia elettrica
904,37;ENEL ENERGIA SPA; ;Fatt.n. 004800028289 del 11/01/2017 FORNITURA ENERGIA ELETTRICA. DICEMBRE 2016. VIA XI NOVEMBRE SNC.;02/02/2017;1937;0;15;1;Spese correnti;3;Acquisto di beni e servizi;2;Acquisto di servizi;5;Utenze e canoni;4;Energia elettrica
1.259,75;ENEL ENERGIA SPA; ;Fatt.n. 004800028286 del 11/01/2017 FORNITURA ENERGIA ELETTRICA. DICEMBRE 2016. VIA ROMA VIC 6.;02/02/2017;1937;0;15;1;Spese correnti;3;Acquisto di beni e servizi;2;Acquisto di servizi;5;Utenze e canoni;4;Energia elettrica
912,84;SERVIZIO ELETTRICO NAZIONALE; ;Fatt.n. 281801005580012 del 13/01/2017 FORNITURA ENERGIA ELETTRICA. DICEMBRE 2016 - GENNAIO 2017. VIA VALLAZZA SN.;02/02/2017;1937;0;15;1;Spese correnti;3;Acquisto di beni e servizi;2;Acquisto di servizi;5;Utenze e canoni;4;Energia elettrica
38,89;ENEL ENERGIA SPA; ;Fatt.n. 004701709008 del 13/12/2016 FORNITURA ENERGIA ELETTRICA. NOVEMBRE 2016. VIA FONTANE SNC.;02/02/2017;1937;0;411;1;Spese correnti;3;Acquisto di beni e servizi;2;Acquisto di servizi;5;Utenze e canoni;4;Energia elettrica
77,38;ENEL ENERGIA SPA; ;Fatt.n. 004701708879 del 13/12/2016 FORNITURA ENERGIA ELETTRICA. NOVEMBRE 2016. VIA GORGHETTI SNC.;02/02/2017;1937;0;411;1;Spese correnti;3;Acquisto di beni e servizi;2;Acquisto di servizi;5;Utenze e canoni;4;Energia elettrica
77,38;ENEL ENERGIA SPA; ;Fatt.n. 004701706604 del 13/12/2016 FORNITURA ENERGIA ELETTRICA. NOVEMBRE 2016. VIA GALLO VIC 2.;02/02/2017;1937;0;411;1;Spese correnti;3;Acquisto di beni e servizi;2;Acquisto di servizi;5;Utenze e canoni;4;Energia elettrica
112,58;ENEL ENERGIA SPA; ;Fatt.n. 004701708880 del 13/12/2016 FORNITURA ENERGIA ELETTRICA. NOVEMBRE 2016. VIA GALLO 50.;02/02/2017;1937;0;411;1;Spese correnti;3;Acquisto di beni e servizi;2;Acquisto di servizi;5;Utenze e canoni;4;Energia elettrica
2,65;ENEL ENERGIA SPA; ;Fatt.n. 004800029493 del 11/01/2017 FORNITURA ENERGIA ELETTRICA. DICEMBRE 2016. VIA ONARI VIC 4.;02/02/2017;1937;0;493;1;Spese correnti;3;Acquisto di beni e servizi;2;Acquisto di servizi;5;Utenze e canoni;4;Energia elettrica
13,53;ENEL ENERGIA SPA; ;Fatt.n. 004800028309 del 11/01/2017 FORNITURA ENERGIA ELETTRICA. DICEMBRE 2016. VIA XI NOVEMBRE 36.;02/02/2017;1937;0;493;1;Spese correnti;3;Acquisto di beni e servizi;2;Acquisto di servizi;5;Utenze e canoni;4;Energia elettrica
13,36;ENEL ENERGIA SPA; ;Fatt.n. 004800029490 del 11/01/2017 FORNITURA ENERGIA ELETTRICA. DICEMBRE 2016. VIA CA' BIANCA SNC.;02/02/2017;1937;0;493;1;Spese correnti;3;Acquisto di beni e servizi;2;Acquisto di servizi;5;Utenze e canoni;4;Energia elettrica
15,47;ENEL ENERGIA SPA; ;Fatt.n. 004800029491 del 11/01/2017 FORNITURA ENERGIA ELETTRICA. DICEMBRE 2016. VIA DEL GATTO 1.;02/02/2017;1937;0;493;1;Spese correnti;3;Acquisto di beni e servizi;2;Acquisto di servizi;5;Utenze e canoni;4;Energia elettrica
17,15;ENEL ENERGIA SPA; ;Fatt.n. 004800028275 del 11/01/2017 FORNITURA ENERGIA ELETTRICA. DICEMBRE 2016.VIA DEL GATTO 17.;02/02/2017;1937;0;493;1;Spese correnti;3;Acquisto di beni e servizi;2;Acquisto di servizi;5;Utenze e canoni;4;Energia elettrica
20,12;ENEL ENERGIA SPA; ;Fatt.n. 004800028295 del 11/01/2017 FORNITURA ENERGIA ELETTRICA. DICEMBRE 2016. VIA SABBIONI VIC 3.;02/02/2017;1937;0;493;1;Spese correnti;3;Acquisto di beni e servizi;2;Acquisto di servizi;5;Utenze e canoni;4;Energia elettrica
21,87;ENEL ENERGIA SPA; ;Fatt.n. 004800028280 del 11/01/2017 FORNITURA ENERGIA ELETTRICA. DICEMBRE 2016. VIA PASCOLON SNC.;02/02/2017;1937;0;493;1;Spese correnti;3;Acquisto di beni e servizi;2;Acquisto di servizi;5;Utenze e canoni;4;Energia elettrica
21,18;ENEL ENERGIA SPA; ;Fatt.n. 004800028299 del 11/01/2017 FORNITURA ENERGIA ELETTRICA. DICEMBRE 2016. VIA GALLO 23.;02/02/2017;1937;0;493;1;Spese correnti;3;Acquisto di beni e servizi;2;Acquisto di servizi;5;Utenze e canoni;4;Energia elettrica
34,2;ENEL ENERGIA SPA; ;Fatt.n. 004800028301 del 11/01/2017 FORNITURA ENERGIA ELETTRICA. DICEMBRE 2016. VIA FONTANE VIC 2.;02/02/2017;1937;0;493;1;Spese correnti;3;Acquisto di beni e servizi;2;Acquisto di servizi;5;Utenze e canoni;4;Energia elettrica
52,86;ENEL ENERGIA SPA; ;Fatt.n. 004800028287 del 11/01/2017 FORNITURA ENERGIA ELETTRICA. DICEMBRE 2016. VIA SABBIONI VIC 4.;02/02/2017;1937;0;493;1;Spese correnti;3;Acquisto di beni e servizi;2;Acquisto di servizi;5;Utenze e canoni;4;Energia elettrica
53,4;ENEL ENERGIA SPA; ;Fatt.n. 004800028284 del 11/01/2017 FORNITURA ENERGIA ELETTRICA. DICEMBRE 2016. VIA FERRARIA VIC 1.;02/02/2017;1937;0;493;1;Spese correnti;3;Acquisto di beni e servizi;2;Acquisto di servizi;5;Utenze e canoni;4;Energia elettrica
64,12;ENEL ENERGIA SPA; ;Fatt.n. 004800028282 del 11/01/2017 FORNITURA ENERGIA ELETTRICA. DICEMBRE 2016. VIA DEL GATTO SNC.;02/02/2017;1937;0;493;1;Spese correnti;3;Acquisto di beni e servizi;2;Acquisto di servizi;5;Utenze e canoni;4;Energia elettrica
101,99;ENEL ENERGIA SPA; ;Fatt.n. 004800028296 del 11/01/2017 FORNITURA ENERGIA ELETTRICA. DICEMBRE 2016. VIA ROMA VIC 4.;02/02/2017;1937;0;493;1;Spese correnti;3;Acquisto di beni e servizi;2;Acquisto di servizi;5;Utenze e canoni;4;Energia elettrica
101,99;ENEL ENERGIA SPA; ;Fatt.n. 004800028281 del 11/01/2017 FORNITURA ENERGIA ELETTRICA. DICEMBRE 2016. VIA VOLTA SNC.;02/02/2017;1937;0;493;1;Spese correnti;3;Acquisto di beni e servizi;2;Acquisto di servizi;5;Utenze e canoni;4;Energia elettrica
177,97;ENEL ENERGIA SPA; ;Fatt.n. 004800028292 del 11/01/2017 FORNITURA ENERGIA ELETTRICA. DICEMBRE 2016. VIA ONARI VIC 3.;02/02/2017;1937;0;493;1;Spese correnti;3;Acquisto di beni e servizi;2;Acquisto di servizi;5;Utenze e canoni;4;Energia elettrica
180,69;ENEL ENERGIA SPA; ;Fatt.n. 004800028302 del 11/01/2017 FORNITURA ENERGIA ELETTRICA. DICEMBRE 2016. VIA STRADON 27.;02/02/2017;1937;0;493;1;Spese correnti;3;Acquisto di beni e servizi;2;Acquisto di servizi;5;Utenze e canoni;4;Energia elettrica
187,5;ENEL ENERGIA SPA; ;Fatt.n. 004800028308 del 11/01/2017 FORNITURA ENERGIA ELETTRICA. DICEMBRE 2016. VIA FERRARIA SNC.;02/02/2017;1937;0;493;1;Spese correnti;3;Acquisto di beni e servizi;2;Acquisto di servizi;5;Utenze e canoni;4;Energia elettrica
200,68;ENEL ENERGIA SPA; ;Fatt.n. 004800028293 del 11/01/2017 FORNITURA ENERGIA ELETTRICA. DICEMBRE 2016. VIA FERRATA 3.;02/02/2017;1937;0;493;1;Spese correnti;3;Acquisto di beni e servizi;2;Acquisto di servizi;5;Utenze e canoni;4;Energia elettrica
249,83;ENEL ENERGIA SPA; ;Fatt.n. 004800028306 del 11/01/2017 FORNITURA ENERGIA ELETTRICA. DICEMBRE 2016. VIA BONIOLE SNC.;02/02/2017;1937;0;493;1;Spese correnti;3;Acquisto di beni e servizi;2;Acquisto di servizi;5;Utenze e canoni;4;Energia elettrica
264,04;ENEL ENERGIA SPA; ;Fatt.n. 004800028285 del 11/01/2017 FORNITURA ENERGIA ELETTRICA. DICEMBRE 2016. VIA CANALETTA SNC.;02/02/2017;1937;0;493;1;Spese correnti;3;Acquisto di beni e servizi;2;Acquisto di servizi;5;Utenze e canoni;4;Energia elettrica
275,01;ENEL ENERGIA SPA; ;Fatt.n. 004800028276 del 11/01/2017 FORNITURA ENERGIA ELETTRICA. DICEMBRE 2016. VIA II GIUGNO 1.;02/02/2017;1937;0;493;1;Spese correnti;3;Acquisto di beni e servizi;2;Acquisto di servizi;5;Utenze e canoni;4;Energia elettrica
399,99;ENEL ENERGIA SPA; ;Fatt.n. 004800028291 del 11/01/2017 FORNITURA ENERGIA ELETTRICA. DICEMBRE 2016. VIA FERRARIA SNC.;02/02/2017;1937;0;493;1;Spese correnti;3;Acquisto di beni e servizi;2;Acquisto di servizi;5;Utenze e canoni;4;Energia elettrica
566,78;ENEL ENERGIA SPA; ;Fatt.n. 004800029945 del 11/01/2017 FORNITURA ENERGIA ELETTRICA. DICEMBRE 2016. VIA DELL'ARTIGIANATO SNC.;02/02/2017;1937;0;493;1;Spese correnti;3;Acquisto di beni e servizi;2;Acquisto di servizi;5;Utenze e canoni;4;Energia elettrica
922,05;ENEL ENERGIA SPA; ;Fatt.n. 004800028307 del 11/01/2017 FORNITURA ENERGIA ELETTRICA. DICEMBRE 2016. VIA XXV APRILE SNC.;02/02/2017;1937;0;493;1;Spese correnti;3;Acquisto di beni e servizi;2;Acquisto di servizi;5;Utenze e canoni;4;Energia elettrica
6,88;CITTA' DI GEMONA DEL FRIULI; ;SPESE PER NOTIFICHE ANNO 2016. VS. PROT. 1166 DEL 19/01/2017;15/02/2017;1055;0;505;1;Spese correnti;3;Acquisto di beni e servizi;2;Acquisto di servizi;16;Servizi amministrativi;999;Altre spese per servizi amministrativi
6,88;CITTA' DI MUGGIO'; ;SPESE PER NOTIFICHE ANNO 2016. N. NOTIFICA 3637 DEL 22/12/2016.;15/02/2017;1055;0;505;1;Spese correnti;3;Acquisto di beni e servizi;2;Acquisto di servizi;16;Servizi amministrativi;999;Altre spese per servizi amministrativi
6,88;CITTA' DI SARZANA; ;RIMBORSO PER SPESE NOTIFICA N. 2394.;15/02/2017;1055;0;505;1;Spese correnti;3;Acquisto di beni e servizi;2;Acquisto di servizi;16;Servizi amministrativi;999;Altre spese per servizi amministrativi
6,88;COMUNE DI ARGELATO; ;SPESE PER NOTIFICHE 2' SEM. 2016. vS. RICHIESTA PROT.1202/2017 DEL 25/01/2017. N. NOTIFICA 379/2016 DEL 18/11/16;15/02/2017;1055;0;505;1;Spese correnti;3;Acquisto di beni e servizi;2;Acquisto di servizi;16;Servizi amministrativi;999;Altre spese per servizi amministrativi
6,88;COMUNE DI CAMPOSAMPIERO; ;SPESE PER NOTIFICHE ANNO 2016. N. REG. NOTIFICHE 443-2016 - PROT 8843/2016;15/02/2017;1055;0;505;1;Spese correnti;3;Acquisto di beni e servizi;2;Acquisto di servizi;16;Servizi amministrativi;999;Altre spese per servizi amministrativi
6,88;COMUNE DI OCCHIOBELLO; ;SPESE PER NOTIFICHE ANNO 2016. CRON. N.1171/2016.;15/02/2017;1055;0;505;1;Spese correnti;3;Acquisto di beni e servizi;2;Acquisto di servizi;16;Servizi amministrativi;999;Altre spese per servizi amministrativi
6,88;COMUNE DI PORTO VIRO; ;SPESE PER NOTIFICHE ANNO 2016. NOTIFICA N.954 DEL 25/11/2016.;15/02/2017;1055;0;505;1;Spese correnti;3;Acquisto di beni e servizi;2;Acquisto di servizi;16;Servizi amministrativi;999;Altre spese per servizi amministrativi
10,18;COMUNE DI ROVIGO; ;SPESE PER NOTIFICHE ANNO 2016. N. CRON. REG. 3715 DEL 13/12/2016;15/02/2017;1055;0;505;1;Spese correnti;3;Acquisto di beni e servizi;2;Acquisto di servizi;16;Servizi amministrativi;999;Altre spese per servizi amministrativi
2.149,80;ASL 18 DI ROVIGO; ;Servizio nuoto disabili - anno 2016.;15/02/2017;1905;0;108;1;Spese correnti;4;Trasferimenti correnti;1;Trasferimenti correnti a Amministrazioni Pubbliche;2;Trasferimenti correnti a Amministrazioni Locali;20;Trasferimenti correnti a Aziende sanitarie locali  a titolo di finanziamento del servizio sanitario nazionale
8.782,34;ASL 18 DI ROVIGO; ;Saldo quota contributiva anno 2016.;15/02/2017;1905;0;108;1;Spese correnti;4;Trasferimenti correnti;1;Trasferimenti correnti a Amministrazioni Pubbliche;2;Trasferimenti correnti a Amministrazioni Locali;20;Trasferimenti correnti a Aziende sanitarie locali  a titolo di finanziamento del servizio sanitario nazionale
1.051,36;ASL 18 DI ROVIGO; ;Saldo quota contributiva anno 2016.;15/02/2017;1905;0;22;1;Spese correnti;4;Trasferimenti correnti;1;Trasferimenti correnti a Amministrazioni Pubbliche;2;Trasferimenti correnti a Amministrazioni Locali;20;Trasferimenti correnti a Aziende sanitarie locali  a titolo di finanziamento del servizio sanitario nazionale
959,55;MODA GOMME SNC;Z9B1CBD1B7;SALDO Fatt.n. 1/E  del 12/01/2017 Intervento di sostituzione dei pneumatici del motocarro Ape Piaggio targato DV07597 e per la fornitura e montaggio di sei pneumatici invernali sull'autocarro Nissan V.I. TLO 35/2 targato BK 577 NZ.;15/02/2017;1927;0;436;1;Spese correnti;3;Acquisto di beni e servizi;1;Acquisto di beni;2;Altri beni di consumo;999;Altri beni e materiali di consumo n.a.c.
1.000,00;MORO ANTONIO S.R.L. - IMPIANTI ELETTRICI;Z481B44FC7;ACCONTO Fatt.n. 06/PA  del 16/01/2017 INTERVENTI MANUTENTIVI ALL'IMPIANTO DI ILLUMINAZIONE DEL CAMPO SPORTIVO COM.LE;15/02/2017;1828;0;268;1;Spese correnti;3;Acquisto di beni e servizi;1;Acquisto di beni;2;Altri beni di consumo;999;Altri beni e materiali di consumo n.a.c.
695;MORO ANTONIO S.R.L. - IMPIANTI ELETTRICI;Z481B44FC7;ACCONTO Fatt.n. 06/PA  del 16/01/2017 INTERVENTI MANUTENTIVI ALL'IMPIANTO DI ILLUMINAZIONE DEL CAMPO SPORTIVO COM.LE;15/02/2017;1828;1;269;1;Spese correnti;3;Acquisto di beni e servizi;2;Acquisto di servizi;99;Altri servizi;999;Altri servizi diversi n.a.c.
452,2;MORO ANTONIO S.R.L. - IMPIANTI ELETTRICI;Z481B44FC7;SALDO Fatt.n. 06/PA  del 16/01/2017 INTERVENTI MANUTENTIVI ALL'IMPIANTO DI ILLUMINAZIONE DEL CAMPO SPORTIVO COM.LE;15/02/2017;1156;0;270;1;Spese correnti;3;Acquisto di beni e servizi;2;Acquisto di servizi;9;Manutenzione ordinaria e riparazioni;4;Manutenzione ordinaria e riparazioni di impianti e macchinari
150;GRAFICHE E. GASPARI SRL.;Z201CB6416;SALDO Fatt.n. 00023  del 20/01/2017 CORSO ANTICORRUZIONE D.LGS. 97/2016;15/02/2017;1085;0;432;1;Spese correnti;3;Acquisto di beni e servizi;2;Acquisto di servizi;4;Acquisto di servizi per formazione e addestramento del personale dell'ente;4;Acquisto di servizi per formazione obbligatoria
415,8;SOLWEB SRL;Z6F1CB4A51;SALDO Fatt.n. 22  del 20/01/2017 SOFTWARE AFFIDAMENTI DIRETTI;15/02/2017;1087;1;434;1;Spese correnti;3;Acquisto di beni e servizi;2;Acquisto di servizi;99;Altri servizi;999;Altri servizi diversi n.a.c.
544,12;CIMA IMPIANTI S.r.l.;ZE21995B91;"SALDO Fatt.n. 000013/17/PA  del 27/01/2017 Manutenzione di due servo scala a piattaforma e di un impianto di sollevamento installati presso l'edificio scolastico ""Enrico Fermi"" di Boara Pisani.";15/02/2017;1156;0;95;1;Spese correnti;3;Acquisto di beni e servizi;2;Acquisto di servizi;9;Manutenzione ordinaria e riparazioni;4;Manutenzione ordinaria e riparazioni di impianti e macchinari
486,41;GRAFICHE E. GASPARI SRL.;ZD51CAA5A3;SALDO Fatt.n. 00532  del 31/01/2017 ACQUISTO CANCELLERIA UFFICIO TECNICO LLPP.;15/02/2017;1087;0;428;1;Spese correnti;3;Acquisto di beni e servizi;1;Acquisto di beni;2;Altri beni di consumo;1;Carta, cancelleria e stampati
223,58;VENETA ENGINEERING SRL;ZD81B3FC08;SALDO Fatt.n. 01322  del 31/01/2017 Collaudo e verifica periodica annuale della gru installata su autocarro Nissan V.I. TLO 35/2 targato BK 577 NZ .;15/02/2017;1926;0;258;1;Spese correnti;3;Acquisto di beni e servizi;2;Acquisto di servizi;9;Manutenzione ordinaria e riparazioni;1;Manutenzione ordinaria e riparazioni di mezzi di trasporto ad uso civile, di sicurezza e ordine pubblico
976;CARDIAC SCIENCE SRL;Z301C3E3BD;SALDO Fatt.n. 2/PA  del 24/01/2017 Fornitura  Totem Indoor & Outdoor per alloggiamento di teca con defibrillatore.;15/02/2017;1928;0;394;1;Spese correnti;3;Acquisto di beni e servizi;1;Acquisto di beni;2;Altri beni di consumo;999;Altri beni e materiali di consumo n.a.c.
16.068,70;IMPRESA ROSINA DI ROSINA ROBERTO & C. SNC;ZCE1C6A329;"SALDO Fatt.n. 1PA  del 24/01/2017 I' SAL  ""lavori di opere stradali - IV' stralcio"" relativi all'opera pubblica principale denominata Completamento opere P.I.P. 1' e 2' stralcio.";15/02/2017;3482;0;362;2;Spese in conto capitale;5;Altre spese in conto capitale;99;Altre spese in conto capitale n.a.c.;99;Altre spese in conto capitale n.a.c.;999;Altre spese in conto capitale n.a.c.
1.346,00;MULTICOPIA E ARREDA UFFICIO SRL;Z0E0DC4783;Fatt.n. 605 del 28/12/2016 CONGUAGLIO COSTO COPIA ANNO 2016.;15/02/2017;1077;0;465;1;Spese correnti;3;Acquisto di beni e servizi;2;Acquisto di servizi;19;Servizi informatici e di telecomunicazioni;11;Processi trasversali alle classi di servizio
184,16;MULTICOPIA E ARREDA UFFICIO SRL; ;Fatt.n. 605 del 28/12/2016 CONGUAGLIO COSTO COPIA ANNO 2016.;15/02/2017;1080;0;466;1;Spese correnti;3;Acquisto di beni e servizi;1;Acquisto di beni;2;Altri beni di consumo;999;Altri beni e materiali di consumo n.a.c.
128,8;EGAF EDIZIONI SRL;Z881CCE8EE;Fatt.n. 2017 V VS2 609 0 del 30/12/2016 PRONTUARIO DELLE VIOLAZIONI ALLA CIRCOLAZIONE STRADALE.;15/02/2017;1273;0;476;1;Spese correnti;3;Acquisto di beni e servizi;1;Acquisto di beni;2;Altri beni di consumo;1;Carta, cancelleria e stampati
368,27;ACI-AUTOMOBILE CLUB D'ITALIA; ;Fatt.n. 0000024346 del 11/10/2016 CONSULTAZIONE VISURE EXTRA CANONE BANCA DATI ACI PRA 3' TRIMESTRE 2016.;15/02/2017;1273;1;209;1;Spese correnti;3;Acquisto di beni e servizi;2;Acquisto di servizi;99;Altri servizi;999;Altri servizi diversi n.a.c.
833,45;SERENISSIMA RISTORAZIONE S.P.A.; ;Fatt.n. 07302/4 del 31/12/2016 SERVIZIO MENSA SCUOLA ELEMENTARE. DICEMBRE 2016.;15/02/2017;1416;0;23;1;Spese correnti;3;Acquisto di beni e servizi;2;Acquisto di servizi;15;Contratti di servizio pubblico;6;Contratti di servizio per le mense scolastiche
536,86;SERENISSIMA RISTORAZIONE S.P.A.;Z281244682;Fatt.n. 07302/4 del 31/12/2016 SERVIZIO MENSA SCUOLA ELEMENTARE. DICEMBRE 2016.;15/02/2017;1416;0;118;1;Spese correnti;3;Acquisto di beni e servizi;2;Acquisto di servizi;15;Contratti di servizio pubblico;6;Contratti di servizio per le mense scolastiche
692,83;SERENISSIMA RISTORAZIONE S.P.A.;Z281244682;Fatt.n. 07302/4 del 31/12/2016 SERVIZIO MENSA SCUOLA ELEMENTARE. DICEMBRE 2016.;15/02/2017;1416;0;280;1;Spese correnti;3;Acquisto di beni e servizi;2;Acquisto di servizi;15;Contratti di servizio pubblico;6;Contratti di servizio per le mense scolastiche
98,77;MERLO SERVIZI PER L'AGRICOLTURA DI MERLO FRANCO & C.;Z721CC8FA9;Fatt.n. 86/D del 31/12/2016 FORNITURA MATERIALE VARIO;15/02/2017;1934;1;467;1;Spese correnti;3;Acquisto di beni e servizi;1;Acquisto di beni;2;Altri beni di consumo;7;Altri materiali tecnico-specialistici non sanitari
-17,48;ENEL ENERGIA SPA; ;Fatt.n. 004800038163 del 13/01/2017 CONGUAGLIO FORNITURA ENERGIA ELETTRICA. AGOSTO-DICEMBRE 2013. VIA FONTANE SNC.;17/02/2017;1937;0;271;1;Spese correnti;3;Acquisto di beni e servizi;2;Acquisto di servizi;5;Utenze e canoni;4;Energia elettrica
-1,05;ENEL ENERGIA SPA; ;Fatt.n. 004701626219 del 30/11/2016 CONGUAGLIO FORNITURA ENERGIA ELETTRICA. NOVEMBRE-DICEMBRE 2013.;17/02/2017;1937;0;271;1;Spese correnti;3;Acquisto di beni e servizi;2;Acquisto di servizi;5;Utenze e canoni;4;Energia elettrica
0,01;ENEL ENERGIA SPA; ;Fatt.n. 004701314336 del 05/10/2016 CONGUAGLIO FORNITURA ENERGIA ELETTRICA. APRILE-LUGLIO 2013. VIA FONTANE VIC 3.;17/02/2017;1937;0;271;1;Spese correnti;3;Acquisto di beni e servizi;2;Acquisto di servizi;5;Utenze e canoni;4;Energia elettrica
0,01;ENEL ENERGIA SPA; ;Fatt.n. 004701310556 del 28/09/2016 CONGUAGLIO FORNITURA ENERGIA ELETTRICA. AGOSTO-DICEMBRE 2013. VIA FONTANE VIC 3.;17/02/2017;1937;0;271;1;Spese correnti;3;Acquisto di beni e servizi;2;Acquisto di servizi;5;Utenze e canoni;4;Energia elettrica
1,63;ENEL ENERGIA SPA; ;Fatt.n. 004701626219 del 30/11/2016 CONGUAGLIO FORNITURA ENERGIA ELETTRICA. NOVEMBRE-DICEMBRE 2013.;17/02/2017;1937;0;271;1;Spese correnti;3;Acquisto di beni e servizi;2;Acquisto di servizi;5;Utenze e canoni;4;Energia elettrica
148,28;ENEL ENERGIA SPA; ;Fatt.n. 004800148530 del 25/01/2017 CONGUAGLIO FORNITURA ENERGIA ELETTRICA. NOVEMBRE-DICEMBRE 2013. VIA XI NOVEMBRE 36.;17/02/2017;1937;0;271;1;Spese correnti;3;Acquisto di beni e servizi;2;Acquisto di servizi;5;Utenze e canoni;4;Energia elettrica
230,47;ENEL ENERGIA SPA; ;Fatt.n. 004800038163 del 13/01/2017 CONGUAGLIO FORNITURA ENERGIA ELETTRICA. AGOSTO-DICEMBRE 2013. VIA FONTANE SNC.;17/02/2017;1937;0;271;1;Spese correnti;3;Acquisto di beni e servizi;2;Acquisto di servizi;5;Utenze e canoni;4;Energia elettrica
-69,53;ENEL ENERGIA SPA; ;Fatt.n. 004701154491 del 30/08/2016 CONGUAGLIO FORNITURA ENERGIA ELETTRICA. GENNAIO-DICEMBRE 2014. VIA CANALETTA SNC.;17/02/2017;1937;0;446;1;Spese correnti;3;Acquisto di beni e servizi;2;Acquisto di servizi;5;Utenze e canoni;4;Energia elettrica
-14,37;ENEL ENERGIA SPA; ;Fatt.n. 004800148533 del 25/01/2017 CONGUAGLIO FORNITURA ENERGIA ELETTRICA. ANNO 2014. VIA XI NOVEMBRE 36.;17/02/2017;1937;0;446;1;Spese correnti;3;Acquisto di beni e servizi;2;Acquisto di servizi;5;Utenze e canoni;4;Energia elettrica
-11,99;ENEL ENERGIA SPA; ;Fatt.n. 004701626221 del 30/11/2016 CONGUAGLIO FORNITURA ENERGIA ELETTRICA. ANNO 2014. VIA PASCOLON 3.;17/02/2017;1937;0;446;1;Spese correnti;3;Acquisto di beni e servizi;2;Acquisto di servizi;5;Utenze e canoni;4;Energia elettrica
-8,8;ENEL ENERGIA SPA; ;Fatt.n. 004701621503 del 24/11/2016 CONGUAGLIO FORNITURA ENERGIA ELETTRICA ANNO 2014. VIA FONTANE VIC 3.;17/02/2017;1937;0;446;1;Spese correnti;3;Acquisto di beni e servizi;2;Acquisto di servizi;5;Utenze e canoni;4;Energia elettrica
0,01;ENEL ENERGIA SPA; ;Fatt.n. 004701154490 del 30/08/2016 CONGUAGLIO FORNITURA ENERGIA ELETTRICA. GENNAIO-MARZO 2014. VIA E. FERMI 19/2;17/02/2017;1937;0;446;1;Spese correnti;3;Acquisto di beni e servizi;2;Acquisto di servizi;5;Utenze e canoni;4;Energia elettrica
0,01;ENEL ENERGIA SPA; ;Fatt.n. 004701621503 del 24/11/2016 CONGUAGLIO FORNITURA ENERGIA ELETTRICA ANNO 2014. VIA FONTANE VIC 3.;17/02/2017;1937;0;446;1;Spese correnti;3;Acquisto di beni e servizi;2;Acquisto di servizi;5;Utenze e canoni;4;Energia elettrica
0,01;ENEL ENERGIA SPA; ;Fatt.n. 004701154488 del 30/08/2016 CONGUAGLIO FORNITURA ENERGIA ELETTRICA. GENNAIO-DICEMBRE 2014. VIA DELL'ARTIGIANATO SNC.;17/02/2017;1937;0;446;1;Spese correnti;3;Acquisto di beni e servizi;2;Acquisto di servizi;5;Utenze e canoni;4;Energia elettrica
0,01;ENEL ENERGIA SPA; ;Fatt.n. 004701154489 del 30/08/2016 CONGUAGLIO FORNITURA ENERGIA ELETTRICA. GENNAIO-DICEMBRE 2014. VIA VALLAZZA VIC 3.;17/02/2017;1937;0;446;1;Spese correnti;3;Acquisto di beni e servizi;2;Acquisto di servizi;5;Utenze e canoni;4;Energia elettrica
69,52;ENEL ENERGIA SPA; ;Fatt.n. 004701154491 del 30/08/2016 CONGUAGLIO FORNITURA ENERGIA ELETTRICA. GENNAIO-DICEMBRE 2014. VIA CANALETTA SNC.;17/02/2017;1937;0;446;1;Spese correnti;3;Acquisto di beni e servizi;2;Acquisto di servizi;5;Utenze e canoni;4;Energia elettrica
106,75;ENEL ENERGIA SPA; ;Fatt.n. 004701626221 del 30/11/2016 CONGUAGLIO FORNITURA ENERGIA ELETTRICA. ANNO 2014. VIA PASCOLON 3.;17/02/2017;1937;0;446;1;Spese correnti;3;Acquisto di beni e servizi;2;Acquisto di servizi;5;Utenze e canoni;4;Energia elettrica
217,65;ENEL ENERGIA SPA; ;Fatt.n. 004800148533 del 25/01/2017 CONGUAGLIO FORNITURA ENERGIA ELETTRICA. ANNO 2014. VIA XI NOVEMBRE 36.;17/02/2017;1937;0;446;1;Spese correnti;3;Acquisto di beni e servizi;2;Acquisto di servizi;5;Utenze e canoni;4;Energia elettrica
1.077,70;ENEL ENERGIA SPA; ;Fatt.n. 004800135998 del 20/01/2017 CONGUAGLIO FORNITURA ENERGIA ELETTRICA. ANNO 2014. VIA FONTANE SNC.;17/02/2017;1937;0;446;1;Spese correnti;3;Acquisto di beni e servizi;2;Acquisto di servizi;5;Utenze e canoni;4;Energia elettrica
800;C.M.; ;Liquidazione ICDm terzo trimestre 2016. Cestari Gino.;17/02/2017;1909;0;443;1;Spese correnti;4;Trasferimenti correnti;2;Trasferimenti correnti a Famiglie;5;Altri trasferimenti a famiglie;999;Altri trasferimenti a famiglie n.a.c.
141,59;ANCIVENETO - ASSOCIAZIONE REG.LE COMUNI DEL VENETO; ;QUOTA ASSOCIATIVA BASE ANNO 2017.;17/02/2017;1060;0;35;1;Spese correnti;3;Acquisto di beni e servizi;2;Acquisto di servizi;99;Altri servizi;3;Quote di associazioni
194,41;ANCIVENETO - ASSOCIAZIONE REG.LE COMUNI DEL VENETO; ;QUOTA FORMAZIONE ANNO 2017.;17/02/2017;1060;0;35;1;Spese correnti;3;Acquisto di beni e servizi;2;Acquisto di servizi;99;Altri servizi;3;Quote di associazioni
250;ANUTEL; ;Quota adesione all'A.N.U.T.E.L. (Associazione Nazionale Uffici Tributi Enti Locali) anno 2017.;17/02/2017;1060;0;34;1;Spese correnti;3;Acquisto di beni e servizi;2;Acquisto di servizi;99;Altri servizi;3;Quote di associazioni
300;BABETTO LUCA; ;"Brillante... mente: borse di studio per merito anno scolastico 2015/2016.;24-02-2017;1523;0;445;1;Spese correnti;4;Trasferimenti correnti;2;Trasferimenti correnti a Famiglie;3;Borse di studio, dottorati di ricerca e contratti di formazione specialistica area medica""";1;Borse di studio;24/02/2017;;;;;;;;;;;
100;CALORE FEDERICA; ;"Brillante... mente: borse di studio per merito anno scolastico 2015/2016. Bassini Beatrice.;24-02-2017;1523;0;445;1;Spese correnti;4;Trasferimenti correnti;2;Trasferimenti correnti a Famiglie;3;Borse di studio, dottorati di ricerca e contratti di formazione specialistica area medica""";1;Borse di studio;24/02/2017;;;;;;;;;;;
300;CASARO ARIANNA; ;"Brillante... mente: borse di studio per merito anno scolastico 2015/2016. Liquidazione.;24-02-2017;1523;0;445;1;Spese correnti;4;Trasferimenti correnti;2;Trasferimenti correnti a Famiglie;3;Borse di studio, dottorati di ricerca e contratti di formazione specialistica area medica""";1;Borse di studio;24/02/2017;;;;;;;;;;;
100;FENATI MASSIMO; ;"Brillante... mente: borse di studio per merito anno scolastico 2015/2016. Fenati Viola.;24-02-2017;1523;0;445;1;Spese correnti;4;Trasferimenti correnti;2;Trasferimenti correnti a Famiglie;3;Borse di studio, dottorati di ricerca e contratti di formazione specialistica area medica""";1;Borse di studio;24/02/2017;;;;;;;;;;;
100;FORNASIERO MONIA; ;"Brillante... mente: borse di studio per merito anno scolastico 2015/2016. Veronese Isabella.;24-02-2017;1523;0;445;1;Spese correnti;4;Trasferimenti correnti;2;Trasferimenti correnti a Famiglie;3;Borse di studio, dottorati di ricerca e contratti di formazione specialistica area medica""";1;Borse di studio;24/02/2017;;;;;;;;;;;
400;GIROTTO MICHELA; ;"Brillante... mente: borse di studio per merito anno scolastico 2015/2016.;24-02-2017;1523;0;445;1;Spese correnti;4;Trasferimenti correnti;2;Trasferimenti correnti a Famiglie;3;Borse di studio, dottorati di ricerca e contratti di formazione specialistica area medica""";1;Borse di studio;24/02/2017;;;;;;;;;;;
200;MIGLIORINI STEFANIA; ;"Brillante... mente: borse di studio per merito anno scolastico 2015/2016. Girotto Filippo.;24-02-2017;1523;0;445;1;Spese correnti;4;Trasferimenti correnti;2;Trasferimenti correnti a Famiglie;3;Borse di studio, dottorati di ricerca e contratti di formazione specialistica area medica""";1;Borse di studio;24/02/2017;;;;;;;;;;;
200;RANDO GRAZIANO; ;"Brillante... mente: borse di studio per merito anno scolastico 2015/2016.  Rando Elena.;24-02-2017;1523;0;445;1;Spese correnti;4;Trasferimenti correnti;2;Trasferimenti correnti a Famiglie;3;Borse di studio, dottorati di ricerca e contratti di formazione specialistica area medica""";1;Borse di studio;24/02/2017;;;;;;;;;;;
400;RIZZO MATTIA; ;"Brillante... mente: borse di studio per merito anno scolastico 2015/2016.;24-02-2017;1523;0;445;1;Spese correnti;4;Trasferimenti correnti;2;Trasferimenti correnti a Famiglie;3;Borse di studio, dottorati di ricerca e contratti di formazione specialistica area medica""";1;Borse di studio;24/02/2017;;;;;;;;;;;
100;ZANGIROLAMI PAOLO; ;"Brillante... mente: borse di studio per merito anno scolastico 2015/2016. Zangirolami Ilaria.;24-02-2017;1523;0;445;1;Spese correnti;4;Trasferimenti correnti;2;Trasferimenti correnti a Famiglie;3;Borse di studio, dottorati di ricerca e contratti di formazione specialistica area medica""";1;Borse di studio;24/02/2017;;;;;;;;;;;
200;ZANIN LUISA; ;"Brillante... mente: borse di studio per merito anno scolastico 2015/2016. Paviera Alberto.;24-02-2017;1523;0;445;1;Spese correnti;4;Trasferimenti correnti;2;Trasferimenti correnti a Famiglie;3;Borse di studio, dottorati di ricerca e contratti di formazione specialistica area medica""";1;Borse di studio;24/02/2017;;;;;;;;;;;
100;ZANNATO SILVIA; ;"Brillante... mente: borse di studio per merito anno scolastico 2015/2016. Ardizzon Giulia.;24-02-2017;1523;0;445;1;Spese correnti;4;Trasferimenti correnti;2;Trasferimenti correnti a Famiglie;3;Borse di studio, dottorati di ricerca e contratti di formazione specialistica area medica""";1;Borse di studio;24/02/2017;;;;;;;;;;;
100;ZEGGIO VALENTINA; ;"Brillante... mente: borse di studio per merito anno scolastico 2015/2016. Bosco Sofia.;24-02-2017;1523;0;445;1;Spese correnti;4;Trasferimenti correnti;2;Trasferimenti correnti a Famiglie;3;Borse di studio, dottorati di ricerca e contratti di formazione specialistica area medica""";1;Borse di studio;24/02/2017;;;;;;;;;;;
219,5;ASSOCIAZIONE AUSER; ;Manifestazioni organizzate dal comune di Boara Pisani.;24/02/2017;1523;0;449;1;Spese correnti;4;Trasferimenti correnti;2;Trasferimenti correnti a Famiglie;3;Borse di studio, dottorati di ricerca e contratti di formazione specialistica area medica;1;Borse di studio
41.173,00;SO.GE.DI.CO. SRL;Z4F1BD760B;"SALDO Fatt.n. 13FPA  del 31/01/2017 Affidamento ""lavori di completamento al II' stralcio - opere di illuminazione pubblica"" relativi all'opera pubblica principale denominata Completamento opere P.I.P. 1' e 2' stralcio.";24/02/2017;3482;0;362;2;Spese in conto capitale;5;Altre spese in conto capitale;99;Altre spese in conto capitale n.a.c.;99;Altre spese in conto capitale n.a.c.;999;Altre spese in conto capitale n.a.c.
18.861,20;SPIGOLON ORFEO;Z6D1C00C1A;"SALDO Fatt.n. FATTPA 4_17  del 30/01/2017 ""Lavori di potatura, spollonatura e ripulitura di tutti i platani ricadenti nel centro abitato di Boara Pisani sul lato destro della Strada Statale n. 16 dal Km. 37+700 a la Km. 38+800 e abbattimento di un tr";24/02/2017;3480;0;375;2;Spese in conto capitale;2;Investimenti fissi lordi e acquisto di terreni;1;Beni materiali;9;Beni immobili;14;Opere per la sistemazione del suolo
976;AZIENDA AGRICOLA FERRUCCIO FORMAGGIO;ZDF198CAA1;SALDO Fatt.n. 01  del 09/01/2017 MANUTENZIONE, SFALCIO E TRINCIATURA PRIMA SCARPATA ARGINALE FIUME ADIGE;24/02/2017;1929;0;51;1;Spese correnti;3;Acquisto di beni e servizi;2;Acquisto di servizi;9;Manutenzione ordinaria e riparazioni;12;Manutenzione ordinaria e riparazioni di terreni e beni materiali non prodotti
579,6;I.M.A.B. COSTRUZIONI SRL;5021552BCA;SALDO Fatt.n. FATTPA 9_17  del 08/02/2017 RIQUALIFICAZIONE DELLA PIAZZA ANTISTANTE IL MUNICIPIO.;24/02/2017;3480;0;193;2;Spese in conto capitale;2;Investimenti fissi lordi e acquisto di terreni;1;Beni materiali;9;Beni immobili;12;Infrastrutture stradali
2.428,80;ACCATRE S.R.L.;Z8D1695908;SALDO Fatt.n. 1/170027  del 26/01/2017 SERVICE STIPENDI ANNO 2017;24/02/2017;1070;1;269;1;Spese correnti;3;Acquisto di beni e servizi;2;Acquisto di servizi;99;Altri servizi;999;Altri servizi diversi n.a.c.
20,8;ENEL ENERGIA SPA; ;SALDO Fatt.n. 004800202585  del 10/02/2017 FORNITURA ENERGIA ELETTRICA. GENNAIO 2017. PIAZZA ATHESIA SNC.;27/02/2017;1043;2;29;1;Spese correnti;3;Acquisto di beni e servizi;2;Acquisto di servizi;5;Utenze e canoni;4;Energia elettrica
120,43;ENEL ENERGIA SPA; ;SALDO Fatt.n. 004800204459  del 10/02/2017 FORNITURA ENERGIA ELETTRICA. DICEMBRE 2016-GENNAIO 2017. VIA GALLO 1.;27/02/2017;1043;2;29;1;Spese correnti;3;Acquisto di beni e servizi;2;Acquisto di servizi;5;Utenze e canoni;4;Energia elettrica
750,12;ENEL ENERGIA SPA; ;SALDO Fatt.n. 004800210856  del 11/02/2017 FORNITURA ENERGIA ELETTRICA. GENNAIO 2017. PIAZZA ATHESIA 5.;27/02/2017;1043;2;29;1;Spese correnti;3;Acquisto di beni e servizi;2;Acquisto di servizi;5;Utenze e canoni;4;Energia elettrica
786,02;ENEL ENERGIA SPA; ;SALDO Fatt.n. 004800202584  del 10/02/2017 FORNITURA ENERGIA ELETTRICA. DICEMBRE-GENNAIO 2017. PIAZZA ATHESIA 4.;27/02/2017;1043;2;29;1;Spese correnti;3;Acquisto di beni e servizi;2;Acquisto di servizi;5;Utenze e canoni;4;Energia elettrica
792,91;ENEL ENERGIA SPA; ;SALDO Fatt.n. 004800202583  del 10/02/2017 FORNITURA ENERGIA ELETTRICA. GENNAIO 2017. PIAZZA ATHESIA 2.;27/02/2017;1043;2;29;1;Spese correnti;3;Acquisto di beni e servizi;2;Acquisto di servizi;5;Utenze e canoni;4;Energia elettrica
451,07;ENEL ENERGIA SPA; ;ACCONTO Fatt.n. 004800204456  del 10/02/2017 FORNITURA ENERGIA ELETTRICA. GENNAIO 2017. VIA E. FERMI 18.;27/02/2017;1366;2;31;1;Spese correnti;3;Acquisto di beni e servizi;2;Acquisto di servizi;5;Utenze e canoni;4;Energia elettrica
451,08;ENEL ENERGIA SPA; ;SALDO Fatt.n. 004800204456  del 10/02/2017 FORNITURA ENERGIA ELETTRICA. GENNAIO 2017. VIA E. FERMI 18.;27/02/2017;1386;2;32;1;Spese correnti;3;Acquisto di beni e servizi;2;Acquisto di servizi;5;Utenze e canoni;4;Energia elettrica
124,74;ENEL ENERGIA SPA; ;SALDO Fatt.n. 004800204457  del 10/02/2017 FORNITURA ENERGIA ELETTRICA. DICEMBRE 2016-GENNAIO 2017. VIA GORGHETTI 4;27/02/2017;1656;0;30;1;Spese correnti;3;Acquisto di beni e servizi;2;Acquisto di servizi;5;Utenze e canoni;4;Energia elettrica
372,27;ENEL ENERGIA SPA; ;SALDO Fatt.n. 004800204458  del 10/02/2017 FORNITURA ENERGIA ELETTRICA. DICEMBRE 2016- GENNAIO 2017. VIA GORGHETTI SNC.;27/02/2017;1656;0;30;1;Spese correnti;3;Acquisto di beni e servizi;2;Acquisto di servizi;5;Utenze e canoni;4;Energia elettrica
202,01;ENEL ENERGIA SPA; ;SALDO Fatt.n. 004800206274  del 11/02/2017 FORNITURA ENERGIA ELETTRICA. DICEMBRE 2016-GENNAIO 2017.;27/02/2017;1826;0;33;1;Spese correnti;3;Acquisto di beni e servizi;2;Acquisto di servizi;5;Utenze e canoni;4;Energia elettrica
4,29;ENEL ENERGIA SPA; ;SALDO Fatt.n. 004800203382  del 10/02/2017 FORNITURA ENERGIA ELETTRICA. GENNAIO 2017. VIA VECCHIA SNC.;27/02/2017;1937;0;28;1;Spese correnti;3;Acquisto di beni e servizi;2;Acquisto di servizi;5;Utenze e canoni;4;Energia elettrica
20,18;ENEL ENERGIA SPA; ;SALDO Fatt.n. 004800203921  del 10/02/2017 FORNITURA ENERGIA ELETTRICA. GENNAIO 2017. VIA PASCOLON SNC;27/02/2017;1937;0;28;1;Spese correnti;3;Acquisto di beni e servizi;2;Acquisto di servizi;5;Utenze e canoni;4;Energia elettrica
20,18;ENEL ENERGIA SPA; ;SALDO Fatt.n. 004800203940  del 10/02/2017 FORNITURA ENERGIA ELETTRICA. GENNAIO 2017. VIA GALLO 23.;27/02/2017;1937;0;28;1;Spese correnti;3;Acquisto di beni e servizi;2;Acquisto di servizi;5;Utenze e canoni;4;Energia elettrica
49,59;ENEL ENERGIA SPA; ;SALDO Fatt.n. 004800203925  del 10/02/2017 FORNITURA ENERGIA ELETTRICA. GENNAIO 2017. VIA FERRARIA VIC 1.;27/02/2017;1937;0;28;1;Spese correnti;3;Acquisto di beni e servizi;2;Acquisto di servizi;5;Utenze e canoni;4;Energia elettrica
53,97;ENEL ENERGIA SPA; ;SALDO Fatt.n. 004800203919  del 10/02/2017 FORNITURA ENERGIA ELETTRICA. GENNAIO 2017. VIA PASCOLON 3.;27/02/2017;1937;0;28;1;Spese correnti;3;Acquisto di beni e servizi;2;Acquisto di servizi;5;Utenze e canoni;4;Energia elettrica
60,06;ENEL ENERGIA SPA; ;SALDO Fatt.n. 004800203923  del 10/02/2017 FORNITURA ENERGIA ELETTRICA. GENNAIO 2017. VIA DEL GATTO SNC.;27/02/2017;1937;0;28;1;Spese correnti;3;Acquisto di beni e servizi;2;Acquisto di servizi;5;Utenze e canoni;4;Energia elettrica
93,09;ENEL ENERGIA SPA; ;SALDO Fatt.n. 004800203937  del 10/02/2017 FORNITURA ENERGIA ELETTRICA. GENNAIO 2017. VIA ROMA VIC 4.;27/02/2017;1937;0;28;1;Spese correnti;3;Acquisto di beni e servizi;2;Acquisto di servizi;5;Utenze e canoni;4;Energia elettrica
94,85;ENEL ENERGIA SPA; ;SALDO Fatt.n. 004800203922  del 10/02/2017 FORNITURA ENERGIA ELETTRICA. GENNAIO 2017. VIA VOLTA SNC.;27/02/2017;1937;0;28;1;Spese correnti;3;Acquisto di beni e servizi;2;Acquisto di servizi;5;Utenze e canoni;4;Energia elettrica
100,25;ENEL ENERGIA SPA; ;SALDO Fatt.n. 004800203824  del 10/02/2017 FORNITURA ENERGIA ELETTRICA. GENNAIO 2017. VIA G. MARCONI VIC 7.;27/02/2017;1937;0;28;1;Spese correnti;3;Acquisto di beni e servizi;2;Acquisto di servizi;5;Utenze e canoni;4;Energia elettrica
110,63;ENEL ENERGIA SPA; ;SALDO Fatt.n. 004800203931  del 10/02/2017 FORNITURA ENERGIA ELETTRICA. GENNAIO 2017. VIA GORGHETTI VIC 2.;27/02/2017;1937;0;28;1;Spese correnti;3;Acquisto di beni e servizi;2;Acquisto di servizi;5;Utenze e canoni;4;Energia elettrica
355,48;ENEL ENERGIA SPA; ;SALDO Fatt.n. 004800203932  del 10/02/2017 FORNITURA ENERGIA ELETTRICA. GENNAIO 2017. VIA FERRARIA SNC.;27/02/2017;1937;0;28;1;Spese correnti;3;Acquisto di beni e servizi;2;Acquisto di servizi;5;Utenze e canoni;4;Energia elettrica
378,25;ENEL ENERGIA SPA; ;SALDO Fatt.n. 004800203918  del 10/02/2017 FORNITURA ENERGIA ELETTRICA. GENNAIO 2017. VIA ROMA SNC.;27/02/2017;1937;0;28;1;Spese correnti;3;Acquisto di beni e servizi;2;Acquisto di servizi;5;Utenze e canoni;4;Energia elettrica
404,92;ENEL ENERGIA SPA; ;SALDO Fatt.n. 004800203944  del 10/02/2017 FORNITURA ENERGIA ELETTRICA. GENNAIO 2017. VIA BONIOLE SNC.;27/02/2017;1937;0;28;1;Spese correnti;3;Acquisto di beni e servizi;2;Acquisto di servizi;5;Utenze e canoni;4;Energia elettrica
462,61;ENEL ENERGIA SPA; ;SALDO Fatt.n. 004800203938  del 10/02/2017 FORNITURA ENERGIA ELETTRICA. GENNAIO 2017. VIA L. DA VINCI VIC 1.;27/02/2017;1937;0;28;1;Spese correnti;3;Acquisto di beni e servizi;2;Acquisto di servizi;5;Utenze e canoni;4;Energia elettrica
533,64;ENEL ENERGIA SPA; ;SALDO Fatt.n. 004800203945  del 10/02/2017 FORNITURA ENERGIA ELETTRICA. GENNAIO 2017. VIA DELLO SPORT SN.;27/02/2017;1937;0;28;1;Spese correnti;3;Acquisto di beni e servizi;2;Acquisto di servizi;5;Utenze e canoni;4;Energia elettrica
604,77;ENEL ENERGIA SPA; ;SALDO Fatt.n. 004800203939  del 10/02/2017 FORNITURA ENERGIA ELETTRICA. GENNAIO 2017. VIA BARCHESSA VIC 5.;27/02/2017;1937;0;28;1;Spese correnti;3;Acquisto di beni e servizi;2;Acquisto di servizi;5;Utenze e canoni;4;Energia elettrica
636,56;ENEL ENERGIA SPA; ;SALDO Fatt.n. 004800203929  del 10/02/2017 FORNITURA ENERGIA ELETTRICA. GENNAIO 2017. VIA ROMA SNC.;27/02/2017;1937;0;28;1;Spese correnti;3;Acquisto di beni e servizi;2;Acquisto di servizi;5;Utenze e canoni;4;Energia elettrica
829,67;ENEL ENERGIA SPA; ;SALDO Fatt.n. 004800203930  del 10/02/2017 FORNITURA ENERGIA ELETTRICA. GENNAIO 2017. VIA XI NOVEMBRE SNC.;27/02/2017;1937;0;28;1;Spese correnti;3;Acquisto di beni e servizi;2;Acquisto di servizi;5;Utenze e canoni;4;Energia elettrica
872,89;ENEL ENERGIA SPA; ;SALDO Fatt.n. 004800203948  del 10/02/2017 FORNITURA ENERGIA ELETTRICA. GENNAIO 2017. VIA XXV APRILE SNC.;27/02/2017;1937;0;28;1;Spese correnti;3;Acquisto di beni e servizi;2;Acquisto di servizi;5;Utenze e canoni;4;Energia elettrica
1.176,17;ENEL ENERGIA SPA; ;SALDO Fatt.n. 004800203927  del 10/02/2017 FORNITURA ENERGIA ELETTRICA. GENNAIO 2017. VIA ROMA VIC 6.;27/02/2017;1937;0;28;1;Spese correnti;3;Acquisto di beni e servizi;2;Acquisto di servizi;5;Utenze e canoni;4;Energia elettrica
5,15;ENEL ENERGIA SPA; ;SALDO Fatt.n. 004800203828  del 10/02/2017 FORNITURA ENERGIA ELETTRICA. GENNAIO 2017. VIA ONARI VIC 4.;27/02/2017;1937;0;28;1;Spese correnti;3;Acquisto di beni e servizi;2;Acquisto di servizi;5;Utenze e canoni;4;Energia elettrica
9,97;ENEL ENERGIA SPA; ;SALDO Fatt.n. 004800203829  del 10/02/2017 FORNITURA ENERGIA ELETTRICA. GENNAIO 2017. VIA PASCOLON VIC 9.;27/02/2017;1937;0;28;1;Spese correnti;3;Acquisto di beni e servizi;2;Acquisto di servizi;5;Utenze e canoni;4;Energia elettrica
13,91;ENEL ENERGIA SPA; ;SALDO Fatt.n. 004800203825  del 10/02/2017 FORNITURA ENERGIA ELETTRICA. GENNAIO 2017. VIA CA' BIANCA SNC.;27/02/2017;1937;0;28;1;Spese correnti;3;Acquisto di beni e servizi;2;Acquisto di servizi;5;Utenze e canoni;4;Energia elettrica
14,46;ENEL ENERGIA SPA; ;SALDO Fatt.n. 004800203951  del 10/02/2017 FORNITURA ENERGIA ELETTRICA. GENNAIO 2017. VIA VECCHIA VIC 2.;27/02/2017;1937;0;28;1;Spese correnti;3;Acquisto di beni e servizi;2;Acquisto di servizi;5;Utenze e canoni;4;Energia elettrica
15,66;ENEL ENERGIA SPA; ;SALDO Fatt.n. 004800203826  del 10/02/2017 FORNITURA ENERGIA ELETTRICA. GENNAIO 2017. VIA DEL GATTO 1.;27/02/2017;1937;0;28;1;Spese correnti;3;Acquisto di beni e servizi;2;Acquisto di servizi;5;Utenze e canoni;4;Energia elettrica
18,31;ENEL ENERGIA SPA; ;SALDO Fatt.n. 004800203916  del 10/02/2017 FORNITURA ENERGIA ELETTRICA. GENNAIO 2017. VIA DEL GATTO17.;27/02/2017;1937;0;28;1;Spese correnti;3;Acquisto di beni e servizi;2;Acquisto di servizi;5;Utenze e canoni;4;Energia elettrica
19,18;ENEL ENERGIA SPA; ;SALDO Fatt.n. 004800203936  del 10/02/2017 FORNITURA ENERGIA ELETTRICA. GENNAIO 2017. VIA SABBIONI VIC 3.;27/02/2017;1937;0;28;1;Spese correnti;3;Acquisto di beni e servizi;2;Acquisto di servizi;5;Utenze e canoni;4;Energia elettrica
25,03;ENEL ENERGIA SPA; ;SALDO Fatt.n. 004800203256  del 10/02/2017 FORNITURA ENERGIA ELETTRICA. GENNAIO 2017. VIA BRAGANTE SNC.;27/02/2017;1937;0;28;1;Spese correnti;3;Acquisto di beni e servizi;2;Acquisto di servizi;5;Utenze e canoni;4;Energia elettrica
32,26;ENEL ENERGIA SPA; ;SALDO Fatt.n. 004800203942  del 10/02/2017 FORNITURA ENERGIA ELETTRICA. GENNAIO 2017. VIA FONTANE VIC 2.;27/02/2017;1937;0;28;1;Spese correnti;3;Acquisto di beni e servizi;2;Acquisto di servizi;5;Utenze e canoni;4;Energia elettrica
47,88;ENEL ENERGIA SPA; ;SALDO Fatt.n. 004800203823  del 10/02/2017 FORNITURA ENERGIA ELETTRICA. GENNAIO 2017. VIA PASCOLON VIC 2.;27/02/2017;1937;0;28;1;Spese correnti;3;Acquisto di beni e servizi;2;Acquisto di servizi;5;Utenze e canoni;4;Energia elettrica
48,96;ENEL ENERGIA SPA; ;SALDO Fatt.n. 004800203928  del 10/02/2017 FORNITURA ENERGIA ELETTRICA. GENNAIO 2017. VIA SABBIONI VIC 4.;27/02/2017;1937;0;28;1;Spese correnti;3;Acquisto di beni e servizi;2;Acquisto di servizi;5;Utenze e canoni;4;Energia elettrica
66,66;ENEL ENERGIA SPA; ;SALDO Fatt.n. 004800203830  del 10/02/2017 FORNITURA ENERGIA ELETTRICA. GENNAIO 2017. VIA FERRARIA VIC 3.;27/02/2017;1937;0;28;1;Spese correnti;3;Acquisto di beni e servizi;2;Acquisto di servizi;5;Utenze e canoni;4;Energia elettrica
165,46;ENEL ENERGIA SPA; ;SALDO Fatt.n. 004800203933  del 10/02/2017 FORNITURA ENERGIA ELETTRICA. GENNAIO 2017. VIA ONARI VIC 3.;27/02/2017;1937;0;28;1;Spese correnti;3;Acquisto di beni e servizi;2;Acquisto di servizi;5;Utenze e canoni;4;Energia elettrica
169,84;ENEL ENERGIA SPA; ;SALDO Fatt.n. 004800203943  del 10/02/2017 FORNITURA ENERGIA ELETTRICA. GENNAIO 2017. VIA STRADON 27.;27/02/2017;1937;0;28;1;Spese correnti;3;Acquisto di beni e servizi;2;Acquisto di servizi;5;Utenze e canoni;4;Energia elettrica
175,77;ENEL ENERGIA SPA; ;SALDO Fatt.n. 004800203949  del 10/02/2017 FORNITURA ENERGIA ELETTRICA. GENNAIO 2017. VIA FERRARIA SNC.;27/02/2017;1937;0;28;1;Spese correnti;3;Acquisto di beni e servizi;2;Acquisto di servizi;5;Utenze e canoni;4;Energia elettrica
187,12;ENEL ENERGIA SPA; ;SALDO Fatt.n. 004800203934  del 10/02/2017 FORNITURA ENERGIA ELETTRICA. GENNAIO 2017. VIA FERRATA 3.;27/02/2017;1937;0;28;1;Spese correnti;3;Acquisto di beni e servizi;2;Acquisto di servizi;5;Utenze e canoni;4;Energia elettrica
234,73;ENEL ENERGIA SPA; ;SALDO Fatt.n. 004800203947  del 10/02/2017 FORNITURA ENERGIA ELETTRICA. GENNAIO 2017. VIA BONIOLE SNC.;27/02/2017;1937;0;28;1;Spese correnti;3;Acquisto di beni e servizi;2;Acquisto di servizi;5;Utenze e canoni;4;Energia elettrica
248,2;ENEL ENERGIA SPA; ;SALDO Fatt.n. 004800203926  del 10/02/2017 FORNITURA ENERGIA ELETTRICA. GENNAIO 2017. VIA CANALETTA SNC.;27/02/2017;1937;0;28;1;Spese correnti;3;Acquisto di beni e servizi;2;Acquisto di servizi;5;Utenze e canoni;4;Energia elettrica
259,03;ENEL ENERGIA SPA; ;SALDO Fatt.n. 004800203917  del 10/02/2017 FORNITURA ENERGIA ELETTRICA. GENNAIO 2017. VIA II GIUGNO 1.;27/02/2017;1937;0;28;1;Spese correnti;3;Acquisto di beni e servizi;2;Acquisto di servizi;5;Utenze e canoni;4;Energia elettrica
404,8;ENEL ENERGIA SPA; ;SALDO Fatt.n. 004800203941  del 10/02/2017 FORNITURA ENERGIA ELETTRICA. GENNAIO 2017. VIA BONIOLE SNC.;27/02/2017;1937;0;28;1;Spese correnti;3;Acquisto di beni e servizi;2;Acquisto di servizi;5;Utenze e canoni;4;Energia elettrica
353,11;BNP PARIBAS LEASING SOLUTIONS SPA;Z520C61179;Fatt.n. AYA21833 del 16/01/2017 NOLEGGIO STAMPANTI MULTIFUNZIONE. 2^ RATA FEBBRAIO 2017;27/02/2017;1077;0;14;1;Spese correnti;3;Acquisto di beni e servizi;2;Acquisto di servizi;19;Servizi informatici e di telecomunicazioni;11;Processi trasversali alle classi di servizio
1.307,18;SINERGIE SPA;3888505FD2;Fatt.n. 331700000241 del 31/01/2017 FORNITURA CALORE A.T. 2016-2017. 4^ RATA GENNAIO 2017.;27/02/2017;1043;3;18;1;Spese correnti;3;Acquisto di beni e servizi;2;Acquisto di servizi;5;Utenze e canoni;6;Gas
2.614,40;SINERGIE SPA;3888505FD2;Fatt.n. 331700000241 del 31/01/2017 FORNITURA CALORE A.T. 2016-2017. 4^ RATA GENNAIO 2017.;27/02/2017;1366;3;19;1;Spese correnti;3;Acquisto di beni e servizi;2;Acquisto di servizi;5;Utenze e canoni;6;Gas
2.614,40;SINERGIE SPA;3888505FD2;Fatt.n. 331700000241 del 31/01/2017 FORNITURA CALORE A.T. 2016-2017. 4^ RATA GENNAIO 2017.;27/02/2017;1386;3;20;1;Spese correnti;3;Acquisto di beni e servizi;2;Acquisto di servizi;5;Utenze e canoni;6;Gas
295,75;GRAFICHE E. GASPARI SRL.;Z9D1CC8B90;SALDO Fatt.n. 00531  del 31/01/2017 FORNITURA CARTUCCE PER STAMPANTI UFF. DEMOGRAFICI;07/03/2017;1116;0;480;1;Spese correnti;3;Acquisto di beni e servizi;1;Acquisto di beni;2;Altri beni di consumo;999;Altri beni e materiali di consumo n.a.c.
246;LO STATO CIVILE ITALIANO - SEPEL;Z251CC2987;"SALDO Fatt.n. 2/106  del 19/01/2017 ABBONAMENTO RIVISTA ""LO STATO CIVILE ITALIANO""";07/03/2017;1119;0;455;1;Spese correnti;3;Acquisto di beni e servizi;1;Acquisto di beni;1;Giornali, riviste e pubblicazioni;2;Pubblicazioni
619,92;GIOLO GIANFRANCO AUTOFFICINA;ZB81CBC2FB;SALDO Fatt.n. 02/E  del 18/01/2017 Riparazione e manutenzione autoveicoli della polizia locale, dei servizi sociali e della protezione civile.;07/03/2017;1270;1;442;1;Spese correnti;3;Acquisto di beni e servizi;2;Acquisto di servizi;9;Manutenzione ordinaria e riparazioni;1;Manutenzione ordinaria e riparazioni di mezzi di trasporto ad uso civile, di sicurezza e ordine pubblico
43;ASL 18 DI ROVIGO; ;SALDO Fatt.n. VE  201700000017  del 01/02/2017 CUSTODIA E MANTENIMENTO CANI E GATTI RANDAGI;07/03/2017;1621;0;25;1;Spese correnti;4;Trasferimenti correnti;1;Trasferimenti correnti a Amministrazioni Pubbliche;2;Trasferimenti correnti a Amministrazioni Locali;11;Trasferimenti correnti a Aziende sanitarie locali  n.a.f.
806,82;SINERGIE SPA;ZB81C59772;SALDO Fatt.n. 331700000054  del 19/01/2017 SERVIZIO FORNITURA CALORE REFERENDUM 04/12/2016;07/03/2017;1006;2;362;1;Spese correnti;3;Acquisto di beni e servizi;2;Acquisto di servizi;99;Altri servizi;4;Altre spese per consultazioni elettorali dell'ente
30,4;DEI ROSSI FRANCESCO;Z931C9C207;ACCONTO Fatt.n. 3  del 14/01/2017 ACQUISTO MATERIALE INFORMATICO PER SCUOLE DI BOARA PISANI;07/03/2017;1052;0;409;1;Spese correnti;3;Acquisto di beni e servizi;1;Acquisto di beni;1;Giornali, riviste e pubblicazioni;2;Pubblicazioni
318;DEI ROSSI FRANCESCO;Z931C9C207;ACCONTO Fatt.n. 3  del 14/01/2017 ACQUISTO MATERIALE INFORMATICO PER SCUOLE DI BOARA PISANI;07/03/2017;1389;0;408;1;Spese correnti;3;Acquisto di beni e servizi;1;Acquisto di beni;2;Altri beni di consumo;6;Materiale informatico
42;DEI ROSSI FRANCESCO;Z931C9C207;SALDO Fatt.n. 3  del 14/01/2017 ACQUISTO MATERIALE INFORMATICO PER SCUOLE DI BOARA PISANI;07/03/2017;1500;0;410;1;Spese correnti;3;Acquisto di beni e servizi;1;Acquisto di beni;1;Giornali, riviste e pubblicazioni;2;Pubblicazioni
6,05;AGENZIA DELLE ENTRATE; ;INTROITI IMU DI COMPETENZA DELL'IFEL. VERSAMENTI IMU FINO ALLA DATA DEL 18/10/2016. Mandato di pagamento integralmente compensato da ordinativo d'incasso n. 170/2017 emesso in data odierna.;15/03/2017;1065;0;337;1;Spese correnti;4;Trasferimenti correnti;1;Trasferimenti correnti a Amministrazioni Pubbliche;2;Trasferimenti correnti a Amministrazioni Locali;19;Trasferimenti correnti a Fondazioni e istituzioni liriche locali e a Teatri stabili di iniziativa pubblica
1,53;AGENZIA DELLE ENTRATE; ;INTROITI IMU DI COMPETENZA DELL'IFEL. VERSAMENTI IMU FINO ALLA DATA DEL 18/10/2016. Mandato di pagamento integralmente compensato da ordinativo d'incasso n. 171/2017 emesso in data odierna.;15/03/2017;1065;0;336;1;Spese correnti;4;Trasferimenti correnti;1;Trasferimenti correnti a Amministrazioni Pubbliche;2;Trasferimenti correnti a Amministrazioni Locali;19;Trasferimenti correnti a Fondazioni e istituzioni liriche locali e a Teatri stabili di iniziativa pubblica
3,68;AGENZIA DELLE ENTRATE; ;INTROITI IMU 2016 DI COMPETENZA DELL'IFEL. VERSAMENTI IMU FINO ALLA DATA DEL 05/12/2016. Mandato di pagamento integralmente compensato da ordinativo d'incasso n. 172/2017 emesso in data odierna.;15/03/2017;1065;0;381;1;Spese correnti;4;Trasferimenti correnti;1;Trasferimenti correnti a Amministrazioni Pubbliche;2;Trasferimenti correnti a Amministrazioni Locali;19;Trasferimenti correnti a Fondazioni e istituzioni liriche locali e a Teatri stabili di iniziativa pubblica
3,51;AGENZIA DELLE ENTRATE; ;INTROITI ACCERTAMENTI IMU  DI COMPETENZA DELL'IFEL. VERSAMENTI IMU FINO ALLA DATA DEL 05/12/2016. Mandato di pagamento integralmente compensato da ordinativo d'incasso n. 173/2017 emesso in data odierna.;15/03/2017;1065;0;382;1;Spese correnti;4;Trasferimenti correnti;1;Trasferimenti correnti a Amministrazioni Pubbliche;2;Trasferimenti correnti a Amministrazioni Locali;19;Trasferimenti correnti a Fondazioni e istituzioni liriche locali e a Teatri stabili di iniziativa pubblica
132,02;AGENZIA DELLE ENTRATE; ;INTROITI ACCERTAMENTI IMU DI COMPETENZA DELL'IFEL. VERSAMENTI IMU FINO ALLA DATA DEL 05/12/2016. Mandato di pagamento integralmente compensato da ordinativo d'incasso n. 174/2017 emesso in data odierna.;15/03/2017;1065;0;457;1;Spese correnti;4;Trasferimenti correnti;1;Trasferimenti correnti a Amministrazioni Pubbliche;2;Trasferimenti correnti a Amministrazioni Locali;19;Trasferimenti correnti a Fondazioni e istituzioni liriche locali e a Teatri stabili di iniziativa pubblica
3,98;AGENZIA DELLE ENTRATE; ;INTROITI IMU DI COMPETENZA DELL'IFEL. VERSAMENTI IMU FINO ALLA DATA DEL 31/12/2016. Mandato di pagamento integralmente compensato da ordinativo d'incasso n. 175/2017 emesso in data odierna.;15/03/2017;1065;0;469;1;Spese correnti;4;Trasferimenti correnti;1;Trasferimenti correnti a Amministrazioni Pubbliche;2;Trasferimenti correnti a Amministrazioni Locali;19;Trasferimenti correnti a Fondazioni e istituzioni liriche locali e a Teatri stabili di iniziativa pubblica
2,34;AGENZIA DELLE ENTRATE; ;SOMME DI COMPETENZA DELL'IFEL ANNO 2016. Mandato di pagamento integralmente compensato da ordinativo d'incasso n. 176/2017 emesso in data odierna.;15/03/2017;1065;0;506;1;Spese correnti;4;Trasferimenti correnti;1;Trasferimenti correnti a Amministrazioni Pubbliche;2;Trasferimenti correnti a Amministrazioni Locali;19;Trasferimenti correnti a Fondazioni e istituzioni liriche locali e a Teatri stabili di iniziativa pubblica
0,15;AGENZIA DELLE ENTRATE; ;SOMME DI COMPETENZA DELL'IFEL ANNO 2016. Mandato di pagamento integralmente compensato da ordinativo d'incasso n. 177/2017 emesso in data odierna.;15/03/2017;1065;0;506;1;Spese correnti;4;Trasferimenti correnti;1;Trasferimenti correnti a Amministrazioni Pubbliche;2;Trasferimenti correnti a Amministrazioni Locali;19;Trasferimenti correnti a Fondazioni e istituzioni liriche locali e a Teatri stabili di iniziativa pubblica
28,16;EQUITALIA NORD SPA-AGENTE RISCOSSIONE  PROV. RO.; ;RUOLI POLIZIA LOCALE RISCOSSIONI DAL 30-09-2016 AL 30-11-2016. Mandato di pagamento integralmente compensato da ordinativo d'incasso n. 178/2017 emesso in data odierna.;15/03/2017;1187;0;430;1;Spese correnti;3;Acquisto di beni e servizi;2;Acquisto di servizi;3;Aggi di riscossione;999;Altri aggi di riscossione n.a.c.
4,1;EQUITALIA NORD SPA-AGENTE RISCOSSIONE  PROV. RO.; ;RUOLI POLIZIA LOCALE RISCOSSIONI DAL 30-09-2016 AL 30-11-2016. Mandato di pagamento integralmente compensato da ordinativo d'incasso n. 179/2017 emesso in data odierna.;15/03/2017;1187;0;431;1;Spese correnti;3;Acquisto di beni e servizi;2;Acquisto di servizi;3;Aggi di riscossione;999;Altri aggi di riscossione n.a.c.
5,34;EQUITALIA NORD SPA-AGENTE RISCOSSIONE  PROV. RO.; ;SPESE PER LA RISCOSSIONE DEI TRIBUTI COMUNALI. ANNO 2016. Mandato di pagamento integralmente compensato da ordinativo d'incasso n. 180/2017 emesso in data odierna.;15/03/2017;1187;0;508;1;Spese correnti;3;Acquisto di beni e servizi;2;Acquisto di servizi;3;Aggi di riscossione;999;Altri aggi di riscossione n.a.c.
1,25;EQUITALIA NORD SPA-AGENTE RISCOSSIONE  PROV. RO.; ;SPESE PER LA RISCOSSIONE DEI TRIBUTI COMUNALI. ANNO 2016. Mandato di pagamento integralmente compensato da ordinativo d'incasso n. 181/2017 emesso in data odierna.;15/03/2017;1187;0;508;1;Spese correnti;3;Acquisto di beni e servizi;2;Acquisto di servizi;3;Aggi di riscossione;999;Altri aggi di riscossione n.a.c.
50,59;VODAFONE ITALIA SPA; ;Fatt.n. 1604386921 del 16/12/2016 RICARICA BORSELLINO TELEFONIA MOBILE;15/03/2017;1043;1;368;1;Spese correnti;3;Acquisto di beni e servizi;2;Acquisto di servizi;5;Utenze e canoni;2;Telefonia mobile
174,8;CASSA DI RISPARMIO DEL VENETO;Z311BB315D;Fatt.n. V6000111 del 11/11/2016 CANONE ANNO 2016 SERVIZIO ORDINATIVO INFORMATICO.;15/03/2017;1054;0;348;1;Spese correnti;3;Acquisto di beni e servizi;2;Acquisto di servizi;17;Servizi finanziari;2;Oneri per servizio di tesoreria
2,04;AUTOSTRADE PER L'ITALIA S.P.A; ;Fatt.n. 900023731D del 30/10/2016 PEDAGGI AUTOSTRADALI. SETTEMBRE-OTTOBRE 2016.;15/03/2017;1084;0;339;1;Spese correnti;3;Acquisto di beni e servizi;2;Acquisto di servizi;2;Organizzazione eventi, pubblicita` e servizi per trasferta;999;Altre spese per relazioni pubbliche, convegni e mostre, pubblicita` n.a.c
4,79;AUTOSTRADE PER L'ITALIA S.P.A; ;Fatt.n. 900026107D del 30/11/2016 PEDAGGI AUTOSTRADALI. OTTOBRE-NOVEMBRE 2016;15/03/2017;1084;0;427;1;Spese correnti;3;Acquisto di beni e servizi;2;Acquisto di servizi;2;Organizzazione eventi, pubblicita` e servizi per trasferta;999;Altre spese per relazioni pubbliche, convegni e mostre, pubblicita` n.a.c
4,26;AUTOSTRADE PER L'ITALIA S.P.A; ;Fatt.n. 900028453D del 30/12/2016 PEDAGGI AUTOSTRADALI. NOVEMBRE-DICEMBRE 2016.;15/03/2017;1264;0;471;1;Spese correnti;3;Acquisto di beni e servizi;2;Acquisto di servizi;2;Organizzazione eventi, pubblicita` e servizi per trasferta;999;Altre spese per relazioni pubbliche, convegni e mostre, pubblicita` n.a.c
12,91;ENI SPA DIVISIONE GAS & POWER; ;Fatt.n. 29645682 del 31/07/2016 ACQUISTO CARBURANTE MEZZI COM.LI. LUGLIO 2016.;15/03/2017;1270;0;239;1;Spese correnti;3;Acquisto di beni e servizi;1;Acquisto di beni;2;Altri beni di consumo;2;Carburanti, combustibili e lubrificanti
4,61;ENI SPA DIVISIONE GAS & POWER; ;Fatt.n. 29741859 del 31/08/2016 ACQUISTO CARBURANTE MEZZI COM.LI AGOSTO 2016.;15/03/2017;1270;0;256;1;Spese correnti;3;Acquisto di beni e servizi;1;Acquisto di beni;2;Altri beni di consumo;2;Carburanti, combustibili e lubrificanti
20,16;ENI SPA DIVISIONE GAS & POWER; ;Fatt.n. 29645682 del 31/07/2016 ACQUISTO CARBURANTE MEZZI COM.LI. LUGLIO 2016.;15/03/2017;1271;0;240;1;Spese correnti;3;Acquisto di beni e servizi;1;Acquisto di beni;2;Altri beni di consumo;2;Carburanti, combustibili e lubrificanti
32,27;ENI SPA DIVISIONE GAS & POWER; ;Fatt.n. 29645682 del 31/07/2016 ACQUISTO CARBURANTE MEZZI COM.LI. LUGLIO 2016.;15/03/2017;1417;0;237;1;Spese correnti;3;Acquisto di beni e servizi;1;Acquisto di beni;2;Altri beni di consumo;2;Carburanti, combustibili e lubrificanti
19,94;ENI SPA DIVISIONE GAS & POWER; ;Fatt.n. 29645682 del 31/07/2016 ACQUISTO CARBURANTE MEZZI COM.LI. LUGLIO 2016.;15/03/2017;1901;1;238;1;Spese correnti;3;Acquisto di beni e servizi;1;Acquisto di beni;2;Altri beni di consumo;2;Carburanti, combustibili e lubrificanti
17,53;ENI SPA DIVISIONE GAS & POWER; ;Fatt.n. 29741859 del 31/08/2016 ACQUISTO CARBURANTE MEZZI COM.LI AGOSTO 2016.;15/03/2017;1901;1;255;1;Spese correnti;3;Acquisto di beni e servizi;1;Acquisto di beni;2;Altri beni di consumo;2;Carburanti, combustibili e lubrificanti
180,02;ENI SPA DIVISIONE GAS & POWER; ;Fatt.n. 29645682 del 31/07/2016 ACQUISTO CARBURANTE MEZZI COM.LI. LUGLIO 2016.;15/03/2017;1925;0;236;1;Spese correnti;3;Acquisto di beni e servizi;1;Acquisto di beni;2;Altri beni di consumo;2;Carburanti, combustibili e lubrificanti
129,36;ENI SPA DIVISIONE GAS & POWER; ;Fatt.n. 29741859 del 31/08/2016 ACQUISTO CARBURANTE MEZZI COM.LI AGOSTO 2016.;15/03/2017;1925;0;254;1;Spese correnti;3;Acquisto di beni e servizi;1;Acquisto di beni;2;Altri beni di consumo;2;Carburanti, combustibili e lubrificanti
51,06;ENI SPA DIVISIONE GAS & POWER; ;ENI SPA DIVISIONE GAS & POWER-ACQUISTO CARBURANTE MEZZI COMUNALI. SETTEMBRE 2016. (P.       1 -R.       1);15/03/2017;1270;0;418;1;Spese correnti;3;Acquisto di beni e servizi;1;Acquisto di beni;2;Altri beni di consumo;2;Carburanti, combustibili e lubrificanti
79,08;ENI SPA DIVISIONE GAS & POWER; ;ENI SPA DIVISIONE GAS & POWER-ACQUISTO CARBURANTE MEZZI COMUNALI. NOVEMBRE 2016. (P.      18 -R.     190);15/03/2017;1270;0;425;1;Spese correnti;3;Acquisto di beni e servizi;1;Acquisto di beni;2;Altri beni di consumo;2;Carburanti, combustibili e lubrificanti
108,27;ENI SPA DIVISIONE GAS & POWER; ;ENI SPA DIVISIONE GAS & POWER-ACQUISTO CARBURANTE MEZZI COMUNALI. OTTOBRE 2016. (P.       9 -R.      35);15/03/2017;1271;0;422;1;Spese correnti;3;Acquisto di beni e servizi;1;Acquisto di beni;2;Altri beni di consumo;2;Carburanti, combustibili e lubrificanti
291,98;ENI SPA DIVISIONE GAS & POWER; ;ENI SPA DIVISIONE GAS & POWER-ACQUISTO CARBURANTE MEZZI COMUNALI. SETTEMBRE 2016. (P.       1 -R.       1);15/03/2017;1417;0;416;1;Spese correnti;3;Acquisto di beni e servizi;1;Acquisto di beni;2;Altri beni di consumo;2;Carburanti, combustibili e lubrificanti
230,88;ENI SPA DIVISIONE GAS & POWER; ;ENI SPA DIVISIONE GAS & POWER-ACQUISTO CARBURANTE MEZZI COMUNALI. OTTOBRE 2016. (P.       9 -R.      35);15/03/2017;1417;0;420;1;Spese correnti;3;Acquisto di beni e servizi;1;Acquisto di beni;2;Altri beni di consumo;2;Carburanti, combustibili e lubrificanti
415,74;ENI SPA DIVISIONE GAS & POWER; ;ENI SPA DIVISIONE GAS & POWER-ACQUISTO CARBURANTE MEZZI COMUNALI. NOVEMBRE 2016. (P.      18 -R.     190);15/03/2017;1417;0;424;1;Spese correnti;3;Acquisto di beni e servizi;1;Acquisto di beni;2;Altri beni di consumo;2;Carburanti, combustibili e lubrificanti
89,34;ENI SPA DIVISIONE GAS & POWER; ;ENI SPA DIVISIONE GAS & POWER-ACQUISTO CARBURANTE MEZZI COMUNALI. SETTEMBRE 2016. (P.       1 -R.       1);15/03/2017;1901;1;417;1;Spese correnti;3;Acquisto di beni e servizi;1;Acquisto di beni;2;Altri beni di consumo;2;Carburanti, combustibili e lubrificanti
51,9;ENI SPA DIVISIONE GAS & POWER; ;ENI SPA DIVISIONE GAS & POWER-ACQUISTO CARBURANTE MEZZI COMUNALI. OTTOBRE 2016. (P.       9 -R.      35);15/03/2017;1901;1;421;1;Spese correnti;3;Acquisto di beni e servizi;1;Acquisto di beni;2;Altri beni di consumo;2;Carburanti, combustibili e lubrificanti
513,37;ENI SPA DIVISIONE GAS & POWER; ;ENI SPA DIVISIONE GAS & POWER-ACQUISTO CARBURANTE MEZZI COMUNALI. SETTEMBRE 2016. (P.       1 -R.       1);15/03/2017;1925;0;415;1;Spese correnti;3;Acquisto di beni e servizi;1;Acquisto di beni;2;Altri beni di consumo;2;Carburanti, combustibili e lubrificanti
192,56;ENI SPA DIVISIONE GAS & POWER; ;ENI SPA DIVISIONE GAS & POWER-ACQUISTO CARBURANTE MEZZI COMUNALI. OTTOBRE 2016. (P.       9 -R.      35);15/03/2017;1925;0;419;1;Spese correnti;3;Acquisto di beni e servizi;1;Acquisto di beni;2;Altri beni di consumo;2;Carburanti, combustibili e lubrificanti
220,85;ENI SPA DIVISIONE GAS & POWER; ;ENI SPA DIVISIONE GAS & POWER-ACQUISTO CARBURANTE MEZZI COMUNALI. NOVEMBRE 2016. (P.      18 -R.     190);15/03/2017;1925;0;423;1;Spese correnti;3;Acquisto di beni e servizi;1;Acquisto di beni;2;Altri beni di consumo;2;Carburanti, combustibili e lubrificanti
11,23;ENI SPA DIVISIONE GAS & POWER; ;Fatt.n. 29838990 del 30/09/2016 ACQUISTO CARBURANTE MEZZI COMUNALI. SETTEMBRE 2016.;15/03/2017;1270;0;418;1;Spese correnti;3;Acquisto di beni e servizi;1;Acquisto di beni;2;Altri beni di consumo;2;Carburanti, combustibili e lubrificanti
17,4;ENI SPA DIVISIONE GAS & POWER; ;Fatt.n. 30034313 del 30/11/2016 FORNITURA CARBURANTE MEZZI COM.LI. NOVEMBRE 2016.;15/03/2017;1270;0;425;1;Spese correnti;3;Acquisto di beni e servizi;1;Acquisto di beni;2;Altri beni di consumo;2;Carburanti, combustibili e lubrificanti
24,81;ENI SPA DIVISIONE GAS & POWER; ;Fatt.n. 29936827 del 31/10/2016 ACQUISTO CARBURANTE MEZZI COMUNALI. OTTOBRE 2016.;15/03/2017;1271;0;422;1;Spese correnti;3;Acquisto di beni e servizi;1;Acquisto di beni;2;Altri beni di consumo;2;Carburanti, combustibili e lubrificanti
64,02;ENI SPA DIVISIONE GAS & POWER; ;Fatt.n. 29838990 del 30/09/2016 ACQUISTO CARBURANTE MEZZI COMUNALI. SETTEMBRE 2016.;15/03/2017;1417;0;416;1;Spese correnti;3;Acquisto di beni e servizi;1;Acquisto di beni;2;Altri beni di consumo;2;Carburanti, combustibili e lubrificanti
51,58;ENI SPA DIVISIONE GAS & POWER; ;Fatt.n. 29936827 del 31/10/2016 ACQUISTO CARBURANTE MEZZI COMUNALI. OTTOBRE 2016.;15/03/2017;1417;0;420;1;Spese correnti;3;Acquisto di beni e servizi;1;Acquisto di beni;2;Altri beni di consumo;2;Carburanti, combustibili e lubrificanti
91,26;ENI SPA DIVISIONE GAS & POWER; ;Fatt.n. 30034313 del 30/11/2016 FORNITURA CARBURANTE MEZZI COM.LI. NOVEMBRE 2016.;15/03/2017;1417;0;424;1;Spese correnti;3;Acquisto di beni e servizi;1;Acquisto di beni;2;Altri beni di consumo;2;Carburanti, combustibili e lubrificanti
20,66;ENI SPA DIVISIONE GAS & POWER; ;Fatt.n. 29838990 del 30/09/2016 ACQUISTO CARBURANTE MEZZI COMUNALI. SETTEMBRE 2016.;15/03/2017;1901;1;417;1;Spese correnti;3;Acquisto di beni e servizi;1;Acquisto di beni;2;Altri beni di consumo;2;Carburanti, combustibili e lubrificanti
11,2;ENI SPA DIVISIONE GAS & POWER; ;Fatt.n. 29936827 del 31/10/2016 ACQUISTO CARBURANTE MEZZI COMUNALI. OTTOBRE 2016.;15/03/2017;1901;1;421;1;Spese correnti;3;Acquisto di beni e servizi;1;Acquisto di beni;2;Altri beni di consumo;2;Carburanti, combustibili e lubrificanti
113,96;ENI SPA DIVISIONE GAS & POWER; ;Fatt.n. 29838990 del 30/09/2016 ACQUISTO CARBURANTE MEZZI COMUNALI. SETTEMBRE 2016.;15/03/2017;1925;0;415;1;Spese correnti;3;Acquisto di beni e servizi;1;Acquisto di beni;2;Altri beni di consumo;2;Carburanti, combustibili e lubrificanti
42,13;ENI SPA DIVISIONE GAS & POWER; ;Fatt.n. 29936827 del 31/10/2016 ACQUISTO CARBURANTE MEZZI COMUNALI. OTTOBRE 2016.;15/03/2017;1925;0;419;1;Spese correnti;3;Acquisto di beni e servizi;1;Acquisto di beni;2;Altri beni di consumo;2;Carburanti, combustibili e lubrificanti
48,37;ENI SPA DIVISIONE GAS & POWER; ;Fatt.n. 30034313 del 30/11/2016 FORNITURA CARBURANTE MEZZI COM.LI. NOVEMBRE 2016.;15/03/2017;1925;0;423;1;Spese correnti;3;Acquisto di beni e servizi;1;Acquisto di beni;2;Altri beni di consumo;2;Carburanti, combustibili e lubrificanti
225,41;VODAFONE ITALIA SPA;Z8A0B59EBF;RICARICA BORSELLINO 333565 TELEFONIA MOBILE.;15/03/2017;1043;1;62;1;Spese correnti;3;Acquisto di beni e servizi;2;Acquisto di servizi;5;Utenze e canoni;2;Telefonia mobile
555,87;ANCI - ASSOCIAZIONE NAZIONALE COMUNI ITALIANI; ;Quota associativa ANCI - Anno 2017.;15/03/2017;1060;0;61;1;Spese correnti;3;Acquisto di beni e servizi;2;Acquisto di servizi;99;Altri servizi;3;Quote di associazioni
50,41;TELECOM ITALIA S.P.A.; ;SALDO Fatt.n. 2E17002575  del 20/02/2017 NUMERO VERDE ASSISTENZA SOCIALE. MARZO 2017.;15/03/2017;1835;0;10;1;Spese correnti;3;Acquisto di beni e servizi;2;Acquisto di servizi;5;Utenze e canoni;1;Telefonia fissa
50,59;VODAFONE ITALIA SPA;Z8A0B59EBF;SALDO Fatt.n. 1704230397  del 17/03/2017 RICARICA BORSELLINO TELEFONIA MOBILE.;21/03/2017;1043;1;62;1;Spese correnti;3;Acquisto di beni e servizi;2;Acquisto di servizi;5;Utenze e canoni;2;Telefonia mobile
34,09;ACI-AUTOMOBILE CLUB D'ITALIA;Z5B1ADB2BA;ACCONTO Fatt.n. 0000001419  del 20/01/2017 VISURE EXTRA CANONE BANCA DATI ACI PRA. 4' TRIMESTRE 2016.;21/03/2017;1273;1;57;1;Spese correnti;3;Acquisto di beni e servizi;2;Acquisto di servizi;99;Altri servizi;999;Altri servizi diversi n.a.c.
63,01;ANCITEL SPA;ZF51DBD4CD;SALDO Fatt.n. 2534  del 08/02/2017 CANONE SERVIZIO CONSULTAZIONE BANCA DATI VEICOLI RUBATI. GENNAIO 2017.;21/03/2017;1273;1;58;1;Spese correnti;3;Acquisto di beni e servizi;2;Acquisto di servizi;99;Altri servizi;999;Altri servizi diversi n.a.c.
296,88;ACI-AUTOMOBILE CLUB D'ITALIA;Z5B1ADB2BA;SALDO Fatt.n. 0000001419  del 20/01/2017 VISURE EXTRA CANONE BANCA DATI ACI PRA. 4' TRIMESTRE 2016.;21/03/2017;1273;1;209;1;Spese correnti;3;Acquisto di beni e servizi;2;Acquisto di servizi;99;Altri servizi;999;Altri servizi diversi n.a.c.
429,53;NUOVA ELETTRICA DI FRIGATO LUCA;Z3B1C9210B;ACCONTO Fatt.n. 01  del 25/01/2017 Manutenzione impianti elettrici della locale scuola comunale dell'obbligo.;21/03/2017;1155;0;395;1;Spese correnti;3;Acquisto di beni e servizi;1;Acquisto di beni;2;Altri beni di consumo;999;Altri beni e materiali di consumo n.a.c.
706,07;NUOVA ELETTRICA DI FRIGATO LUCA;Z3B1C9210B;SALDO Fatt.n. 01  del 25/01/2017 Manutenzione impianti elettrici della locale scuola comunale dell'obbligo.;21/03/2017;1156;0;396;1;Spese correnti;3;Acquisto di beni e servizi;2;Acquisto di servizi;9;Manutenzione ordinaria e riparazioni;4;Manutenzione ordinaria e riparazioni di impianti e macchinari
2.000,58;RUBELLO IMPIANTI DI RUBELLO LINO;ZD01CBC19B;SALDO Fatt.n. 118  del 02/02/2017 MANUTENZIONE IMPIANTO DI VIDEOSORVEGLIANZA;21/03/2017;1285;0;435;1;Spese correnti;3;Acquisto di beni e servizi;2;Acquisto di servizi;9;Manutenzione ordinaria e riparazioni;4;Manutenzione ordinaria e riparazioni di impianti e macchinari
1.121,20;TEKNA SRL;Z811243842;ACCONTO Fatt.n. 54  del 31/01/2017 Accatastamento scuola media ed elementare Boara Pisani Redazione di istanza di allineamento ditte catastali. Redazione di denuncia di tipo mappale Pregeo. Redazione di denuncia di variazione DOCFA;21/03/2017;1086;0;348;1;Spese correnti;3;Acquisto di beni e servizi;2;Acquisto di servizi;11;Prestazioni professionali e specialistiche;999;Altre prestazioni professionali e specialistiche n.a.c.
1.000,00;MORO ANTONIO S.R.L. - IMPIANTI ELETTRICI;ZE41C3F4E1;ACCONTO Fatt.n. 11/PA  del 20/02/2017 MANUTENZIONE IMPIANTO DI ILLUMINAZIONE ESTERNO AL CAMPO DA CALCIO COMUNALE.;21/03/2017;1828;0;352;1;Spese correnti;3;Acquisto di beni e servizi;1;Acquisto di beni;2;Altri beni di consumo;999;Altri beni e materiali di consumo n.a.c.
537,2;MORO ANTONIO S.R.L. - IMPIANTI ELETTRICI;ZE41C3F4E1;SALDO Fatt.n. 11/PA  del 20/02/2017 MANUTENZIONE IMPIANTO DI ILLUMINAZIONE ESTERNO AL CAMPO DA CALCIO COMUNALE.;21/03/2017;1828;1;353;1;Spese correnti;3;Acquisto di beni e servizi;2;Acquisto di servizi;99;Altri servizi;999;Altri servizi diversi n.a.c.
55;ASL 18 DI ROVIGO; ;ACCONTO Fatt.n. DS  201700000007  del 23/02/2017 SERVIZIO OBITORIALE MESE DI DICEMBRE 2016;21/03/2017;1899;0;453;1;Spese correnti;3;Acquisto di beni e servizi;2;Acquisto di servizi;99;Altri servizi;999;Altri servizi diversi n.a.c.
250;ASL 18 DI ROVIGO; ;SALDO Fatt.n. DS  201700000007  del 23/02/2017 SERVIZIO OBITORIALE MESE DI DICEMBRE 2016;21/03/2017;1899;0;453;1;Spese correnti;3;Acquisto di beni e servizi;2;Acquisto di servizi;99;Altri servizi;999;Altri servizi diversi n.a.c.
1.684,60;MORO ANTONIO S.R.L. - IMPIANTI ELETTRICI;Z0C1C997C2;SALDO Fatt.n. 12/PA  del 20/02/2017 RIFACIMENTO LINEE IMPIANTO VIA ONARI.;21/03/2017;1928;0;398;1;Spese correnti;3;Acquisto di beni e servizi;1;Acquisto di beni;2;Altri beni di consumo;999;Altri beni e materiali di consumo n.a.c.
0,01;MORO ANTONIO S.R.L. - IMPIANTI ELETTRICI;Z751C9FBA2;ACCONTO Fatt.n. 13/PA  del 20/02/2017 LAVORI SUGLI IMPIANTI DI ILLUMINAZIONE PUBBLICA POSTI NEL TERRITORIO COM.LE.;21/03/2017;1938;0;407;1;Spese correnti;3;Acquisto di beni e servizi;2;Acquisto di servizi;9;Manutenzione ordinaria e riparazioni;5;Manutenzione ordinaria e riparazioni di attrezzature
3.536,69;MORO ANTONIO S.R.L. - IMPIANTI ELETTRICI;Z751C9FBA2;SALDO Fatt.n. 13/PA  del 20/02/2017 LAVORI SUGLI IMPIANTI DI ILLUMINAZIONE PUBBLICA POSTI NEL TERRITORIO COM.LE.;21/03/2017;1938;0;407;1;Spese correnti;3;Acquisto di beni e servizi;2;Acquisto di servizi;9;Manutenzione ordinaria e riparazioni;5;Manutenzione ordinaria e riparazioni di attrezzature
4.369,80;TEKNA SRL;Z811243842;SALDO Fatt.n. 54  del 31/01/2017 Accatastamento scuola media ed elementare Boara Pisani Redazione di istanza di allineamento ditte catastali. Redazione di denuncia di tipo mappale Pregeo. Redazione di denuncia di variazione DOCFA;21/03/2017;3132;0;349;2;Spese in conto capitale;2;Investimenti fissi lordi e acquisto di terreni;1;Beni materiali;9;Beni immobili;3;Fabbricati ad uso scolastico
40,77;ENEL ENERGIA SPA; ;Fatt.n. 004800286254 del 17/02/2017 FORNITURA ENERGIA ELETTRICA. GENNAIO 2017. VIA FONTANE SNC.;23/03/2017;1937;0;67;1;Spese correnti;3;Acquisto di beni e servizi;2;Acquisto di servizi;5;Utenze e canoni;4;Energia elettrica
80,48;ENEL ENERGIA SPA; ;Fatt.n. 004800290509 del 17/02/2017 FORNITURA ENERGIA ELETTRICA. GENNAIO 2017. VIA GORGHETTI SNC.;23/03/2017;1937;0;67;1;Spese correnti;3;Acquisto di beni e servizi;2;Acquisto di servizi;5;Utenze e canoni;4;Energia elettrica
80,48;ENEL ENERGIA SPA; ;Fatt.n. 004800288507 del 17/02/2017 FORNITURA ENERGIA ELETTRICA. GENNAIO 2017. VIA GALLO VIC 2.;23/03/2017;1937;0;67;1;Spese correnti;3;Acquisto di beni e servizi;2;Acquisto di servizi;5;Utenze e canoni;4;Energia elettrica
112,25;ENEL ENERGIA SPA; ;Fatt.n. 004800290510 del 17/02/2017 FORNITURA ENERGIA ELETTRICA. GENNAIO 2017. VIA GALLO 50.;23/03/2017;1937;0;67;1;Spese correnti;3;Acquisto di beni e servizi;2;Acquisto di servizi;5;Utenze e canoni;4;Energia elettrica
457,6;ENEL ENERGIA SPA; ;Fatt.n. 004800290124 del 17/02/2017 FORNITURA ENERGIA ELETTRICA. GENNAIO 2017. VIA DELL'ARTIGIANATO SNC.;23/03/2017;1937;0;67;1;Spese correnti;3;Acquisto di beni e servizi;2;Acquisto di servizi;5;Utenze e canoni;4;Energia elettrica
22,69;PROVINCIA DI PADOVA; ;RIMBORSO 2015 PER CONVENZIONE PREDISPOSIZIONE FASCICOLI PREVIDENZIALI;23/03/2017;1030;0;437;1;Spese correnti;3;Acquisto di beni e servizi;2;Acquisto di servizi;99;Altri servizi;999;Altri servizi diversi n.a.c.
800;ARCIERI & ARCIERI SRL;ZB71DE0E69;POLIZZA ASSICURATIVA PROTEZIONE CIVILE IN EMISSIONE;27/03/2017;1044;0;66;1;Spese correnti;10;Altre spese correnti;4;Premi di assicurazione;1;Premi di assicurazione contro i danni;999;Altri premi di assicurazione contro i danni
475,99;ARCIERI & ARCIERI SRL;Z471DBDCCF;Polizza n.56959404 Infortuni conducente/trasportato;27/03/2017;1044;0;84;1;Spese correnti;10;Altre spese correnti;4;Premi di assicurazione;1;Premi di assicurazione contro i danni;999;Altri premi di assicurazione contro i danni
875;ARCIERI & ARCIERI SRL;Z971DBDDC8;Polizza n.  M10334421 furto/rapina;27/03/2017;1044;0;84;1;Spese correnti;10;Altre spese correnti;4;Premi di assicurazione;1;Premi di assicurazione contro i danni;999;Altri premi di assicurazione contro i danni
1.900,00;ARCIERI & ARCIERI SRL;Z291DBDD8C;Polizza n. M10334199 tutela giudiziaria;27/03/2017;1044;0;84;1;Spese correnti;10;Altre spese correnti;4;Premi di assicurazione;1;Premi di assicurazione contro i danni;999;Altri premi di assicurazione contro i danni
5.000,00;ARCIERI & ARCIERI SRL;ZAB1DBDE45;Polizza n. M10334609 responsabilita' civile/rischi vari;27/03/2017;1044;0;84;1;Spese correnti;10;Altre spese correnti;4;Premi di assicurazione;1;Premi di assicurazione contro i danni;999;Altri premi di assicurazione contro i danni
5.063,51;ARCIERI & ARCIERI SRL;ZC01DBDE0C;Polizza n. 101344085 incendio;27/03/2017;1044;0;84;1;Spese correnti;10;Altre spese correnti;4;Premi di assicurazione;1;Premi di assicurazione contro i danni;999;Altri premi di assicurazione contro i danni
204,66;ECONOMO COMUNALE COGNOLATO EMANUELA; ;RISTORO SPESE ANTICIPATE RELATIVAMENTE AL SINISTRO OCCORSO ALL'AUTOVETTURA INTESTA AL SIGNOR F. P. DI LENDINARA - TARGATA ******* - NON COPERTE DALL'ASSICURAZIONE DI QUESTO COMUNE PER LA FRANCHIGIA INSERITA NELL'ASSICURAZIONE.;27/03/2017;1066;0;82;1;Spese correnti;3;Acquisto di beni e servizi;2;Acquisto di servizi;9;Manutenzione ordinaria e riparazioni;1;Manutenzione ordinaria e riparazioni di mezzi di trasporto ad uso civile, di sicurezza e ordine pubblico
1.095,00;CONSORZIO BIBLIOTECHE PADOVANE ASSOCIATE; ;Acquisto libri tramite BPA (Biblioteche Padovane Associate) 2017.;27/03/2017;1480;0;52;1;Spese correnti;3;Acquisto di beni e servizi;1;Acquisto di beni;1;Giornali, riviste e pubblicazioni;2;Pubblicazioni
1.000,00;CONSORZIO BIBLIOTECHE PADOVANE ASSOCIATE; ;Quota associativa BPA (Biblioteche Padovane Associate) 2017.;27/03/2017;1490;0;53;1;Spese correnti;3;Acquisto di beni e servizi;2;Acquisto di servizi;99;Altri servizi;3;Quote di associazioni
105;CONSORZIO BIBLIOTECHE PADOVANE ASSOCIATE; ;Saldo quota associativa BPA (Biblioteche Padovane Associate) 2017.;27/03/2017;1480;0;54;1;Spese correnti;3;Acquisto di beni e servizi;1;Acquisto di beni;1;Giornali, riviste e pubblicazioni;2;Pubblicazioni
576,45;MULTICOPIA E ARREDA UFFICIO SRL;Z0E0DC4783;SALDO Fatt.n. 7  del 04/01/2017 CONTRATTO COSTO COPIA STAMPANTI MULTIFUNZIONE. 1' TRIM. 2017.;27/03/2017;1077;0;16;1;Spese correnti;3;Acquisto di beni e servizi;2;Acquisto di servizi;19;Servizi informatici e di telecomunicazioni;11;Processi trasversali alle classi di servizio
142,03;FRANCOPOST SRL;ZBA1DBF8DD;SALDO Fatt.n. 17  del 30/01/2017 RINNOVO CONTRATTO DI ASSISTENZA TECNICA PER L'AFFRANCATRICE POSTALE.;27/03/2017;1046;0;59;1;Spese correnti;3;Acquisto di beni e servizi;2;Acquisto di servizi;16;Servizi amministrativi;999;Altre spese per servizi amministrativi
648,9;COOPERATIVA SOCIALE SPERANZA;ZCB1B0F5E1;SALDO Fatt.n. PA/4  del 31/01/2017 SERVIZIO ACCOMPAGNAMENTO SCUOLABUS. GENNAIO 2017.;27/03/2017;1432;0;404;1;Spese correnti;3;Acquisto di beni e servizi;2;Acquisto di servizi;99;Altri servizi;999;Altri servizi diversi n.a.c.
2.391,01;SERENISSIMA RISTORAZIONE S.P.A.;Z281244682;SALDO Fatt.n. 00033/4  del 31/01/2017 SERVIZIO MENSA SCUOLA ELEMENTARE. GENNAIO 2017.;27/03/2017;1416;0;23;1;Spese correnti;3;Acquisto di beni e servizi;2;Acquisto di servizi;15;Contratti di servizio pubblico;6;Contratti di servizio per le mense scolastiche
2.078,63;LAERTE SERVIZI COOPERATIVA SOCIALE ONLUS;XD90FA8615;SALDO Fatt.n. 23/PA/2017  del 31/01/2017 ASSISTENZA SOCIALE E DOMICILIARE. GENNAIO 2017.;27/03/2017;1906;0;55;1;Spese correnti;3;Acquisto di beni e servizi;2;Acquisto di servizi;15;Contratti di servizio pubblico;9;Contratti di servizio di assistenza sociale domiciliare
1.430,00;IMPRESA ROSINA DI ROSINA ROBERTO & C. SNC;ZF01BE29B9;SALDO Fatt.n. 2PA  del 07/03/2017 MANUTENZIONE TRATTO STRADALE VIA GORGHETTI;27/03/2017;1929;0;335;1;Spese correnti;3;Acquisto di beni e servizi;2;Acquisto di servizi;9;Manutenzione ordinaria e riparazioni;8;Manutenzione ordinaria e riparazioni di beni immobili
200;Omologhia Srl;ZB11D73D85;SALDO Fatt.n. FatPAM 011  del 10/03/2017 Corso di formazione D.Lgs. 50/16;27/03/2017;1085;0;36;1;Spese correnti;3;Acquisto di beni e servizi;2;Acquisto di servizi;4;Acquisto di servizi per formazione e addestramento del personale dell'ente;999;Acquisto di servizi per altre spese per formazione e addestramento n.a.c.
50;ANUTEL;ZE71D78BCE;ACCONTO Fatt.n. 128  del 27/02/2017 PARTECIPAZIONE INCONTRO DI STUDIO SUL NUOVO CODICE APPALTI. PADOVA, 23/02/2017.;27/03/2017;1074;0;38;1;Spese correnti;3;Acquisto di beni e servizi;2;Acquisto di servizi;4;Acquisto di servizi per formazione e addestramento del personale dell'ente;999;Acquisto di servizi per altre spese per formazione e addestramento n.a.c.
50;ANUTEL;ZBB1D74132;SALDO Fatt.n. 128  del 27/02/2017 PARTECIPAZIONE INCONTRO DI STUDIO SUL NUOVO CODICE APPALTI. PADOVA, 23/02/2017.;27/03/2017;1085;0;37;1;Spese correnti;3;Acquisto di beni e servizi;2;Acquisto di servizi;4;Acquisto di servizi per formazione e addestramento del personale dell'ente;999;Acquisto di servizi per altre spese per formazione e addestramento n.a.c.
1.307,18;SINERGIE SPA;3888505FD2;Fatt.n. 331700000670 del 28/02/2017 FORNITURA CALORE A.T. 2016-2017. 5^ RATA FEBBRAIO 2017.;27/03/2017;1043;3;78;1;Spese correnti;3;Acquisto di beni e servizi;2;Acquisto di servizi;5;Utenze e canoni;6;Gas
2.614,40;SINERGIE SPA;3888505FD2;Fatt.n. 331700000670 del 28/02/2017 FORNITURA CALORE A.T. 2016-2017. 5^ RATA FEBBRAIO 2017.;27/03/2017;1366;3;79;1;Spese correnti;3;Acquisto di beni e servizi;2;Acquisto di servizi;5;Utenze e canoni;6;Gas
2.614,40;SINERGIE SPA;3888505FD2;Fatt.n. 331700000670 del 28/02/2017 FORNITURA CALORE A.T. 2016-2017. 5^ RATA FEBBRAIO 2017.;27/03/2017;1386;3;80;1;Spese correnti;3;Acquisto di beni e servizi;2;Acquisto di servizi;5;Utenze e canoni;6;Gas
1.078,87;COOPERATIVA SOCIALE SPERANZA; ;Fatt.n. PA/9 del 31/01/2017 SERVIZIO DI PULIZIA DELLA SEDE MUNICIPALE. GENNAIO 2017.;27/03/2017;1029;0;77;1;Spese correnti;3;Acquisto di beni e servizi;2;Acquisto di servizi;13;Servizi ausiliari per il funzionamento dell'ente;2;Servizi di pulizia e lavanderia
1.135,60;COOPERATIVA SOCIALE SPERANZA; ;Fatt.n. PA/32 del 28/02/2017 SERVIZIO DI PULIZIA DELLA SEDE COM.LE. FEBBRAIO 2017.;27/03/2017;1029;0;81;1;Spese correnti;3;Acquisto di beni e servizi;2;Acquisto di servizi;13;Servizi ausiliari per il funzionamento dell'ente;2;Servizi di pulizia e lavanderia
499,74;GRAFICHE E. GASPARI SRL.;Z161CB2981;Fatt.n. 00533 del 31/01/2017 ACQUISTO CANCELLERIA UFFICIO TECNICO URBANISTICA;27/03/2017;1092;0;429;1;Spese correnti;3;Acquisto di beni e servizi;1;Acquisto di beni;2;Altri beni di consumo;1;Carta, cancelleria e stampati
5.303,34;CONVERGE SPA;ZF11C97A4C;Fatt.n. 200536 del 28/02/2017 ACQUISTO SERVER;27/03/2017;1080;0;405;1;Spese correnti;3;Acquisto di beni e servizi;1;Acquisto di beni;2;Altri beni di consumo;6;Materiale informatico
3.010,74;CONVERGE SPA;ZD41C97B4E;Fatt.n. 200537 del 28/02/2017 ACQUISTO DISCHI E CONTROLLER PER NUOVO SERVER;27/03/2017;1080;0;406;1;Spese correnti;3;Acquisto di beni e servizi;1;Acquisto di beni;2;Altri beni di consumo;6;Materiale informatico
39,28;ENEL ENERGIA SPA; ;SALDO Fatt.n. 004800345496  del 10/03/2017 FORNITURA ENERGIA ELETTRICA. FEBBRAIO 2017. PIAZZA ATHESIA SNC.;27/03/2017;1043;2;71;1;Spese correnti;3;Acquisto di beni e servizi;2;Acquisto di servizi;5;Utenze e canoni;4;Energia elettrica
137,54;ENEL ENERGIA SPA; ;SALDO Fatt.n. 004800346174  del 10/03/2017 FORNITURA ENERGIA ELETTRICA. GENNAIO-FEBBRAIO 2017. VIA ROMA 35.;27/03/2017;1043;2;71;1;Spese correnti;3;Acquisto di beni e servizi;2;Acquisto di servizi;5;Utenze e canoni;4;Energia elettrica
655,04;ENEL ENERGIA SPA; ;SALDO Fatt.n. 004800348080  del 11/03/2017 FORNITURA ENERGIA ELETTRICA. FEBBRAIO 2017. PIAZZA ATHESIA 5.;27/03/2017;1043;2;71;1;Spese correnti;3;Acquisto di beni e servizi;2;Acquisto di servizi;5;Utenze e canoni;4;Energia elettrica
723,29;ENEL ENERGIA SPA; ;SALDO Fatt.n. 004800345495  del 10/03/2017 FORNITURA ENERGIA ELETTRICA. FEBBRAIO 2017. PIAZZA ATHESIA 2.;27/03/2017;1043;2;71;1;Spese correnti;3;Acquisto di beni e servizi;2;Acquisto di servizi;5;Utenze e canoni;4;Energia elettrica
420,4;ENEL ENERGIA SPA; ;ACCONTO Fatt.n. 004800346729  del 10/03/2017 FORNITURA ENERGIA ELETTRICA. FEBBRAIO 2017. VIA E. FERMI 18;27/03/2017;1366;2;69;1;Spese correnti;3;Acquisto di beni e servizi;2;Acquisto di servizi;5;Utenze e canoni;4;Energia elettrica
420,4;ENEL ENERGIA SPA; ;SALDO Fatt.n. 004800346729  del 10/03/2017 FORNITURA ENERGIA ELETTRICA. FEBBRAIO 2017. VIA E. FERMI 18;27/03/2017;1386;2;70;1;Spese correnti;3;Acquisto di beni e servizi;2;Acquisto di servizi;5;Utenze e canoni;4;Energia elettrica
3,36;ENEL ENERGIA SPA; ;SALDO Fatt.n. 004800344938  del 10/03/2017 FORNITURA ENERGIA ELETTRICA. FEBBRAIO 2017. VIA XI NOVEMBRE 36.;27/03/2017;1937;0;68;1;Spese correnti;3;Acquisto di beni e servizi;2;Acquisto di servizi;5;Utenze e canoni;4;Energia elettrica
10,19;ENEL ENERGIA SPA; ;SALDO Fatt.n. 004800345732  del 10/03/2017 FORNITURA ENERGIA ELETTRICA. FEBBRAIO 2017. VIA PASCOLON VIC 9.;27/03/2017;1937;0;68;1;Spese correnti;3;Acquisto di beni e servizi;2;Acquisto di servizi;5;Utenze e canoni;4;Energia elettrica
11,93;ENEL ENERGIA SPA; ;SALDO Fatt.n. 004800345728  del 10/03/2017 FORNITURA ENERGIA ELETTRICA. FEBBRAIO 2017. VIA CA' BIANCA SNC.;27/03/2017;1937;0;68;1;Spese correnti;3;Acquisto di beni e servizi;2;Acquisto di servizi;5;Utenze e canoni;4;Energia elettrica
12,08;ENEL ENERGIA SPA; ;SALDO Fatt.n. 004800345729  del 10/03/2017 FORNITURA ENERGIA ELETTRICA. FEBBRAIO 2017. VIA DEL GATTO 1.;27/03/2017;1937;0;68;1;Spese correnti;3;Acquisto di beni e servizi;2;Acquisto di servizi;5;Utenze e canoni;4;Energia elettrica
12,09;ENEL ENERGIA SPA; ;SALDO Fatt.n. 004800344939  del 10/03/2017 FORNITURA ENERGIA ELETTRICA. FEBBRAIO 2017. VIA VECCHIA VIC 2.;27/03/2017;1937;0;68;1;Spese correnti;3;Acquisto di beni e servizi;2;Acquisto di servizi;5;Utenze e canoni;4;Energia elettrica
16,81;ENEL ENERGIA SPA; ;SALDO Fatt.n. 004800344924  del 10/03/2017 FORNITURA ENERGIA ELETTRICA. FEBBRAIO 2017. VIA SABBIONI VIC 3.;27/03/2017;1937;0;68;1;Spese correnti;3;Acquisto di beni e servizi;2;Acquisto di servizi;5;Utenze e canoni;4;Energia elettrica
17,04;ENEL ENERGIA SPA; ;SALDO Fatt.n. 004800344928  del 10/03/2017 FORNITURA ENERGIA ELETTRICA. FEBBRAIO 2017. VIA GALLO 23.;27/03/2017;1937;0;68;1;Spese correnti;3;Acquisto di beni e servizi;2;Acquisto di servizi;5;Utenze e canoni;4;Energia elettrica
32,92;ENEL ENERGIA SPA; ;SALDO Fatt.n. 004800381072  del 12/03/2017 FORNITURA ENERGIA ELETTRICA. FEBBRAIO 2017. VIA FONTANE SNC.;27/03/2017;1937;0;68;1;Spese correnti;3;Acquisto di beni e servizi;2;Acquisto di servizi;5;Utenze e canoni;4;Energia elettrica
39,53;ENEL ENERGIA SPA; ;SALDO Fatt.n. 004800345726  del 10/03/2017 FORNITURA ENERGIA ELETTRICA. FEBBRAIO 2017. VIA PASCOLON VIC 2.;27/03/2017;1937;0;68;1;Spese correnti;3;Acquisto di beni e servizi;2;Acquisto di servizi;5;Utenze e canoni;4;Energia elettrica
57,52;ENEL ENERGIA SPA; ;SALDO Fatt.n. 004800385776  del 12/03/2017 FORNITURA ENERGIA ELETTRICA. FEBBRAIO 2017. VIA GALLO 50.;27/03/2017;1937;0;68;1;Spese correnti;3;Acquisto di beni e servizi;2;Acquisto di servizi;5;Utenze e canoni;4;Energia elettrica
65,27;ENEL ENERGIA SPA; ;SALDO Fatt.n. 004800385775  del 12/03/2017 FORNITURA ENERGIA ELETTRICA. FEBBRAIO 2017. VIA GORGHETTI SNC.;27/03/2017;1937;0;68;1;Spese correnti;3;Acquisto di beni e servizi;2;Acquisto di servizi;5;Utenze e canoni;4;Energia elettrica
92,66;ENEL ENERGIA SPA; ;SALDO Fatt.n. 004800344919  del 10/03/2017 FORNITURA ENERGIA ELETTRICA. FEBBRAIO 2017. VIA GORGHETTI VIC 2.;27/03/2017;1937;0;68;1;Spese correnti;3;Acquisto di beni e servizi;2;Acquisto di servizi;5;Utenze e canoni;4;Energia elettrica
132,1;ENEL ENERGIA SPA; ;SALDO Fatt.n. 004800344921  del 10/03/2017 FORNITURA ENERGIA ELETTRICA. FEBBRAIO 2017. VIA ONARI VIC 3.;27/03/2017;1937;0;68;1;Spese correnti;3;Acquisto di beni e servizi;2;Acquisto di servizi;5;Utenze e canoni;4;Energia elettrica
147,36;ENEL ENERGIA SPA; ;SALDO Fatt.n. 004800344937  del 10/03/2017 FORNITURA ENERGIA ELETTRICA. FEBBRAIO 2017. VIA FERRARIA SNC.;27/03/2017;1937;0;68;1;Spese correnti;3;Acquisto di beni e servizi;2;Acquisto di servizi;5;Utenze e canoni;4;Energia elettrica
157,67;ENEL ENERGIA SPA; ;SALDO Fatt.n. 004800344922  del 10/03/2017 FORNITURA ENERGIA ELETTRICA. FEBBRAIO 2017. VIA FERRATA 3.;27/03/2017;1937;0;68;1;Spese correnti;3;Acquisto di beni e servizi;2;Acquisto di servizi;5;Utenze e canoni;4;Energia elettrica
208,74;ENEL ENERGIA SPA; ;SALDO Fatt.n. 004800344914  del 10/03/2017 FORNITURA ENERGIA ELETTRICA. FEBBRAIO 2017. VIA CANALETTA SNC.;27/03/2017;1937;0;68;1;Spese correnti;3;Acquisto di beni e servizi;2;Acquisto di servizi;5;Utenze e canoni;4;Energia elettrica
320,43;ENEL ENERGIA SPA; ;SALDO Fatt.n. 004800344920  del 10/03/2017 FORNITURA ENERGIA ELETTRICA. FEBBRAIO 2017. VIA FERRARIA SNC.;27/03/2017;1937;0;68;1;Spese correnti;3;Acquisto di beni e servizi;2;Acquisto di servizi;5;Utenze e canoni;4;Energia elettrica
349,19;ENEL ENERGIA SPA; ;SALDO Fatt.n. 004800344906  del 10/03/2017 FORNITURA ENERGIA ELETTRICA. FEBBRAIO 2017. VIA ROMA SNC.;27/03/2017;1937;0;68;1;Spese correnti;3;Acquisto di beni e servizi;2;Acquisto di servizi;5;Utenze e canoni;4;Energia elettrica
391,67;ENEL ENERGIA SPA; ;SALDO Fatt.n. 004800344926  del 10/03/2017 FORNITURA ENERGIA ELETTRICA. FEBBRAIO 2017. VIA L. DA VINCI VIC 1.;27/03/2017;1937;0;68;1;Spese correnti;3;Acquisto di beni e servizi;2;Acquisto di servizi;5;Utenze e canoni;4;Energia elettrica
392,34;ENEL ENERGIA SPA; ;SALDO Fatt.n. 004800368647  del 12/03/2017 FORNITURA ENERGIA ELETTRICA. FEBBRAIO 2017. VIA DELL'ARTIGIANATO SNC.;27/03/2017;1937;0;68;1;Spese correnti;3;Acquisto di beni e servizi;2;Acquisto di servizi;5;Utenze e canoni;4;Energia elettrica
431,25;ENEL ENERGIA SPA; ;SALDO Fatt.n. 004800344933  del 10/03/2017 FORNITURA ENERGIA ELETTRICA. FEBBRAIO 2017. VIA DELLO SPRT SN.;27/03/2017;1937;0;68;1;Spese correnti;3;Acquisto di beni e servizi;2;Acquisto di servizi;5;Utenze e canoni;4;Energia elettrica
669,26;ENEL ENERGIA SPA; ;SALDO Fatt.n. 004800344918  del 10/03/2017 FORNITURA ENERGIA ELETTRICA. FEBBRAIO 2017. VIA XI NOVEMBRE SNC.;27/03/2017;1937;0;68;1;Spese correnti;3;Acquisto di beni e servizi;2;Acquisto di servizi;5;Utenze e canoni;4;Energia elettrica
978,6;ENEL ENERGIA SPA; ;SALDO Fatt.n. 004800344915  del 10/03/2017 FORNITURA ENERGIA ELETTRICA. FEBBRAIO 2017. VIA ROMA VIC 6.;27/03/2017;1937;0;68;1;Spese correnti;3;Acquisto di beni e servizi;2;Acquisto di servizi;5;Utenze e canoni;4;Energia elettrica
814,84;SERVIZIO ELETTRICO NAZIONALE; ;SALDO Fatt.n. 281801005580013  del 10/03/2017 FORNITURA ENERGIA ELETTRICA. FEBBRAIO-MARZO 2017. VIA VALLAZZA SN.;27/03/2017;1937;0;68;1;Spese correnti;3;Acquisto di beni e servizi;2;Acquisto di servizi;5;Utenze e canoni;4;Energia elettrica
4,56;ENEL ENERGIA SPA; ;SALDO Fatt.n. 004800345958  del 10/03/2017 FORNITURA ENERGIA ELETTRICA. FEBBRAIO 2017. VIA VECCHIA SNC.;27/03/2017;1937;0;68;1;Spese correnti;3;Acquisto di beni e servizi;2;Acquisto di servizi;5;Utenze e canoni;4;Energia elettrica
8,7;ENEL ENERGIA SPA; ;SALDO Fatt.n. 004800345731  del 10/03/2017 FORNITURA ENERGIA ELETTRICA. FEBBRAIO 2017. VIA ONARI VIC 4.;27/03/2017;1937;0;68;1;Spese correnti;3;Acquisto di beni e servizi;2;Acquisto di servizi;5;Utenze e canoni;4;Energia elettrica
16,81;ENEL ENERGIA SPA; ;SALDO Fatt.n. 004800344904  del 10/03/2017 FORNITURA ENERGIA ELETTRICA. FEBBRAIO 2017. VIA DEL GATTO 17.;27/03/2017;1937;0;68;1;Spese correnti;3;Acquisto di beni e servizi;2;Acquisto di servizi;5;Utenze e canoni;4;Energia elettrica
17,54;ENEL ENERGIA SPA; ;SALDO Fatt.n. 004800344909  del 10/03/2017 FORNITURA ENERGIA ELETTRICA. FEBBRAIO 2017. VIA PASCOLON SNC.;27/03/2017;1937;0;68;1;Spese correnti;3;Acquisto di beni e servizi;2;Acquisto di servizi;5;Utenze e canoni;4;Energia elettrica
21,63;ENEL ENERGIA SPA; ;SALDO Fatt.n. 004800345121  del 10/03/2017 FORNITURA ENERGIA ELETTRICA. FEBBRAIO 2017. VIA BRAGANTE SNC.;27/03/2017;1937;0;68;1;Spese correnti;3;Acquisto di beni e servizi;2;Acquisto di servizi;5;Utenze e canoni;4;Energia elettrica
27,94;ENEL ENERGIA SPA; ;SALDO Fatt.n. 004800344930  del 10/03/2017 FORNITURA ENERGIA ELETTRICA. FEBBRAIO 2017. VIA FONTANE VIC 2.;27/03/2017;1937;0;68;1;Spese correnti;3;Acquisto di beni e servizi;2;Acquisto di servizi;5;Utenze e canoni;4;Energia elettrica
38,73;ENEL ENERGIA SPA; ;SALDO Fatt.n. 004800344913  del 10/03/2017 FORNITURA ENERGIA ELETTRICA. FEBBRAIO 2017. VIA FERRARIA VIC 1.;27/03/2017;1937;0;68;1;Spese correnti;3;Acquisto di beni e servizi;2;Acquisto di servizi;5;Utenze e canoni;4;Energia elettrica
40,86;ENEL ENERGIA SPA; ;SALDO Fatt.n. 004800344916  del 10/03/2017 FORNITURA ENERGIA ELETTRICA. FEBBRAIO 2017. VIA SABBIONI VIC 4.;27/03/2017;1937;0;68;1;Spese correnti;3;Acquisto di beni e servizi;2;Acquisto di servizi;5;Utenze e canoni;4;Energia elettrica
45,81;ENEL ENERGIA SPA; ;SALDO Fatt.n. 004800344907  del 10/03/2017 FORNITURA ENERGIA ELETTRICA. FEBBRAIO 2017. VIA PASCOLON 3.;27/03/2017;1937;0;68;1;Spese correnti;3;Acquisto di beni e servizi;2;Acquisto di servizi;5;Utenze e canoni;4;Energia elettrica
49,43;ENEL ENERGIA SPA; ;SALDO Fatt.n. 004800344911  del 10/03/2017 FORNITURA ENERGIA ELETTRICA. FEBBRAIO 2017. VIA DEL GATTO SNC.;27/03/2017;1937;0;68;1;Spese correnti;3;Acquisto di beni e servizi;2;Acquisto di servizi;5;Utenze e canoni;4;Energia elettrica
54,4;ENEL ENERGIA SPA; ;SALDO Fatt.n. 004800345733  del 10/03/2017 FORNITURA ENERGIA ELETTRICA. FEBBRAIO 2017. VIA FERRARIA VIC 3.;27/03/2017;1937;0;68;1;Spese correnti;3;Acquisto di beni e servizi;2;Acquisto di servizi;5;Utenze e canoni;4;Energia elettrica
57,91;ENEL ENERGIA SPA; ;SALDO Fatt.n. 004800346175  del 10/03/2017 FORNITURA ENERGIA ELETTRICA. GENNAIO-FEBBRAIO 2017. VIA CANALETTA SNC.;27/03/2017;1937;0;68;1;Spese correnti;3;Acquisto di beni e servizi;2;Acquisto di servizi;5;Utenze e canoni;4;Energia elettrica
65,27;ENEL ENERGIA SPA; ;SALDO Fatt.n. 004800398282  del 13/03/2017 FORNITURA ENERGIA ELETTRICA. FEBBRAIO 2017. VIA GALLO VIC 2.;27/03/2017;1937;0;68;1;Spese correnti;3;Acquisto di beni e servizi;2;Acquisto di servizi;5;Utenze e canoni;4;Energia elettrica
78,69;ENEL ENERGIA SPA; ;SALDO Fatt.n. 004800344910  del 10/03/2017 FORNITURA ENERGIA ELETTRICA. FEBBRAIO 2017. VIA VOLTA SNC.;27/03/2017;1937;0;68;1;Spese correnti;3;Acquisto di beni e servizi;2;Acquisto di servizi;5;Utenze e canoni;4;Energia elettrica
79,46;ENEL ENERGIA SPA; ;SALDO Fatt.n. 004800344925  del 10/03/2017 FORNITURA ENERGIA ELETTRICA. FEBBRAIO 2017. VIA ROMA VIC 4.;27/03/2017;1937;0;68;1;Spese correnti;3;Acquisto di beni e servizi;2;Acquisto di servizi;5;Utenze e canoni;4;Energia elettrica
82,07;ENEL ENERGIA SPA; ;SALDO Fatt.n. 004800345727  del 10/03/2017 FORNITURA ENERGIA ELETTRICA. FEBBRAIO 2017. VIA G. MARCONI VIC 7.;27/03/2017;1937;0;68;1;Spese correnti;3;Acquisto di beni e servizi;2;Acquisto di servizi;5;Utenze e canoni;4;Energia elettrica
140,12;ENEL ENERGIA SPA; ;SALDO Fatt.n. 004800344931  del 10/03/2017 FORNITURA ENERGIA ELETTRICA. FEBBRAIO 2017. VIA STRADON 27.;27/03/2017;1937;0;68;1;Spese correnti;3;Acquisto di beni e servizi;2;Acquisto di servizi;5;Utenze e canoni;4;Energia elettrica
195,5;ENEL ENERGIA SPA; ;SALDO Fatt.n. 004800344935  del 10/03/2017 FORNITURA ENERGIA ELETTRICA. FEBBRAIO 2017. VIA BONIOLE SNC.;27/03/2017;1937;0;68;1;Spese correnti;3;Acquisto di beni e servizi;2;Acquisto di servizi;5;Utenze e canoni;4;Energia elettrica
215,17;ENEL ENERGIA SPA; ;SALDO Fatt.n. 004800344905  del 10/03/2017 FORNITURA ENERGIA ELETTRICA. FEBBRAIO 2017. VIA II GIUGNO 1.;27/03/2017;1937;0;68;1;Spese correnti;3;Acquisto di beni e servizi;2;Acquisto di servizi;5;Utenze e canoni;4;Energia elettrica
321,13;ENEL ENERGIA SPA; ;SALDO Fatt.n. 004800344929  del 10/03/2017 FORNITURA ENERGIA ELETTRICA. FEBBRAIO 2017. VIA BONIOLE SNC;27/03/2017;1937;0;68;1;Spese correnti;3;Acquisto di beni e servizi;2;Acquisto di servizi;5;Utenze e canoni;4;Energia elettrica
347,82;ENEL ENERGIA SPA; ;SALDO Fatt.n. 004800344932  del 10/03/2017 FORNITURA ENERGIA ELETTRICA. FEBBRAIO 2017. VIA BONIOLE SNC.;27/03/2017;1937;0;68;1;Spese correnti;3;Acquisto di beni e servizi;2;Acquisto di servizi;5;Utenze e canoni;4;Energia elettrica
516,69;ENEL ENERGIA SPA; ;SALDO Fatt.n. 004800344927  del 10/03/2017 FORNITURA ENERGIA ELETTRICA. FEBBRAIO 2017. VIA BARCHESSA VIC 5.;27/03/2017;1937;0;68;1;Spese correnti;3;Acquisto di beni e servizi;2;Acquisto di servizi;5;Utenze e canoni;4;Energia elettrica
528,08;ENEL ENERGIA SPA; ;SALDO Fatt.n. 004800344917  del 10/03/2017 FORNITURA ENERGIA ELETTRICA. FEBBRAIO 2017. VIA ROMA SNC.;27/03/2017;1937;0;68;1;Spese correnti;3;Acquisto di beni e servizi;2;Acquisto di servizi;5;Utenze e canoni;4;Energia elettrica
735,99;ENEL ENERGIA SPA; ;SALDO Fatt.n. 004800344936  del 10/03/2017 FORNITURA ENERGIA ELETTRICA. FEBBRAIO 2017. VIA XXV APRILE SNC.;27/03/2017;1937;0;68;1;Spese correnti;3;Acquisto di beni e servizi;2;Acquisto di servizi;5;Utenze e canoni;4;Energia elettrica
353,11;BNP PARIBAS LEASING SOLUTIONS SPA;Z520C61179;SALDO Fatt.n. AYA46943  del 13/02/2017 NOLEGGIO STAMPANTI MULTIFUNZIONE. 3^ RATA MARZO 2017.;30/03/2017;1077;0;14;1;Spese correnti;3;Acquisto di beni e servizi;2;Acquisto di servizi;19;Servizi informatici e di telecomunicazioni;11;Processi trasversali alle classi di servizio
54,01;ENI SPA DIVISIONE GAS & POWER; ;ENI SPA DIVISIONE GAS & POWER-ACQUISTO CARBURANTE MEZZI COMUNALI. DICEMBRE 2016 (P.      30 -R.     359);10/04/2017;1270;0;498;1;Spese correnti;3;Acquisto di beni e servizi;1;Acquisto di beni;2;Altri beni di consumo;2;Carburanti, combustibili e lubrificanti
238,63;ENI SPA DIVISIONE GAS & POWER; ;ENI SPA DIVISIONE GAS & POWER-ACQUISTO CARBURANTE MEZZI COMUNALI. DICEMBRE 2016 (P.      30 -R.     359);10/04/2017;1417;0;497;1;Spese correnti;3;Acquisto di beni e servizi;1;Acquisto di beni;2;Altri beni di consumo;2;Carburanti, combustibili e lubrificanti
84,83;ENI SPA DIVISIONE GAS & POWER; ;ENI SPA DIVISIONE GAS & POWER-ACQUISTO CARBURANTE MEZZI COMUNALI. DICEMBRE 2016 (P.      30 -R.     359);10/04/2017;1901;1;499;1;Spese correnti;3;Acquisto di beni e servizi;1;Acquisto di beni;2;Altri beni di consumo;2;Carburanti, combustibili e lubrificanti
745,08;ENI SPA DIVISIONE GAS & POWER; ;ENI SPA DIVISIONE GAS & POWER-ACQUISTO CARBURANTE MEZZI COMUNALI. DICEMBRE 2016 (P.      30 -R.     359);10/04/2017;1925;0;496;1;Spese correnti;3;Acquisto di beni e servizi;1;Acquisto di beni;2;Altri beni di consumo;2;Carburanti, combustibili e lubrificanti
164,9;ENI SPA DIVISIONE GAS & POWER; ;ACCONTO Fatt.n. 30133917  del 31/12/2016 ACQUISTO CARBURANTE MEZZI COM.LI DICEMBRE 2016.;10/04/2017;1925;0;496;1;Spese correnti;3;Acquisto di beni e servizi;1;Acquisto di beni;2;Altri beni di consumo;2;Carburanti, combustibili e lubrificanti
52,28;ENI SPA DIVISIONE GAS & POWER; ;ACCONTO Fatt.n. 30133917  del 31/12/2016 ACQUISTO CARBURANTE MEZZI COM.LI DICEMBRE 2016.;10/04/2017;1417;0;497;1;Spese correnti;3;Acquisto di beni e servizi;1;Acquisto di beni;2;Altri beni di consumo;2;Carburanti, combustibili e lubrificanti
18,43;ENI SPA DIVISIONE GAS & POWER; ;ACCONTO Fatt.n. 30133917  del 31/12/2016 ACQUISTO CARBURANTE MEZZI COM.LI DICEMBRE 2016.;10/04/2017;1901;1;499;1;Spese correnti;3;Acquisto di beni e servizi;1;Acquisto di beni;2;Altri beni di consumo;2;Carburanti, combustibili e lubrificanti
12,88;ENI SPA DIVISIONE GAS & POWER; ;SALDO Fatt.n. 30133917  del 31/12/2016 ACQUISTO CARBURANTE MEZZI COM.LI DICEMBRE 2016.;10/04/2017;1270;0;498;1;Spese correnti;3;Acquisto di beni e servizi;1;Acquisto di beni;2;Altri beni di consumo;2;Carburanti, combustibili e lubrificanti
55,25;AUTOSTRADE PER L'ITALIA S.P.A;0;AUTOSTRADE PER L'ITALIA S.P.A-PAGAMENTO CORRISPETTIVO TELEPASS E VIACARD FEBBRAIO - MARZO 2017 (P.      29 -R.     358);10/04/2017;1084;0;99999;1;Spese correnti;3;Acquisto di beni e servizi;2;Acquisto di servizi;2;Organizzazione eventi, pubblicita` e servizi per trasferta;999;Altre spese per relazioni pubbliche, convegni e mostre, pubblicita` n.a.c
12,15;AUTOSTRADE PER L'ITALIA S.P.A; ;SALDO Fatt.n. 900006344D  del 30/03/2017;10/04/2017;1084;0;0;1;Spese correnti;3;Acquisto di beni e servizi;2;Acquisto di servizi;2;Organizzazione eventi, pubblicita` e servizi per trasferta;2;Indennità di missione e di trasferta
720;A.M.S.; ;"Erogazione contributi  ""Impegnativa di cura domiciliare - ex assegno di cura"" - Liquidazione saldo anno 2016.";11/04/2017;1909;0;83;1;Spese correnti;4;Trasferimenti correnti;2;Trasferimenti correnti a Famiglie;5;Altri trasferimenti a famiglie;999;Altri trasferimenti a famiglie n.a.c.
360;A.M.; ;"Erogazione contributi  ""Impegnativa di cura domiciliare - ex assegno di cura"" - Liquidazione saldo anno 2016.";11/04/2017;1909;0;83;1;Spese correnti;4;Trasferimenti correnti;2;Trasferimenti correnti a Famiglie;5;Altri trasferimenti a famiglie;999;Altri trasferimenti a famiglie n.a.c.
1.200,00;B.M.; ;"Erogazione contributi  ""Impegnativa di cura domiciliare - ex assegno di cura"" - Liquidazione saldo anno 2016.";11/04/2017;1909;0;83;1;Spese correnti;4;Trasferimenti correnti;2;Trasferimenti correnti a Famiglie;5;Altri trasferimenti a famiglie;999;Altri trasferimenti a famiglie n.a.c.
720;B.G.; ;"Erogazione contributi  ""Impegnativa di cura domiciliare - ex assegno di cura"" - Liquidazione saldo anno 2016. Toso Giuseppina";11/04/2017;1909;0;83;1;Spese correnti;4;Trasferimenti correnti;2;Trasferimenti correnti a Famiglie;5;Altri trasferimenti a famiglie;999;Altri trasferimenti a famiglie n.a.c.
720;B.M.I.; ;"Erogazione contributi  ""Impegnativa di cura domiciliare - ex assegno di cura"" - Liquidazione saldo anno 2016.";11/04/2017;1909;0;83;1;Spese correnti;4;Trasferimenti correnti;2;Trasferimenti correnti a Famiglie;5;Altri trasferimenti a famiglie;999;Altri trasferimenti a famiglie n.a.c.
720;B.F.; ;"Erogazione contributi  ""Impegnativa di cura domiciliare - ex assegno di cura"" - Liquidazione saldo anno 2016.";11/04/2017;1909;0;83;1;Spese correnti;4;Trasferimenti correnti;2;Trasferimenti correnti a Famiglie;5;Altri trasferimenti a famiglie;999;Altri trasferimenti a famiglie n.a.c.
360;B.E.; ;"Erogazione contributi  ""Impegnativa di cura domiciliare - ex assegno di cura"" - Liquidazione saldo anno 2016.";11/04/2017;1909;0;83;1;Spese correnti;4;Trasferimenti correnti;2;Trasferimenti correnti a Famiglie;5;Altri trasferimenti a famiglie;999;Altri trasferimenti a famiglie n.a.c.
720;B.A.; ;"Erogazione contributi  ""Impegnativa di cura domiciliare - ex assegno di cura"" - Liquidazione saldo anno 2016.";11/04/2017;1909;0;83;1;Spese correnti;4;Trasferimenti correnti;2;Trasferimenti correnti a Famiglie;5;Altri trasferimenti a famiglie;999;Altri trasferimenti a famiglie n.a.c.
720;C.M.T.; ;"Erogazione contributi  ""Impegnativa di cura domiciliare - ex assegno di cura"" - Liquidazione saldo anno 2016. Chiarion Giovanna";11/04/2017;1909;0;83;1;Spese correnti;4;Trasferimenti correnti;2;Trasferimenti correnti a Famiglie;5;Altri trasferimenti a famiglie;999;Altri trasferimenti a famiglie n.a.c.
120;C.M.; ;"Erogazione contributi  ""Impegnativa di cura domiciliare - ex assegno di cura"" - Liquidazione saldo anno 2016. Cestari Gino.";11/04/2017;1909;0;83;1;Spese correnti;4;Trasferimenti correnti;2;Trasferimenti correnti a Famiglie;5;Altri trasferimenti a famiglie;999;Altri trasferimenti a famiglie n.a.c.
720;C.M.; ;"Erogazione contributi  ""Impegnativa di cura domiciliare - ex assegno di cura"" - Liquidazione saldo anno 2016. Milani Santa.";11/04/2017;1909;0;83;1;Spese correnti;4;Trasferimenti correnti;2;Trasferimenti correnti a Famiglie;5;Altri trasferimenti a famiglie;999;Altri trasferimenti a famiglie n.a.c.
1.200,00;C.M.; ;"Erogazione contributi  ""Impegnativa di cura domiciliare - ex assegno di cura"" - Liquidazione saldo anno 2016. Cestari Gino";11/04/2017;1909;0;83;1;Spese correnti;4;Trasferimenti correnti;2;Trasferimenti correnti a Famiglie;5;Altri trasferimenti a famiglie;999;Altri trasferimenti a famiglie n.a.c.
720;D.M.A.; ;"Erogazione contributi  ""Impegnativa di cura domiciliare - ex assegno di cura"" - Liquidazione saldo anno 2016.";11/04/2017;1909;0;83;1;Spese correnti;4;Trasferimenti correnti;2;Trasferimenti correnti a Famiglie;5;Altri trasferimenti a famiglie;999;Altri trasferimenti a famiglie n.a.c.
600;D.M.M.; ;"Erogazione contributi  ""Impegnativa di cura domiciliare - ex assegno di cura"" - Liquidazione saldo anno 2016.";11/04/2017;1909;0;83;1;Spese correnti;4;Trasferimenti correnti;2;Trasferimenti correnti a Famiglie;5;Altri trasferimenti a famiglie;999;Altri trasferimenti a famiglie n.a.c.
720;G.I.; ;"Erogazione contributi  ""Impegnativa di cura domiciliare - ex assegno di cura"" - Liquidazione saldo anno 2016.";11/04/2017;1909;0;83;1;Spese correnti;4;Trasferimenti correnti;2;Trasferimenti correnti a Famiglie;5;Altri trasferimenti a famiglie;999;Altri trasferimenti a famiglie n.a.c.
360;G.T.; ;"Erogazione contributi  ""Impegnativa di cura domiciliare - ex assegno di cura"" - Liquidazione saldo anno 2016. Savogin Romeo.";11/04/2017;1909;0;83;1;Spese correnti;4;Trasferimenti correnti;2;Trasferimenti correnti a Famiglie;5;Altri trasferimenti a famiglie;999;Altri trasferimenti a famiglie n.a.c.
720;G.D.; ;"Erogazione contributi  ""Impegnativa di cura domiciliare - ex assegno di cura"" - Liquidazione saldo anno 2016.";11/04/2017;1909;0;83;1;Spese correnti;4;Trasferimenti correnti;2;Trasferimenti correnti a Famiglie;5;Altri trasferimenti a famiglie;999;Altri trasferimenti a famiglie n.a.c.
720;G.D.; ;"Erogazione contributi  ""Impegnativa di cura domiciliare - ex assegno di cura"" - Liquidazione saldo anno 2016.";11/04/2017;1909;0;83;1;Spese correnti;4;Trasferimenti correnti;2;Trasferimenti correnti a Famiglie;5;Altri trasferimenti a famiglie;999;Altri trasferimenti a famiglie n.a.c.
720;L.G.; ;"Erogazione contributi  ""Impegnativa di cura domiciliare - ex assegno di cura"" - Liquidazione saldo anno 2016.";11/04/2017;1909;0;83;1;Spese correnti;4;Trasferimenti correnti;2;Trasferimenti correnti a Famiglie;5;Altri trasferimenti a famiglie;999;Altri trasferimenti a famiglie n.a.c.
720;M.I.; ;"Erogazione contributi  ""Impegnativa di cura domiciliare - ex assegno di cura"" - Liquidazione saldo anno 2016. Sasso Rosa.";11/04/2017;1909;0;83;1;Spese correnti;4;Trasferimenti correnti;2;Trasferimenti correnti a Famiglie;5;Altri trasferimenti a famiglie;999;Altri trasferimenti a famiglie n.a.c.
720;P.A.; ;"Erogazione contributi  ""Impegnativa di cura domiciliare - ex assegno di cura"" - Liquidazione saldo anno 2016.";11/04/2017;1909;0;83;1;Spese correnti;4;Trasferimenti correnti;2;Trasferimenti correnti a Famiglie;5;Altri trasferimenti a famiglie;999;Altri trasferimenti a famiglie n.a.c.
720;P.I.; ;"Erogazione contributi  ""Impegnativa di cura domiciliare - ex assegno di cura"" - Liquidazione saldo anno 2016.";11/04/2017;1909;0;83;1;Spese correnti;4;Trasferimenti correnti;2;Trasferimenti correnti a Famiglie;5;Altri trasferimenti a famiglie;999;Altri trasferimenti a famiglie n.a.c.
600;R.M.; ;"Erogazione contributi  ""Impegnativa di cura domiciliare - ex assegno di cura"" - Liquidazione saldo anno 2016.";11/04/2017;1909;0;83;1;Spese correnti;4;Trasferimenti correnti;2;Trasferimenti correnti a Famiglie;5;Altri trasferimenti a famiglie;999;Altri trasferimenti a famiglie n.a.c.
720;S.R.; ;"Erogazione contributi  ""Impegnativa di cura domiciliare - ex assegno di cura"" - Liquidazione saldo anno 2016.";11/04/2017;1909;0;83;1;Spese correnti;4;Trasferimenti correnti;2;Trasferimenti correnti a Famiglie;5;Altri trasferimenti a famiglie;999;Altri trasferimenti a famiglie n.a.c.
720;S.L.; ;"Erogazione contributi  ""Impegnativa di cura domiciliare - ex assegno di cura"" - Liquidazione saldo anno 2016.";11/04/2017;1909;0;83;1;Spese correnti;4;Trasferimenti correnti;2;Trasferimenti correnti a Famiglie;5;Altri trasferimenti a famiglie;999;Altri trasferimenti a famiglie n.a.c.
1.200,00;S.A.; ;"Erogazione contributi  ""Impegnativa di cura domiciliare - ex assegno di cura"" - Liquidazione saldo anno 2016.";11/04/2017;1909;0;83;1;Spese correnti;4;Trasferimenti correnti;2;Trasferimenti correnti a Famiglie;5;Altri trasferimenti a famiglie;999;Altri trasferimenti a famiglie n.a.c.
360;T.T.; ;"Erogazione contributi  ""Impegnativa di cura domiciliare - ex assegno di cura"" - Liquidazione saldo anno 2016.";11/04/2017;1909;0;83;1;Spese correnti;4;Trasferimenti correnti;2;Trasferimenti correnti a Famiglie;5;Altri trasferimenti a famiglie;999;Altri trasferimenti a famiglie n.a.c.
720;T.L.; ;"Erogazione contributi  ""Impegnativa di cura domiciliare - ex assegno di cura"" - Liquidazione saldo anno 2016.";11/04/2017;1909;0;83;1;Spese correnti;4;Trasferimenti correnti;2;Trasferimenti correnti a Famiglie;5;Altri trasferimenti a famiglie;999;Altri trasferimenti a famiglie n.a.c.
720;T.A.; ;"Erogazione contributi  ""Impegnativa di cura domiciliare - ex assegno di cura"" - Liquidazione saldo anno 2016.";11/04/2017;1909;0;83;1;Spese correnti;4;Trasferimenti correnti;2;Trasferimenti correnti a Famiglie;5;Altri trasferimenti a famiglie;999;Altri trasferimenti a famiglie n.a.c.
1.200,00;Z.R.; ;"Erogazione contributi  ""Impegnativa di cura domiciliare - ex assegno di cura"" - Liquidazione saldo anno 2016.";11/04/2017;1909;0;83;1;Spese correnti;4;Trasferimenti correnti;2;Trasferimenti correnti a Famiglie;5;Altri trasferimenti a famiglie;999;Altri trasferimenti a famiglie n.a.c.
1.147,80;SPAZIO VERDE DI VERLICH CRISTIANO;Z391A6C2C2;SALDO Fatt.n. 1/E  del 17/01/2017 Sfalcio e diserbo presso cimitero comunale.;11/04/2017;1156;0;158;1;Spese correnti;3;Acquisto di beni e servizi;2;Acquisto di servizi;9;Manutenzione ordinaria e riparazioni;12;Manutenzione ordinaria e riparazioni di terreni e beni materiali non prodotti
1.549,60;BOZZOLAN GIORGIO;ZBD1CC207E;ACCONTO Fatt.n. 1  del 20/03/2017 MODIFICA RECNZIONE IN PROSSIMITA' DEGLI INGRESSI DELLA SCUOLA;11/04/2017;1043;6;439;1;Spese correnti;3;Acquisto di beni e servizi;2;Acquisto di servizi;9;Manutenzione ordinaria e riparazioni;8;Manutenzione ordinaria e riparazioni di beni immobili
9.789,28;ARTE FUNERARIA GS DI MINGARDO SILVANO & C. SNC;Z4A1C777A4;SALDO Fatt.n. 01/PA  del 31/01/2017 ESTUMULAZIONI ORDINARIE PER SCADENZA CONTRATTUALE;11/04/2017;1658;0;464;1;Spese correnti;3;Acquisto di beni e servizi;2;Acquisto di servizi;13;Servizi ausiliari per il funzionamento dell'ente;999;Altri servizi ausiliari n.a.c.
525,4;BOZZOLAN GIORGIO;ZBD1CC207E;SALDO Fatt.n. 1  del 20/03/2017 MODIFICA RECNZIONE IN PROSSIMITA' DEGLI INGRESSI DELLA SCUOLA;11/04/2017;1929;0;440;1;Spese correnti;3;Acquisto di beni e servizi;2;Acquisto di servizi;9;Manutenzione ordinaria e riparazioni;8;Manutenzione ordinaria e riparazioni di beni immobili
3.709,69;T.E.S.  SPA;Z841AFAFDB;SALDO Fatt.n. 78PA  del 09/02/2017 SEGNALETICA STRADALE.;11/04/2017;1933;0;219;1;Spese correnti;3;Acquisto di beni e servizi;1;Acquisto di beni;2;Altri beni di consumo;999;Altri beni e materiali di consumo n.a.c.
8.834,64;T.E.S.  SPA;Z841C5FD20;SALDO Fatt.n. 79PA  del 09/02/2017 SEGNALETICA STRADALE PISTA CICLABILE.;11/04/2017;1933;0;372;1;Spese correnti;3;Acquisto di beni e servizi;1;Acquisto di beni;2;Altri beni di consumo;999;Altri beni e materiali di consumo n.a.c.
5,89;TELECOM ITALIA S.P.A.; ;Fatt.n. 8A00229842 del 08/03/2017 CONTO TELECOM ITALIA 2' BIM. 2017. ALICE BUSINESS POSTA - PROFILO 1.;11/04/2017;1043;1;74;1;Spese correnti;3;Acquisto di beni e servizi;2;Acquisto di servizi;5;Utenze e canoni;1;Telefonia fissa
85,16;TELECOM ITALIA S.P.A.; ;Fatt.n. 8E00262688 del 08/03/2017 CONTO TELECOM ITALIA 2' BIM. 2017. 0425-486082;11/04/2017;1043;1;74;1;Spese correnti;3;Acquisto di beni e servizi;2;Acquisto di servizi;5;Utenze e canoni;1;Telefonia fissa
110,56;TELECOM ITALIA S.P.A.; ;Fatt.n. 8E00259500 del 08/03/2017 CONTO TELECOM 2' BIM. 2017. 0425-485225 SEDE PROTEZIONE CIVILE.;11/04/2017;1043;1;74;1;Spese correnti;3;Acquisto di beni e servizi;2;Acquisto di servizi;5;Utenze e canoni;1;Telefonia fissa
123,79;TELECOM ITALIA S.P.A.; ;Fatt.n. 8E00259613 del 08/03/2017 CONTO TELECOM 2' BIM. 2017. 0425-48221;11/04/2017;1043;1;74;1;Spese correnti;3;Acquisto di beni e servizi;2;Acquisto di servizi;5;Utenze e canoni;1;Telefonia fissa
274,67;TELECOM ITALIA S.P.A.; ;Fatt.n. 8E00263370 del 08/03/2017 CONTO TELECOM. 2' BIM. 2017. ALICE BUSINESS 2M LARGE 512 F;11/04/2017;1043;1;74;1;Spese correnti;3;Acquisto di beni e servizi;2;Acquisto di servizi;5;Utenze e canoni;1;Telefonia fissa
343,48;TELECOM ITALIA S.P.A.; ;Fatt.n. 8E00259340 del 08/03/2017 CONTO TELECOM ITALIA 2' BIM. 2017. ALICE BUSINESS 2M LARGE 512F;11/04/2017;1043;1;74;1;Spese correnti;3;Acquisto di beni e servizi;2;Acquisto di servizi;5;Utenze e canoni;1;Telefonia fissa
1.147,52;TELECOM ITALIA S.P.A.; ;Fatt.n. 8E00260803 del 08/03/2017 CONTO TELECOM. 2' BIM. 2017. AZIENDA TUTTOCOMPRESO UTENTI FASCIA M;11/04/2017;1043;1;74;1;Spese correnti;3;Acquisto di beni e servizi;2;Acquisto di servizi;5;Utenze e canoni;1;Telefonia fissa
104,74;TELECOM ITALIA S.P.A.; ;Fatt.n. 8E00264928 del 08/03/2017 CONTO TELECOM. 2' BIM. 2017. 0425-484757;11/04/2017;1366;1;72;1;Spese correnti;3;Acquisto di beni e servizi;2;Acquisto di servizi;5;Utenze e canoni;1;Telefonia fissa
104,73;TELECOM ITALIA S.P.A.; ;Fatt.n. 8E00264928 del 08/03/2017 CONTO TELECOM. 2' BIM. 2017. 0425-484757;11/04/2017;1386;1;73;1;Spese correnti;3;Acquisto di beni e servizi;2;Acquisto di servizi;5;Utenze e canoni;1;Telefonia fissa
106,9;TELECOM ITALIA S.P.A.; ;Fatt.n. 8E00264060 del 08/03/2017 CONTO TELECOM ITALIA. 2' BIM. 2017. 0425-484762;11/04/2017;1476;1;75;1;Spese correnti;3;Acquisto di beni e servizi;2;Acquisto di servizi;5;Utenze e canoni;1;Telefonia fissa
114,94;TELECOM ITALIA S.P.A.; ;Fatt.n. 8E00259473 del 08/03/2017 CONTO TELECOM ITALIA 2' BIM. 2017. 0425-486037;11/04/2017;1476;1;75;1;Spese correnti;3;Acquisto di beni e servizi;2;Acquisto di servizi;5;Utenze e canoni;1;Telefonia fissa
183,01;TELECOM ITALIA S.P.A.; ;Fatt.n. 8E00262361 del 08/03/2017 CONTO TELECOM. 2' BIM. 2017. AZIENDA TUTTOCOMPRESO - UTENTI FASCIA XS;11/04/2017;1476;1;75;1;Spese correnti;3;Acquisto di beni e servizi;2;Acquisto di servizi;5;Utenze e canoni;1;Telefonia fissa
50,41;TELECOM ITALIA S.P.A.; ;Fatt.n. 2E17004077 del 20/03/2017 NUMERO VERDE ASSISTENZA SOCIALE. APRILE 2017.;11/04/2017;1835;0;100;1;Spese correnti;3;Acquisto di beni e servizi;2;Acquisto di servizi;5;Utenze e canoni;1;Telefonia fissa
685,62;CASSA DEPOSITI E PRESTITI SPA; ;CASSA DEPOSITI E PRESTITI SPA-AMMORTAMENTO MUTUO MANUTENZIONE STRAORD. CA' BIANCA 2' SEMESTRE 2016. GESTIONE MEF (P.       3 -R.       3);12/04/2017;1063;0;2;1;Spese correnti;7;Interessi passivi;5;Interessi su Mutui e altri finanziamenti a medio lungo termine;4;Interessi passivi su finanziamenti a medio lungo termine a Imprese;4;Interessi passivi a Cassa Depositi e Prestiti - Gestione Tesoro su mutui e altri finanziamenti a medio lungo termine
871,09;CASSA DEPOSITI E PRESTITI SPA; ;CASSA DEPOSITI E PRESTITI SPA-AMMORTAMENTO MUTUO AMPLIAMENTO SCUOLA MEDIA 2' SEMESTRE 2016. GESTIONE MEF (P.       3 -R.       3);12/04/2017;1396;0;3;1;Spese correnti;7;Interessi passivi;5;Interessi su Mutui e altri finanziamenti a medio lungo termine;4;Interessi passivi su finanziamenti a medio lungo termine a Imprese;4;Interessi passivi a Cassa Depositi e Prestiti - Gestione Tesoro su mutui e altri finanziamenti a medio lungo termine
300,41;CASSA DEPOSITI E PRESTITI SPA; ;CASSA DEPOSITI E PRESTITI SPA-AMMORTAMENTO MUTUO AMPLIAMENTO ILLUMINAZIONE PUBBLICA 2' SEMESTRE 2016. GESTIONE MEF (P.       3 -R.       3);12/04/2017;1834;0;5;1;Spese correnti;7;Interessi passivi;5;Interessi su Mutui e altri finanziamenti a medio lungo termine;4;Interessi passivi su finanziamenti a medio lungo termine a Imprese;4;Interessi passivi a Cassa Depositi e Prestiti - Gestione Tesoro su mutui e altri finanziamenti a medio lungo termine
907,02;CASSA DEPOSITI E PRESTITI SPA; ;CASSA DEPOSITI E PRESTITI SPA-AMMORTAMENTO MUTUO GRADINATE IMPIANTI SPORTIVI 2' SEMESTRE 2016. GESTIONE MEF (P.       3 -R.       3);12/04/2017;1834;0;5;1;Spese correnti;7;Interessi passivi;5;Interessi su Mutui e altri finanziamenti a medio lungo termine;4;Interessi passivi su finanziamenti a medio lungo termine a Imprese;4;Interessi passivi a Cassa Depositi e Prestiti - Gestione Tesoro su mutui e altri finanziamenti a medio lungo termine
1.197,35;CASSA DEPOSITI E PRESTITI SPA; ;CASSA DEPOSITI E PRESTITI SPA-AMMORTAMENTO MUTUO MANUTENZIONE STRAORD. STRADE 2' SEMESTRE 2016. GESTIONE MEF (P.       3 -R.       3);12/04/2017;1936;0;6;1;Spese correnti;7;Interessi passivi;5;Interessi su Mutui e altri finanziamenti a medio lungo termine;4;Interessi passivi su finanziamenti a medio lungo termine a Imprese;4;Interessi passivi a Cassa Depositi e Prestiti - Gestione Tesoro su mutui e altri finanziamenti a medio lungo termine
1.755,63;CASSA DEPOSITI E PRESTITI SPA; ;CASSA DEPOSITI E PRESTITI SPA-AMMORTAMENTO MUTUO COSTRUZIONE STRADE COM.LI 2' SEMESTRE 2016. GESTIONE MEF (P.       3 -R.       3);12/04/2017;1936;0;6;1;Spese correnti;7;Interessi passivi;5;Interessi su Mutui e altri finanziamenti a medio lungo termine;4;Interessi passivi su finanziamenti a medio lungo termine a Imprese;4;Interessi passivi a Cassa Depositi e Prestiti - Gestione Tesoro su mutui e altri finanziamenti a medio lungo termine
1.958,47;CASSA DEPOSITI E PRESTITI SPA; ;CASSA DEPOSITI E PRESTITI SPA-AMMORTAMENTO MUTUO LAVORI ARREDO URBANO OB.2 2' SEMESTRE 2016. GESTIONE MEF (P.       3 -R.       3);12/04/2017;1936;0;6;1;Spese correnti;7;Interessi passivi;5;Interessi su Mutui e altri finanziamenti a medio lungo termine;4;Interessi passivi su finanziamenti a medio lungo termine a Imprese;4;Interessi passivi a Cassa Depositi e Prestiti - Gestione Tesoro su mutui e altri finanziamenti a medio lungo termine
352,88;CASSA DEPOSITI E PRESTITI SPA; ;CASSA DEPOSITI E PRESTITI SPA-AMMORTAMENTO MUTUO RISTRUTTURAZIONE SCUOLA MEDIA 2' SEMESTRE 2016. (P.       5 -R.       5);12/04/2017;1396;0;3;1;Spese correnti;7;Interessi passivi;5;Interessi su Mutui e altri finanziamenti a medio lungo termine;4;Interessi passivi su finanziamenti a medio lungo termine a Imprese;3;Interessi passivi a Cassa Depositi e Prestiti SPA su mutui e altri finanziamenti a medio lungo termine
810,13;CASSA DEPOSITI E PRESTITI SPA; ;CASSA DEPOSITI E PRESTITI SPA-AMMORTAMENTO MUTUO ACQUISTO AREA ACCESSO SCUOLA MEDIA 2' SEMESTRE 2016. (P.       5 -R.       5);12/04/2017;1396;0;3;1;Spese correnti;7;Interessi passivi;5;Interessi su Mutui e altri finanziamenti a medio lungo termine;4;Interessi passivi su finanziamenti a medio lungo termine a Imprese;3;Interessi passivi a Cassa Depositi e Prestiti SPA su mutui e altri finanziamenti a medio lungo termine
8.547,48;CASSA DEPOSITI E PRESTITI SPA; ;CASSA DEPOSITI E PRESTITI SPA-AMMORTAMENTO MUTUO MANUTENZIONE STRAORD. SCUOLA MEDIA 2' SEMESTRE 2016. (P.       5 -R.       5);12/04/2017;1396;0;3;1;Spese correnti;7;Interessi passivi;5;Interessi su Mutui e altri finanziamenti a medio lungo termine;4;Interessi passivi su finanziamenti a medio lungo termine a Imprese;3;Interessi passivi a Cassa Depositi e Prestiti SPA su mutui e altri finanziamenti a medio lungo termine
1.435,50;CASSA DEPOSITI E PRESTITI SPA; ;CASSA DEPOSITI E PRESTITI SPA-AMMORTAMENTO MUTUO 3' STRALCIO CIMITERO 2' SEMESTRE 2016. (P.       5 -R.       5);12/04/2017;1664;0;4;1;Spese correnti;7;Interessi passivi;5;Interessi su Mutui e altri finanziamenti a medio lungo termine;4;Interessi passivi su finanziamenti a medio lungo termine a Imprese;3;Interessi passivi a Cassa Depositi e Prestiti SPA su mutui e altri finanziamenti a medio lungo termine
4.879,15;CASSA DEPOSITI E PRESTITI SPA; ;CASSA DEPOSITI E PRESTITI SPA-AMMORTAMENTO MUTUO 4' STRALCIO CIMITERO 2' SEMESTRE 2016. (P.       5 -R.       5);12/04/2017;1664;0;4;1;Spese correnti;7;Interessi passivi;5;Interessi su Mutui e altri finanziamenti a medio lungo termine;4;Interessi passivi su finanziamenti a medio lungo termine a Imprese;3;Interessi passivi a Cassa Depositi e Prestiti SPA su mutui e altri finanziamenti a medio lungo termine
810,13;CASSA DEPOSITI E PRESTITI SPA; ;CASSA DEPOSITI E PRESTITI SPA-AMMORTAMENTO MUTUO ILLUMINAZIONE IMPIANTI SPORTIVI 2' SEMESTRE 2016. (P.       5 -R.       5);12/04/2017;1834;0;5;1;Spese correnti;7;Interessi passivi;5;Interessi su Mutui e altri finanziamenti a medio lungo termine;4;Interessi passivi su finanziamenti a medio lungo termine a Imprese;3;Interessi passivi a Cassa Depositi e Prestiti SPA su mutui e altri finanziamenti a medio lungo termine
1.287,54;CASSA DEPOSITI E PRESTITI SPA; ;CASSA DEPOSITI E PRESTITI SPA-AMMORTAMENTO MUTUO COMPLETAMENTO STRADA VIA VOLTA 2' SEMESTRE 2016. (P.       5 -R.       5);12/04/2017;1936;0;6;1;Spese correnti;7;Interessi passivi;5;Interessi su Mutui e altri finanziamenti a medio lungo termine;4;Interessi passivi su finanziamenti a medio lungo termine a Imprese;3;Interessi passivi a Cassa Depositi e Prestiti SPA su mutui e altri finanziamenti a medio lungo termine
3.708,33;CASSA DEPOSITI E PRESTITI SPA; ;CASSA DEPOSITI E PRESTITI SPA-AMMORTAMENTO MUTUO AMMODERNAMENTO STRUTTURE VIARIE 2' SEMESTRE 2016. (P.       5 -R.       5);12/04/2017;1936;0;6;1;Spese correnti;7;Interessi passivi;5;Interessi su Mutui e altri finanziamenti a medio lungo termine;4;Interessi passivi su finanziamenti a medio lungo termine a Imprese;3;Interessi passivi a Cassa Depositi e Prestiti SPA su mutui e altri finanziamenti a medio lungo termine
4.166,00;CASSA DEPOSITI E PRESTITI SPA; ;CASSA DEPOSITI E PRESTITI SPA-AMMORTAMENTO MUTUO AMPLIAMENTO ILLUMINAZIONE PUBBLICA 2' SEMESTRE 2016. (P.       5 -R.       5);12/04/2017;1936;0;6;1;Spese correnti;7;Interessi passivi;5;Interessi su Mutui e altri finanziamenti a medio lungo termine;4;Interessi passivi su finanziamenti a medio lungo termine a Imprese;3;Interessi passivi a Cassa Depositi e Prestiti SPA su mutui e altri finanziamenti a medio lungo termine
4.076,55;CASSA DEPOSITI E PRESTITI SPA; ;CASSA DEPOSITI E PRESTITI SPA-AMMORTAMENTO MUTUI RINEGOZIATI 2' SEMESTRE 2016. (P.       5 -R.       5);12/04/2017;2160;0;7;1;Spese correnti;7;Interessi passivi;5;Interessi su Mutui e altri finanziamenti a medio lungo termine;4;Interessi passivi su finanziamenti a medio lungo termine a Imprese;4;Interessi passivi a Cassa Depositi e Prestiti - Gestione Tesoro su mutui e altri finanziamenti a medio lungo termine
1.000,00;R2 di Maniero Roberto & C. S.N.C.;Z0F1CBE2E3;ACCONTO Fatt.n. 01/2017/EL  del 28/02/2017 Serie di bacheche con misure;20/04/2017;1043;5;437;1;Spese correnti;3;Acquisto di beni e servizi;1;Acquisto di beni;2;Altri beni di consumo;999;Altri beni e materiali di consumo n.a.c.
2.355,00;R2 di Maniero Roberto & C. S.N.C.;Z0F1CBE2E3;SALDO Fatt.n. 01/2017/EL  del 28/02/2017 Serie di bacheche con misure;20/04/2017;1059;2;438;1;Spese correnti;3;Acquisto di beni e servizi;2;Acquisto di servizi;99;Altri servizi;999;Altri servizi diversi n.a.c.
60;INFOPOL SRL;Z421E28093;SALDO Fatt.n. FATTPA 59_17  del 24/03/2017 CORSO DI FORMAZIONE POLIZIA LOCALE. BOVOLONE 13/03/2017.;20/04/2017;1266;0;107;1;Spese correnti;3;Acquisto di beni e servizi;2;Acquisto di servizi;4;Acquisto di servizi per formazione e addestramento del personale dell'ente;999;Acquisto di servizi per altre spese per formazione e addestramento n.a.c.
2.642,17;SERENISSIMA RISTORAZIONE S.P.A.;Z281244682;SALDO Fatt.n. 00805/4  del 28/02/2017 SERVIZIO MENSA SCUOLA ELEMENTARE. FEBBRAIO 2017.;20/04/2017;1416;0;23;1;Spese correnti;3;Acquisto di beni e servizi;2;Acquisto di servizi;15;Contratti di servizio pubblico;6;Contratti di servizio per le mense scolastiche
767,25;COOPERATIVA SOCIALE SPERANZA;ZCB1B0F5E1;SALDO Fatt.n. PA/36  del 28/02/2017 SERVIZIO ACCOMPAGNAMENTO ALUNNI SCUOLABUS. FEBBRAIO 2017.;20/04/2017;1432;0;404;1;Spese correnti;3;Acquisto di beni e servizi;2;Acquisto di servizi;99;Altri servizi;999;Altri servizi diversi n.a.c.
2.355,85;LAERTE SERVIZI COOPERATIVA SOCIALE ONLUS;XD90FA8615;SALDO Fatt.n. 48/PA/2017  del 28/02/2017 SERVIZIO DI ASSISTENZA SOCIALE E DOMICILIARE. FEBBRAIO 2017.;20/04/2017;1906;0;55;1;Spese correnti;3;Acquisto di beni e servizi;2;Acquisto di servizi;15;Contratti di servizio pubblico;9;Contratti di servizio di assistenza sociale domiciliare
848,61;CENTRO VERDE SRL;ZB21E043C6;SALDO Fatt.n. 30  del 04/04/2017 Manutenzione e riparazione trattorini rasa erba di proprieta' comunale a seguito di inconvenienti non riscontrabili e/o valutabili a vista.;20/04/2017;1926;0;93;1;Spese correnti;3;Acquisto di beni e servizi;2;Acquisto di servizi;9;Manutenzione ordinaria e riparazioni;1;Manutenzione ordinaria e riparazioni di mezzi di trasporto ad uso civile, di sicurezza e ordine pubblico
2.141,02;LEGA NAZIONALE PER LA DIFESA DEL CANE; ;Rifugio Cani di Fenil del Turco - quota anno 2017.;20/04/2017;1621;0;24;1;Spese correnti;4;Trasferimenti correnti;1;Trasferimenti correnti a Amministrazioni Pubbliche;2;Trasferimenti correnti a Amministrazioni Locali;11;Trasferimenti correnti a Aziende sanitarie locali  n.a.f.
185;L.F.; ;Erogazione somme.;20/04/2017;1888;0;108;1;Spese correnti;4;Trasferimenti correnti;2;Trasferimenti correnti a Famiglie;2;Interventi assistenziali;999;Altri assegni e sussidi assistenziali
150;M.K.; ;Erogazione somme.;20/04/2017;1888;0;108;1;Spese correnti;4;Trasferimenti correnti;2;Trasferimenti correnti a Famiglie;2;Interventi assistenziali;999;Altri assegni e sussidi assistenziali
151;P.A.; ;Erogazione somme.;20/04/2017;1888;0;108;1;Spese correnti;4;Trasferimenti correnti;2;Trasferimenti correnti a Famiglie;2;Interventi assistenziali;999;Altri assegni e sussidi assistenziali
500;ARCIERI & ARCIERI SRL;Z201E47737;Rinnovo polizza RCT;24/04/2017;1044;0;109;1;Spese correnti;10;Altre spese correnti;4;Premi di assicurazione;1;Premi di assicurazione contro i danni;999;Altri premi di assicurazione contro i danni
1.100,00;ARCIERI & ARCIERI SRL;ZB81E47701;Rinnovo polizze kasko.;24/04/2017;1044;0;109;1;Spese correnti;10;Altre spese correnti;4;Premi di assicurazione;1;Premi di assicurazione contro i danni;999;Altri premi di assicurazione contro i danni
4.622,00;ARCIERI & ARCIERI SRL;Z9A1E476C3;Rinnovo polizza RCA;24/04/2017;1044;0;109;1;Spese correnti;10;Altre spese correnti;4;Premi di assicurazione;1;Premi di assicurazione contro i danni;999;Altri premi di assicurazione contro i danni
23,18;ENEL ENERGIA SPA; ;SALDO Fatt.n. 004800507778  del 12/04/2017 FORNITURA ENERGIA ELETTRICA. MARZO 2017. PIAZZA ATHESIA SNC;27/04/2017;1043;2;114;1;Spese correnti;3;Acquisto di beni e servizi;2;Acquisto di servizi;5;Utenze e canoni;4;Energia elettrica
101,32;ENEL ENERGIA SPA; ;SALDO Fatt.n. 004800487395  del 09/04/2017 FORNITURA ENERGIA ELETTRICA. FEBBRAIO - MARZO 2017. VIA GALLO 1.;27/04/2017;1043;2;114;1;Spese correnti;3;Acquisto di beni e servizi;2;Acquisto di servizi;5;Utenze e canoni;4;Energia elettrica
400,09;ENEL ENERGIA SPA; ;SALDO Fatt.n. 004800496961  del 11/04/2017 FORNITURA ENERGIA ELETTRICA. MARZO 2017. PIAZZA ATHESIA 5.;27/04/2017;1043;2;114;1;Spese correnti;3;Acquisto di beni e servizi;2;Acquisto di servizi;5;Utenze e canoni;4;Energia elettrica
442,26;ENEL ENERGIA SPA; ;SALDO Fatt.n. 004800488435  del 09/04/2017 FORNITURA ENERGIA ELETTRICA. FEBBRAIO - MARZO 2017. PIAZZA ATHESIA 4.;27/04/2017;1043;2;114;1;Spese correnti;3;Acquisto di beni e servizi;2;Acquisto di servizi;5;Utenze e canoni;4;Energia elettrica
679,53;ENEL ENERGIA SPA; ;SALDO Fatt.n. 004800507777  del 12/04/2017 FORNITURA ENERGIA ELETTRICA. MARZO 2017. PIAZZA ATHESIA 2.;27/04/2017;1043;2;114;1;Spese correnti;3;Acquisto di beni e servizi;2;Acquisto di servizi;5;Utenze e canoni;4;Energia elettrica
408,41;ENEL ENERGIA SPA; ;ACCONTO Fatt.n. 004800487392  del 09/04/2017 FORNITURA ENERGIA ELETTRICA. MARZO 2017. VIA E. FERMI 18;27/04/2017;1366;2;111;1;Spese correnti;3;Acquisto di beni e servizi;2;Acquisto di servizi;5;Utenze e canoni;4;Energia elettrica
408,4;ENEL ENERGIA SPA; ;SALDO Fatt.n. 004800487392  del 09/04/2017 FORNITURA ENERGIA ELETTRICA. MARZO 2017. VIA E. FERMI 18;27/04/2017;1386;2;112;1;Spese correnti;3;Acquisto di beni e servizi;2;Acquisto di servizi;5;Utenze e canoni;4;Energia elettrica
116,36;ENEL ENERGIA SPA; ;SALDO Fatt.n. 004800487393  del 09/04/2017 FORNITURA ENERGIA ELETTRICA. FEBBRAIO - MARZO 2017. VIA GORGHETTI 4;27/04/2017;1656;0;110;1;Spese correnti;3;Acquisto di beni e servizi;2;Acquisto di servizi;5;Utenze e canoni;4;Energia elettrica
328,42;ENEL ENERGIA SPA; ;SALDO Fatt.n. 004800487394  del 09/04/2017 FORNITURA ENERGIA ELETTRICA. FEBBRAIO - MARZO 2017.;27/04/2017;1656;0;110;1;Spese correnti;3;Acquisto di beni e servizi;2;Acquisto di servizi;5;Utenze e canoni;4;Energia elettrica
187,92;ENEL ENERGIA SPA; ;SALDO Fatt.n. 004800496802  del 11/04/2017 FORNITURA ENERGIA ELETTRICA. FEBBRAIO-MARZO 2017. VIA VALLAZZA 28.;27/04/2017;1826;0;113;1;Spese correnti;3;Acquisto di beni e servizi;2;Acquisto di servizi;5;Utenze e canoni;4;Energia elettrica
11,16;ENEL ENERGIA SPA; ;SALDO Fatt.n. 004800487724  del 09/04/2017 FORNITURA ENERGIA ELETTRICA. MARZO 2017. VIA VECCHIA VIC 2.;27/04/2017;1937;0;115;1;Spese correnti;3;Acquisto di beni e servizi;2;Acquisto di servizi;5;Utenze e canoni;4;Energia elettrica
12,68;ENEL ENERGIA SPA; ;SALDO Fatt.n. 004800487037  del 09/04/2017 FORNITURA ENERGIA ELETTRICA. MARZO 2017. VIA DEL GATTO 1.;27/04/2017;1937;0;115;1;Spese correnti;3;Acquisto di beni e servizi;2;Acquisto di servizi;5;Utenze e canoni;4;Energia elettrica
14,41;ENEL ENERGIA SPA; ;SALDO Fatt.n. 004800518733  del 12/04/2017 FORNITURA ENERGIA ELETTRICA. MARZO 2017. VIA DEL GATTO 17.;27/04/2017;1937;0;115;1;Spese correnti;3;Acquisto di beni e servizi;2;Acquisto di servizi;5;Utenze e canoni;4;Energia elettrica
15,87;ENEL ENERGIA SPA; ;SALDO Fatt.n. 004800487696  del 09/04/2017 FORNITURA ENERGIA ELETTRICA. MARZO 2017. VIA PASCOLON SNC.;27/04/2017;1937;0;115;1;Spese correnti;3;Acquisto di beni e servizi;2;Acquisto di servizi;5;Utenze e canoni;4;Energia elettrica
15,49;ENEL ENERGIA SPA; ;SALDO Fatt.n. 004800487711  del 09/04/2017 FORNITURA ENERGIA ELETTRICA. MARZO 2017. VIA SABBIONI VIC 3.;27/04/2017;1937;0;115;1;Spese correnti;3;Acquisto di beni e servizi;2;Acquisto di servizi;5;Utenze e canoni;4;Energia elettrica
26,07;ENEL ENERGIA SPA; ;SALDO Fatt.n. 004800487717  del 09/04/2017 FORNITURA ENERGIA ELETTRICA. MARZO 2017. VIA FONTANE VIC 2.;27/04/2017;1937;0;115;1;Spese correnti;3;Acquisto di beni e servizi;2;Acquisto di servizi;5;Utenze e canoni;4;Energia elettrica
31,79;ENEL ENERGIA SPA; ;SALDO Fatt.n. 004800516424  del 12/04/2017 FORNITURA ENERGIA ELETTRICA. MARZO 2017. VIA FONTANE SNC;27/04/2017;1937;0;115;1;Spese correnti;3;Acquisto di beni e servizi;2;Acquisto di servizi;5;Utenze e canoni;4;Energia elettrica
48,51;ENEL ENERGIA SPA; ;SALDO Fatt.n. 004800487698  del 09/04/2017 FORNITURA ENERGIA ELETTRICA. MARZO 2017. VIA DEL GATTO SNC.;27/04/2017;1937;0;115;1;Spese correnti;3;Acquisto di beni e servizi;2;Acquisto di servizi;5;Utenze e canoni;4;Energia elettrica
54,73;ENEL ENERGIA SPA; ;SALDO Fatt.n. 004800487041  del 09/04/2017 FORNITURA ENERGIA ELETTRICA. MARZO 2017. VIA FERRARIA VIC 3.;27/04/2017;1937;0;115;1;Spese correnti;3;Acquisto di beni e servizi;2;Acquisto di servizi;5;Utenze e canoni;4;Energia elettrica
63,62;ENEL ENERGIA SPA; ;SALDO Fatt.n. 004800529523  del 12/04/2017 FORNITURA ENERGIA ELETTRICA. MARZO 2017. VIA GALLO VIC 2.;27/04/2017;1937;0;115;1;Spese correnti;3;Acquisto di beni e servizi;2;Acquisto di servizi;5;Utenze e canoni;4;Energia elettrica
63,62;ENEL ENERGIA SPA; ;SALDO Fatt.n. 004800518734  del 12/04/2017 FORNITURA ENERGIA ELETTRICA. MARZO 2017. VIA GORGHETTI SNC.;27/04/2017;1937;0;115;1;Spese correnti;3;Acquisto di beni e servizi;2;Acquisto di servizi;5;Utenze e canoni;4;Energia elettrica
75,38;ENEL ENERGIA SPA; ;SALDO Fatt.n. 004800487697  del 09/04/2017 FORNITURA ENERGIA ELETTRICA. MARZO 2017. VIA VOLTA SNC.;27/04/2017;1937;0;115;1;Spese correnti;3;Acquisto di beni e servizi;2;Acquisto di servizi;5;Utenze e canoni;4;Energia elettrica
82,22;ENEL ENERGIA SPA; ;SALDO Fatt.n. 004800518736  del 12/04/2017 FORNITURA ENERGIA ELETTRICA. MARZO 2017. VIA GALLO 50.;27/04/2017;1937;0;115;1;Spese correnti;3;Acquisto di beni e servizi;2;Acquisto di servizi;5;Utenze e canoni;4;Energia elettrica
133,33;ENEL ENERGIA SPA; ;SALDO Fatt.n. 004800487708  del 09/04/2017 FORNITURA ENERGIA ELETTRICA. MARZO 2017. VIA ONARI VIC 3.;27/04/2017;1937;0;115;1;Spese correnti;3;Acquisto di beni e servizi;2;Acquisto di servizi;5;Utenze e canoni;4;Energia elettrica
135,48;ENEL ENERGIA SPA; ;SALDO Fatt.n. 004800487722  del 09/04/2017 FORNITURA ENERGIA ELETTRICA. MARZO 2017. VIA FERRARIA SNC.;27/04/2017;1937;0;115;1;Spese correnti;3;Acquisto di beni e servizi;2;Acquisto di servizi;5;Utenze e canoni;4;Energia elettrica
136,68;ENEL ENERGIA SPA; ;SALDO Fatt.n. 004800487718  del 09/04/2017 FORNITURA ENERGIA ELETTRICA. MARZO 2017. VIA STRADON 27.;27/04/2017;1937;0;115;1;Spese correnti;3;Acquisto di beni e servizi;2;Acquisto di servizi;5;Utenze e canoni;4;Energia elettrica
187,87;ENEL ENERGIA SPA; ;SALDO Fatt.n. 004800487721  del 09/04/2017 FORNITURA ENERGIA ELETTRICA. MARZO 2017. VIA BONIOLE SNC.;27/04/2017;1937;0;115;1;Spese correnti;3;Acquisto di beni e servizi;2;Acquisto di servizi;5;Utenze e canoni;4;Energia elettrica
201,37;ENEL ENERGIA SPA; ;SALDO Fatt.n. 004800487701  del 09/04/2017 FORNITURA ENERGIA ELETTRICA. MARZO 2017. VIA CANALETTA SNC.;27/04/2017;1937;0;115;1;Spese correnti;3;Acquisto di beni e servizi;2;Acquisto di servizi;5;Utenze e canoni;4;Energia elettrica
335,07;ENEL ENERGIA SPA; ;SALDO Fatt.n. 004800487693  del 09/04/2017 FORNITURA ENERGIA ELETTRICA. MARZO 2017. VIA ROMA SNC.;27/04/2017;1937;0;115;1;Spese correnti;3;Acquisto di beni e servizi;2;Acquisto di servizi;5;Utenze e canoni;4;Energia elettrica
369,53;ENEL ENERGIA SPA; ;SALDO Fatt.n. 004800530165  del 12/04/2017 FORNITURA ENERGIA ELETTRICA. MARZO 2017. VIA DELL'ARTIGIANATO SNC.;27/04/2017;1937;0;115;1;Spese correnti;3;Acquisto di beni e servizi;2;Acquisto di servizi;5;Utenze e canoni;4;Energia elettrica
413,95;ENEL ENERGIA SPA; ;SALDO Fatt.n. 004800487720  del 09/04/2017 FORNITURA ENERGIA ELETTRICA. MARZO 2017. VIA DELLO SPORT SN.;27/04/2017;1937;0;115;1;Spese correnti;3;Acquisto di beni e servizi;2;Acquisto di servizi;5;Utenze e canoni;4;Energia elettrica
506,23;ENEL ENERGIA SPA; ;SALDO Fatt.n. 004800487704  del 09/04/2017 FORNITURA ENERGIA ELETTRICA. MARZO 2017. VIA ROMA SNC;27/04/2017;1937;0;115;1;Spese correnti;3;Acquisto di beni e servizi;2;Acquisto di servizi;5;Utenze e canoni;4;Energia elettrica
684,85;ENEL ENERGIA SPA; ;SALDO Fatt.n. 004800518737  del 12/04/2017 FORNITURA ENERGIA ELETTRICA. MARZO 2017. VIA XXV APRILE SNC.;27/04/2017;1937;0;115;1;Spese correnti;3;Acquisto di beni e servizi;2;Acquisto di servizi;5;Utenze e canoni;4;Energia elettrica
2,83;ENEL ENERGIA SPA; ;SALDO Fatt.n. 004800487039  del 09/04/2017 FORNITURA ENERGIA ELETTRICA. MARZO 2017. VIA ONARI VIC 4.;27/04/2017;1937;0;115;1;Spese correnti;3;Acquisto di beni e servizi;2;Acquisto di servizi;5;Utenze e canoni;4;Energia elettrica
2,38;ENEL ENERGIA SPA; ;SALDO Fatt.n. 004800487723  del 09/04/2017 FORNITURA ENERGIA ELETTRICA. MARZO 2017. VIA XI NOVEMBRE 36;27/04/2017;1937;0;115;1;Spese correnti;3;Acquisto di beni e servizi;2;Acquisto di servizi;5;Utenze e canoni;4;Energia elettrica
3,88;ENEL ENERGIA SPA; ;SALDO Fatt.n. 004800487893  del 09/04/2017 FORNITURA ENERGIA ELETTRICA. MARZO 2017. VIA VECCHIA SNC.;27/04/2017;1937;0;115;1;Spese correnti;3;Acquisto di beni e servizi;2;Acquisto di servizi;5;Utenze e canoni;4;Energia elettrica
10,25;ENEL ENERGIA SPA; ;SALDO Fatt.n. 004800487040  del 09/04/2017 FORNITURA ENERGIA ELETTRICA. MARZO 2017. VIA PASCOLON VIC 9.;27/04/2017;1937;0;115;1;Spese correnti;3;Acquisto di beni e servizi;2;Acquisto di servizi;5;Utenze e canoni;4;Energia elettrica
10,26;ENEL ENERGIA SPA; ;SALDO Fatt.n. 004800487036  del 09/04/2017 FORNITURA ENERGIA ELETTRICA. MARZO 2017. VIA CA' BIANCA SNC.;27/04/2017;1937;0;115;1;Spese correnti;3;Acquisto di beni e servizi;2;Acquisto di servizi;5;Utenze e canoni;4;Energia elettrica
16,24;ENEL ENERGIA SPA; ;SALDO Fatt.n. 004800487715  del 09/04/2017 FORNITURA ENERGIA ELETTRICA. MARZO 2017. VIA GALLO 23.;27/04/2017;1937;0;115;1;Spese correnti;3;Acquisto di beni e servizi;2;Acquisto di servizi;5;Utenze e canoni;4;Energia elettrica
20,81;ENEL ENERGIA SPA; ;SALDO Fatt.n. 004800486210  del 09/04/2017 FORNITURA ENERGIA ELETTRICA. MARZO 2017. VIA BRAGANTE SNC.;27/04/2017;1937;0;115;1;Spese correnti;3;Acquisto di beni e servizi;2;Acquisto di servizi;5;Utenze e canoni;4;Energia elettrica
37,05;ENEL ENERGIA SPA; ;SALDO Fatt.n. 004800487703  del 09/04/2017 FORNITURA ENERGIA ELETTRICA. MARZO 2017. VIA SABBIONI VIC 4.;27/04/2017;1937;0;115;1;Spese correnti;3;Acquisto di beni e servizi;2;Acquisto di servizi;5;Utenze e canoni;4;Energia elettrica
38,56;ENEL ENERGIA SPA; ;SALDO Fatt.n. 004800487700  del 09/04/2017 FORNITURA ENERGIA ELETTRICA. MARZO 2017. VIA FERRARIA VIC 1.;27/04/2017;1937;0;115;1;Spese correnti;3;Acquisto di beni e servizi;2;Acquisto di servizi;5;Utenze e canoni;4;Energia elettrica
38,22;ENEL ENERGIA SPA; ;SALDO Fatt.n. 004800487034  del 09/04/2017 FORNITURA ENERGIA ELETTRICA. MARZO 2017. VIA PASCOLON VIC 2.;27/04/2017;1937;0;115;1;Spese correnti;3;Acquisto di beni e servizi;2;Acquisto di servizi;5;Utenze e canoni;4;Energia elettrica
43,41;ENEL ENERGIA SPA; ;SALDO Fatt.n. 004800487694  del 09/04/2017 FORNITURA ENERGIA ELETTRICA. MARZO 2017. VIA PASCOLON 3.;27/04/2017;1937;0;115;1;Spese correnti;3;Acquisto di beni e servizi;2;Acquisto di servizi;5;Utenze e canoni;4;Energia elettrica
75,14;ENEL ENERGIA SPA; ;SALDO Fatt.n. 004800487712  del 09/04/2017 FORNITURA ENERGIA ELETTRICA. MARZO 2017. VIA ROMA VIC 4.;27/04/2017;1937;0;115;1;Spese correnti;3;Acquisto di beni e servizi;2;Acquisto di servizi;5;Utenze e canoni;4;Energia elettrica
80,01;ENEL ENERGIA SPA; ;SALDO Fatt.n. 004800487035  del 09/04/2017 FORNITURA ENERGIA ELETTRICA. MARZO 2017. VIA G. MARCONI VIC 7.;27/04/2017;1937;0;115;1;Spese correnti;3;Acquisto di beni e servizi;2;Acquisto di servizi;5;Utenze e canoni;4;Energia elettrica
88,93;ENEL ENERGIA SPA; ;SALDO Fatt.n. 004800487706  del 09/04/2017 FORNITURA ENERGIA ELETTRICA. MARZO 2017. VIA GORGHETTI VIC 2.;27/04/2017;1937;0;115;1;Spese correnti;3;Acquisto di beni e servizi;2;Acquisto di servizi;5;Utenze e canoni;4;Energia elettrica
152,8;ENEL ENERGIA SPA; ;SALDO Fatt.n. 004800487709  del 09/04/2017 FORNITURA ENERGIA ELETTRICA. MARZO 2017. VIA FERRATA 3.;27/04/2017;1937;0;115;1;Spese correnti;3;Acquisto di beni e servizi;2;Acquisto di servizi;5;Utenze e canoni;4;Energia elettrica
209,18;ENEL ENERGIA SPA; ;SALDO Fatt.n. 004800487692  del 09/04/2017 FORNITURA ENERGIA ELETTRICA. MARZO 2017. VIA II GIUGNO 1;27/04/2017;1937;0;115;1;Spese correnti;3;Acquisto di beni e servizi;2;Acquisto di servizi;5;Utenze e canoni;4;Energia elettrica
302,69;ENEL ENERGIA SPA; ;SALDO Fatt.n. 004800487707  del 09/04/2017 FORNITURA ENERGIA ELETTRICA. MARZO 2017. VIA FERRARIA SNC.;27/04/2017;1937;0;115;1;Spese correnti;3;Acquisto di beni e servizi;2;Acquisto di servizi;5;Utenze e canoni;4;Energia elettrica
316,77;ENEL ENERGIA SPA; ;SALDO Fatt.n. 004800487716  del 09/04/2017 FORNITURA ENERGIA ELETTRICA. MARZO 2017. VIA BONIOLE SNC.;27/04/2017;1937;0;115;1;Spese correnti;3;Acquisto di beni e servizi;2;Acquisto di servizi;5;Utenze e canoni;4;Energia elettrica
335,29;ENEL ENERGIA SPA; ;SALDO Fatt.n. 004800487719  del 09/04/2017 FORNITURA ENERGIA ELETTRICA. MARZO 2017. VIA BONIOLE SNC.;27/04/2017;1937;0;115;1;Spese correnti;3;Acquisto di beni e servizi;2;Acquisto di servizi;5;Utenze e canoni;4;Energia elettrica
381,43;ENEL ENERGIA SPA; ;SALDO Fatt.n. 004800487713  del 09/04/2017 FORNITURA ENERGIA ELETTRICA. MARZO 2017. VIA L. DA VINCI VIC 1.;27/04/2017;1937;0;115;1;Spese correnti;3;Acquisto di beni e servizi;2;Acquisto di servizi;5;Utenze e canoni;4;Energia elettrica
474,54;ENEL ENERGIA SPA; ;SALDO Fatt.n. 004800487714  del 09/04/2017 FORNITURA ENERGIA ELETTRICA. MARZO 2017. VIA BARCHESSA VIC 5.;27/04/2017;1937;0;115;1;Spese correnti;3;Acquisto di beni e servizi;2;Acquisto di servizi;5;Utenze e canoni;4;Energia elettrica
644,44;ENEL ENERGIA SPA; ;SALDO Fatt.n. 004800487705  del 09/04/2017 FORNITURA ENERGIA ELETTRICA. MARZO 2017. VIA XI NOVEMBRE SNC.;27/04/2017;1937;0;115;1;Spese correnti;3;Acquisto di beni e servizi;2;Acquisto di servizi;5;Utenze e canoni;4;Energia elettrica
922,19;ENEL ENERGIA SPA; ;SALDO Fatt.n. 004800487702  del 09/04/2017 FORNITURA ENERGIA ELETTRICA. MARZO 2017. VIA ROMA VIC 6.;27/04/2017;1937;0;115;1;Spese correnti;3;Acquisto di beni e servizi;2;Acquisto di servizi;5;Utenze e canoni;4;Energia elettrica
1.307,18;SINERGIE SPA;3888505FD2;Fatt.n. 331700001038 del 31/03/2017 FORNITURA CALORE A.T. 2016-2017. 6^ RATA MARZO2017.;27/04/2017;1043;3;116;1;Spese correnti;3;Acquisto di beni e servizi;2;Acquisto di servizi;5;Utenze e canoni;6;Gas
2.614,40;SINERGIE SPA;3888505FD2;Fatt.n. 331700001038 del 31/03/2017 FORNITURA CALORE A.T. 2016-2017. 6^ RATA MARZO2017.;27/04/2017;1366;3;117;1;Spese correnti;3;Acquisto di beni e servizi;2;Acquisto di servizi;5;Utenze e canoni;6;Gas
2.614,40;SINERGIE SPA;3888505FD2;Fatt.n. 331700001038 del 31/03/2017 FORNITURA CALORE A.T. 2016-2017. 6^ RATA MARZO2017.;27/04/2017;1386;3;118;1;Spese correnti;3;Acquisto di beni e servizi;2;Acquisto di servizi;5;Utenze e canoni;6;Gas
50,41;TELECOM ITALIA S.P.A.; ;SALDO Fatt.n. 2E17005574  del 20/04/2017 NUMERO VERDE ASSISTENZA SOCIALE. MAGGIO 2017.;05/05/2017;1835;0;126;1;Spese correnti;3;Acquisto di beni e servizi;2;Acquisto di servizi;5;Utenze e canoni;1;Telefonia fissa
1.204,07;REGIONE VENETO - BANCA D'ITALIA TES. PROV. VE; ;Liquidazione quota anno 2016 fondo regionale per l'Edilizia Residenziale Pubblica (L.R. n. 10/1996).;05/05/2017;1913;0;119;1;Spese correnti;4;Trasferimenti correnti;1;Trasferimenti correnti a Amministrazioni Pubbliche;2;Trasferimenti correnti a Amministrazioni Locali;1;Trasferimenti correnti a Regioni e province autonome
1.867,60;MARCOLIN ALESSIO;Z911D78646;ACCONTO Fatt.n. 2/PA  del 12/04/2017 MANUTENZIONE VENEZIANE PRESSO LOCALI SCUOLE DELL'OBBLIGO, FORNITURA AVVOLGIBILI IN PVC, SOSTITUZIONE VETRI SOPRAPORTA.;05/05/2017;1155;0;40;1;Spese correnti;3;Acquisto di beni e servizi;1;Acquisto di beni;2;Altri beni di consumo;999;Altri beni e materiali di consumo n.a.c.
708,6;MARCOLIN ALESSIO;Z911D78646;SALDO Fatt.n. 2/PA  del 12/04/2017 MANUTENZIONE VENEZIANE PRESSO LOCALI SCUOLE DELL'OBBLIGO, FORNITURA AVVOLGIBILI IN PVC, SOSTITUZIONE VETRI SOPRAPORTA.;05/05/2017;1156;0;41;1;Spese correnti;3;Acquisto di beni e servizi;2;Acquisto di servizi;9;Manutenzione ordinaria e riparazioni;8;Manutenzione ordinaria e riparazioni di beni immobili
1.391,80;ARTE FUNERARIA GS DI MINGARDO SILVANO & C. SNC;ZF01DB669F;SALDO Fatt.n. 02/PA  del 11/04/2017 Interventi di tumulazioni e/o inumazioni nei manufatti comunali (loculi e/o ossari e campo comune).;05/05/2017;1658;0;51;1;Spese correnti;3;Acquisto di beni e servizi;2;Acquisto di servizi;13;Servizi ausiliari per il funzionamento dell'ente;999;Altri servizi ausiliari n.a.c.
992,51;MAROLIN F. & FIGLI SNC DI MAROLIN FRANCO;ZDA1D7E768;SALDO Fatt.n. 93  del 20/03/2017 RIF. VS IMPEGNO DI SPESA PER L'ACQUISTO DI PZ DI RICAMBIO DEL BRACCIO DECESPUGLIATORE MODELLO M600 - PROT 1452 DEL 27.02.17 - DETERMINAZIONE 18 - REG GEN. 47 DEL 22.02.2017;05/05/2017;1927;0;44;1;Spese correnti;3;Acquisto di beni e servizi;1;Acquisto di beni;2;Altri beni di consumo;7;Altri materiali tecnico-specialistici non sanitari
1.025,80;BETON ASFALTI SRL A SOCIO UNICO;Z921DE3A5D;SALDO Fatt.n. 2017SPSE123  del 31/03/2017 Fornitura di conglomerato bituminoso a freddo per ripristini esigenti e duraturi sulle strade comunali.;05/05/2017;1928;0;76;1;Spese correnti;3;Acquisto di beni e servizi;1;Acquisto di beni;2;Altri beni di consumo;999;Altri beni e materiali di consumo n.a.c.
9,02;TELEPASS SPA; ;TELEPASS SPA-PAGAMENTO CORRISPETTIVO TELEPASS (P.      39 -R.     473);11/05/2017;1084;0;137;1;Spese correnti;3;Acquisto di beni e servizi;2;Acquisto di servizi;2;Organizzazione eventi, pubblicita` e servizi per trasferta;999;Altre spese per relazioni pubbliche, convegni e mostre, pubblicita` n.a.c
2,98;AUTOSTRADE PER L'ITALIA S.P.A;0;SALDO Fatt.n. 900008683D  del 30/04/2017 PEDAGGI AUTOSTRADALI. APRILE 2017.;12/05/2017;1084;0;137;1;Spese correnti;3;Acquisto di beni e servizi;2;Acquisto di servizi;2;Organizzazione eventi, pubblicita` e servizi per trasferta;999;Altre spese per relazioni pubbliche, convegni e mostre, pubblicita` n.a.c
4,65;AGENZIA DELLE ENTRATE; ;SOMME DI COMPETENZA DELL'IFEL ANNO 2016. VERSAMENTI IMU  13/03-03/05/2017. MANDATO DI PAGAMENTO COMPENSATO DA ORDINATIVO D'INCASSO N. 368/17 EMESSO IN DATA ODIERNA;12/05/2017;1065;0;506;1;Spese correnti;4;Trasferimenti correnti;1;Trasferimenti correnti a Amministrazioni Pubbliche;2;Trasferimenti correnti a Amministrazioni Locali;19;Trasferimenti correnti a Fondazioni e istituzioni liriche locali e a Teatri stabili di iniziativa pubblica
2,17;EQUITALIA NORD SPA-AGENTE RISCOSSIONE  PROV. RO.; ;INCASSO RUOLI POLIZIA LOCALE 10/01/2017-20/04/2017 - P.F. MANDATO DI PAGAMENTO COMPENSATO DA ORDINATIVO D'INCASSO N. 369/17 EMESSO IN DATA ODIERNA;12/05/2017;1187;0;132;1;Spese correnti;3;Acquisto di beni e servizi;2;Acquisto di servizi;3;Aggi di riscossione;999;Altri aggi di riscossione n.a.c.
1,3;EQUITALIA NORD SPA-AGENTE RISCOSSIONE  PROV. RO.; ;INCASSO RUOLI POLIZIA LOCALE 10/01/2017-20/04/207 - P.G. MANDATO DI PAGAMENTO COMPENSATO DA ORDINATIVO D'INCASSO N. 370/17 EMESSO IN DATA ODIERNA;12/05/2017;1187;0;133;1;Spese correnti;3;Acquisto di beni e servizi;2;Acquisto di servizi;3;Aggi di riscossione;999;Altri aggi di riscossione n.a.c.
44.674,31;COMUNE DI STANGHELLA; ;Convenzione per la gestione associata e coordinata del Servizio di Polizia Locale tra i Comuni di Boara Pisani, Vescovana, Barbona e Stanghella. Trasferimento proventi contravvenzionali da infrazioni alle norme del Codice della Strada. Saldo  2016.;12/05/2017;1260;1;510;1;Spese correnti;4;Trasferimenti correnti;1;Trasferimenti correnti a Amministrazioni Pubbliche;2;Trasferimenti correnti a Amministrazioni Locali;3;Trasferimenti correnti a Comuni
214,8;COMUNE DI VESCOVANA; ;Convenzione per la gestione associata e coordinata del Servizio di Polizia Locale tra i Comuni di Boara Pisani, Vescovana, Barbona e Stanghella. Trasferimento proventi contravvenzionali da infrazioni alle norme del Codice della Strada. Saldo 2016.;12/05/2017;1260;3;511;1;Spese correnti;4;Trasferimenti correnti;1;Trasferimenti correnti a Amministrazioni Pubbliche;2;Trasferimenti correnti a Amministrazioni Locali;3;Trasferimenti correnti a Comuni
286,2;COMUNE DI VESCOVANA; ;Convenzione per la gestione associata e coordinata del Servizio di Polizia Locale tra i Comuni di Boara Pisani, Vescovana, Barbona e Stanghella. Trasferimento proventi contravvenzionali da infrazioni alle norme del Codice della Strada. Saldo  2016.;12/05/2017;1260;3;97;1;Spese correnti;4;Trasferimenti correnti;1;Trasferimenti correnti a Amministrazioni Pubbliche;2;Trasferimenti correnti a Amministrazioni Locali;3;Trasferimenti correnti a Comuni
20,8;ECONOMO COMUNALE COGNOLATO EMANUELA; ;Rimborso bollette;12/05/2017;1027;0;99999;1;Spese correnti;3;Acquisto di beni e servizi;1;Acquisto di beni;2;Altri beni di consumo;999;Altri beni e materiali di consumo n.a.c.
122,69;ECONOMO COMUNALE COGNOLATO EMANUELA; ;Rimborso bollette;12/05/2017;1046;0;99999;1;Spese correnti;3;Acquisto di beni e servizi;2;Acquisto di servizi;16;Servizi amministrativi;2;Spese postali
30;ECONOMO COMUNALE COGNOLATO EMANUELA; ;Rimborso bollette;12/05/2017;1048;0;99999;1;Spese correnti;3;Acquisto di beni e servizi;1;Acquisto di beni;2;Altri beni di consumo;999;Altri beni e materiali di consumo n.a.c.
122;ECONOMO COMUNALE COGNOLATO EMANUELA; ;Rimborso bollette;12/05/2017;1074;0;99999;1;Spese correnti;3;Acquisto di beni e servizi;2;Acquisto di servizi;4;Acquisto di servizi per formazione e addestramento del personale dell'ente;999;Acquisto di servizi per altre spese per formazione e addestramento n.a.c.
34,6;ECONOMO COMUNALE COGNOLATO EMANUELA; ;Rimborso bollette;12/05/2017;1075;0;99999;1;Spese correnti;3;Acquisto di beni e servizi;1;Acquisto di beni;2;Altri beni di consumo;1;Carta, cancelleria e stampati
116,03;ECONOMO COMUNALE COGNOLATO EMANUELA; ;Rimborso bollette;12/05/2017;1078;0;99999;1;Spese correnti;3;Acquisto di beni e servizi;1;Acquisto di beni;2;Altri beni di consumo;999;Altri beni e materiali di consumo n.a.c.
9;ECONOMO COMUNALE COGNOLATO EMANUELA; ;Rimborso bollette;12/05/2017;1084;0;99999;1;Spese correnti;3;Acquisto di beni e servizi;2;Acquisto di servizi;2;Organizzazione eventi, pubblicita` e servizi per trasferta;999;Altre spese per relazioni pubbliche, convegni e mostre, pubblicita` n.a.c
10;ECONOMO COMUNALE COGNOLATO EMANUELA; ;Rimborso bollette;12/05/2017;1115;0;99999;1;Spese correnti;3;Acquisto di beni e servizi;2;Acquisto di servizi;4;Acquisto di servizi per formazione e addestramento del personale dell'ente;999;Acquisto di servizi per altre spese per formazione e addestramento n.a.c.
82;ECONOMO COMUNALE COGNOLATO EMANUELA; ;Rimborso bollette;12/05/2017;1155;0;99999;1;Spese correnti;3;Acquisto di beni e servizi;1;Acquisto di beni;2;Altri beni di consumo;999;Altri beni e materiali di consumo n.a.c.
26,5;ECONOMO COMUNALE COGNOLATO EMANUELA; ;Rimborso bollette;12/05/2017;1264;0;99999;1;Spese correnti;3;Acquisto di beni e servizi;2;Acquisto di servizi;2;Organizzazione eventi, pubblicita` e servizi per trasferta;999;Altre spese per relazioni pubbliche, convegni e mostre, pubblicita` n.a.c
27,9;ECONOMO COMUNALE COGNOLATO EMANUELA; ;Rimborso bollette;12/05/2017;1480;0;99999;1;Spese correnti;3;Acquisto di beni e servizi;1;Acquisto di beni;1;Giornali, riviste e pubblicazioni;2;Pubblicazioni
106,9;ECONOMO COMUNALE COGNOLATO EMANUELA; ;Rimborso bollette;12/05/2017;1500;0;446;1;Spese correnti;3;Acquisto di beni e servizi;1;Acquisto di beni;1;Giornali, riviste e pubblicazioni;2;Pubblicazioni
2,75;EQUITALIA NORD SPA-AGENTE RISCOSSIONE  PROV. RO.; ;INCASSO RUOLI ICI 06/03/207 MANDATO DI PAGAMENTO COMPENSATO DA ORDINATIVO D'INCASSO N. 371/17 EMESSO IN DATA ODIERNA;12/05/2017;1187;0;134;1;Spese correnti;3;Acquisto di beni e servizi;2;Acquisto di servizi;3;Aggi di riscossione;999;Altri aggi di riscossione n.a.c.
6,05;EQUITALIA NORD SPA-AGENTE RISCOSSIONE  PROV. RO.; ;INCASSO RUOLI TARSU DAL 01/01/17 AL 10/04/17. MANDATO DI PAGAMENTO COMPENSATO DA ORDINATIVO D'INCASSO N. 272/17 EMESSO IN DATA ODIERNA.;12/05/2017;1187;0;508;1;Spese correnti;3;Acquisto di beni e servizi;2;Acquisto di servizi;3;Aggi di riscossione;999;Altri aggi di riscossione n.a.c.
120;ECONOMO COMUNALE COGNOLATO EMANUELA; ;Rimborso bollette;12/05/2017;1523;0;448;1;Spese correnti;4;Trasferimenti correnti;2;Trasferimenti correnti a Famiglie;3;Borse di studio, dottorati di ricerca e contratti di formazione specialistica area medica;1;Borse di studio
121,92;ECONOMO COMUNALE COGNOLATO EMANUELA; ;Rimborso bollette;12/05/2017;1888;0;99999;1;Spese correnti;4;Trasferimenti correnti;2;Trasferimenti correnti a Famiglie;2;Interventi assistenziali;999;Altri assegni e sussidi assistenziali
8,01;ECONOMO COMUNALE COGNOLATO EMANUELA; ;Rimborso bollette;12/05/2017;1925;0;99999;1;Spese correnti;3;Acquisto di beni e servizi;1;Acquisto di beni;2;Altri beni di consumo;2;Carburanti, combustibili e lubrificanti
67,88;ECONOMO COMUNALE COGNOLATO EMANUELA; ;Rimborso bollette;12/05/2017;1926;0;99999;1;Spese correnti;3;Acquisto di beni e servizi;2;Acquisto di servizi;9;Manutenzione ordinaria e riparazioni;1;Manutenzione ordinaria e riparazioni di mezzi di trasporto ad uso civile, di sicurezza e ordine pubblico
80;ECONOMO COMUNALE COGNOLATO EMANUELA; ;Rimborso bollette;15/05/2017;1049;0;42;1;Spese correnti;3;Acquisto di beni e servizi;1;Acquisto di beni;2;Altri beni di consumo;1;Carta, cancelleria e stampati
60;ECONOMO COMUNALE COGNOLATO EMANUELA; ;Rimborso bollette;15/05/2017;1078;0;99999;1;Spese correnti;3;Acquisto di beni e servizi;1;Acquisto di beni;2;Altri beni di consumo;999;Altri beni e materiali di consumo n.a.c.
64;ECONOMO COMUNALE COGNOLATO EMANUELA; ;Rimborso bollette;15/05/2017;1116;0;99999;1;Spese correnti;3;Acquisto di beni e servizi;1;Acquisto di beni;2;Altri beni di consumo;1;Carta, cancelleria e stampati
80;ECONOMO COMUNALE COGNOLATO EMANUELA; ;Rimborso bollette;15/05/2017;1421;0;99999;1;Spese correnti;3;Acquisto di beni e servizi;2;Acquisto di servizi;9;Manutenzione ordinaria e riparazioni;1;Manutenzione ordinaria e riparazioni di mezzi di trasporto ad uso civile, di sicurezza e ordine pubblico
112;ECONOMO COMUNALE COGNOLATO EMANUELA; ;Rimborso bollette;15/05/2017;1480;0;99999;1;Spese correnti;3;Acquisto di beni e servizi;1;Acquisto di beni;1;Giornali, riviste e pubblicazioni;2;Pubblicazioni
11,9;ECONOMO COMUNALE COGNOLATO EMANUELA; ;Rimborso bollette;15/05/2017;1523;0;447;1;Spese correnti;4;Trasferimenti correnti;2;Trasferimenti correnti a Famiglie;3;Borse di studio, dottorati di ricerca e contratti di formazione specialistica area medica;1;Borse di studio
146,4;ECONOMO COMUNALE COGNOLATO EMANUELA; ;Rimborso bollette;15/05/2017;1657;0;99999;1;Spese correnti;3;Acquisto di beni e servizi;1;Acquisto di beni;2;Altri beni di consumo;7;Altri materiali tecnico-specialistici non sanitari
44,79;ECONOMO COMUNALE COGNOLATO EMANUELA; ;Rimborso bollette;15/05/2017;1888;0;99999;1;Spese correnti;4;Trasferimenti correnti;2;Trasferimenti correnti a Famiglie;2;Interventi assistenziali;999;Altri assegni e sussidi assistenziali
1.248,06;COOPERATIVA SOCIALE SPERANZA; ;SALDO Fatt.n. PA/50  del 31/03/2017 SERVIZIO DI PULIZIA DELLA SEDE COMUNALE. MARZO 2017.;15/05/2017;1029;0;123;1;Spese correnti;3;Acquisto di beni e servizi;2;Acquisto di servizi;13;Servizi ausiliari per il funzionamento dell'ente;2;Servizi di pulizia e lavanderia
5.000,30;BALLO GIANLUCA;Z2E1E27F1B;SALDO Fatt.n. 000001-2017  del 06/04/2017 AFFIDAMENTO INCARICO PROFESSIONALE DI CONSULENZA LEGALE ED ASSSITENZARELATIVAMENTE AL PROCEDIMENTO AMMINISTRATIVO AVANTI IL TAR DI VENEZIA PRESENTATO DAI SIGNORI VENTURATO LORIS E TIZIANO.;15/05/2017;1058;0;26;1;Spese correnti;3;Acquisto di beni e servizi;2;Acquisto di servizi;11;Prestazioni professionali e specialistiche;6;Patrocinio legale
427;GRAFICHE E. GASPARI SRL.;ZA01E3C7E5;SALDO Fatt.n. 04320  del 27/04/2017 SPORTELLO WEB IUC. ANNO 2017.;15/05/2017;1075;1;103;1;Spese correnti;3;Acquisto di beni e servizi;2;Acquisto di servizi;19;Servizi informatici e di telecomunicazioni;11;Processi trasversali alle classi di servizio
3.193,56;SERENISSIMA RISTORAZIONE S.P.A.;Z281244682;SALDO Fatt.n. 01505/4  del 31/03/2017 SERVIZIO MENSA SCUOLA ELEMENTARE. MARZO 2017.;15/05/2017;1416;0;23;1;Spese correnti;3;Acquisto di beni e servizi;2;Acquisto di servizi;15;Contratti di servizio pubblico;6;Contratti di servizio per le mense scolastiche
887,6;COOPERATIVA SOCIALE SPERANZA;ZCB1B0F5E1;SALDO Fatt.n. PA/44  del 31/03/2017 ACCOMPAGNAMENTO SCUOLABUS. MARZO 2017.;15/05/2017;1432;0;404;1;Spese correnti;3;Acquisto di beni e servizi;2;Acquisto di servizi;99;Altri servizi;999;Altri servizi diversi n.a.c.
243;AZIENDA ULSS N. 5 POLESANA; ;SALDO Fatt.n. VE  201700000054  del 06/04/2017 CUSTODIA E MANTENIMENMTO CANI RANDAGI;15/05/2017;1621;0;25;1;Spese correnti;4;Trasferimenti correnti;1;Trasferimenti correnti a Amministrazioni Pubbliche;2;Trasferimenti correnti a Amministrazioni Locali;11;Trasferimenti correnti a Aziende sanitarie locali  n.a.f.
2.430,87;LAERTE SERVIZI COOPERATIVA SOCIALE ONLUS;XD90FA8615;SALDO Fatt.n. 69/PA/2017  del 31/03/2017 SERVIZIO ASSISTENZA SOCIALE E DOMICILIARE. MARZO 2017.;15/05/2017;1906;0;55;1;Spese correnti;3;Acquisto di beni e servizi;2;Acquisto di servizi;15;Contratti di servizio pubblico;9;Contratti di servizio di assistenza sociale domiciliare
467,27;MORETTI FRATELLI DI MORETTI LAMBERTO & C. SNC;ZF01E332DB;SALDO Fatt.n. FATTPA 5_17  del 21/04/2017 Interventi di manutenzione e riparazione botte diserbo, con sostituzione del gruppo pompa.;15/05/2017;1926;0;102;1;Spese correnti;3;Acquisto di beni e servizi;2;Acquisto di servizi;9;Manutenzione ordinaria e riparazioni;5;Manutenzione ordinaria e riparazioni di attrezzature
1.063,86;ASPEX S.P.A.;ZD91D9AE13;SALDO Fatt.n. PA/65  del 31/03/2017 Fornitura di conglomerato bituminoso a freddo per ripristini esigenti e duraturi sulle strade comunali.;15/05/2017;1928;0;48;1;Spese correnti;3;Acquisto di beni e servizi;1;Acquisto di beni;2;Altri beni di consumo;999;Altri beni e materiali di consumo n.a.c.
732;SUPERBETON SPA;Z561DB2595;SALDO Fatt.n. 331  del 31/03/2017 Fornitura di conglomerato bituminoso a freddo ad alte prestazioni per ripristini stradali.;15/05/2017;1928;0;50;1;Spese correnti;3;Acquisto di beni e servizi;1;Acquisto di beni;2;Altri beni di consumo;999;Altri beni e materiali di consumo n.a.c.
930;GRANATA ANDREA;ZA21CC7A48;SALDO Fatt.n. 6  del 22/03/2017 NOLEGGIO BUS PER PROGETTO SPORT E BENESSERE;15/05/2017;1943;0;468;1;Spese correnti;3;Acquisto di beni e servizi;2;Acquisto di servizi;99;Altri servizi;999;Altri servizi diversi n.a.c.
1.325,69;STUDIO VEP - VENETA PROGETTAZIONI;5021552BCA;ACCONTO Fatt.n. FATTPA 1_17  del 23/03/2017 RIQUALIFICAZIONE PIAZZA ANTISTANTE IL MUNICIPIO. STATO FINALE;15/05/2017;3480;0;193;2;Spese in conto capitale;2;Investimenti fissi lordi e acquisto di terreni;1;Beni materiali;9;Beni immobili;12;Infrastrutture stradali
9.248,45;STUDIO VEP - VENETA PROGETTAZIONI;5021552BCA;SALDO Fatt.n. FATTPA 1_17  del 23/03/2017 RIQUALIFICAZIONE PIAZZA ANTISTANTE IL MUNICIPIO. STATO FINALE;15/05/2017;3480;0;293;2;Spese in conto capitale;2;Investimenti fissi lordi e acquisto di terreni;1;Beni materiali;9;Beni immobili;12;Infrastrutture stradali
43,32;ENEL ENERGIA SPA; ;SALDO Fatt.n. 004800615902  del 08/05/2017 FORNITURA ENERGIA ELETTRICA. APRILE 2017. PIAZZA ATHESIA SNC;18/05/2017;1043;2;145;1;Spese correnti;3;Acquisto di beni e servizi;2;Acquisto di servizi;5;Utenze e canoni;4;Energia elettrica
118,85;ENEL ENERGIA SPA; ;SALDO Fatt.n. 004800627321  del 09/05/2017 FORNITURA ENERGIA ELETTRICA. MARZO-APRILE 2017. VIA ROMA 35.;18/05/2017;1043;2;145;1;Spese correnti;3;Acquisto di beni e servizi;2;Acquisto di servizi;5;Utenze e canoni;4;Energia elettrica
459,07;ENEL ENERGIA SPA; ;SALDO Fatt.n. 004800639536  del 11/05/2017 FORNITURA ENERGIA ELETTRICA. APRILE 2017. PIAZZA ATHESIA 5.;18/05/2017;1043;2;145;1;Spese correnti;3;Acquisto di beni e servizi;2;Acquisto di servizi;5;Utenze e canoni;4;Energia elettrica
583,28;ENEL ENERGIA SPA; ;SALDO Fatt.n. 004800615901  del 08/05/2017 FORNITURA ENERGIA ELETTRICA. APRILE 2017. PIAZZA ATHESIA 2.;18/05/2017;1043;2;145;1;Spese correnti;3;Acquisto di beni e servizi;2;Acquisto di servizi;5;Utenze e canoni;4;Energia elettrica
298,57;ENEL ENERGIA SPA; ;ACCONTO Fatt.n. 004800608444  del 08/05/2017 FORNITURA ENERGIA ELETTRICA. APRILE 2017. VIA E. FERMI 18.;18/05/2017;1366;2;146;1;Spese correnti;3;Acquisto di beni e servizi;2;Acquisto di servizi;5;Utenze e canoni;4;Energia elettrica
298,58;ENEL ENERGIA SPA; ;SALDO Fatt.n. 004800608444  del 08/05/2017 FORNITURA ENERGIA ELETTRICA. APRILE 2017. VIA E. FERMI 18.;18/05/2017;1386;2;147;1;Spese correnti;3;Acquisto di beni e servizi;2;Acquisto di servizi;5;Utenze e canoni;4;Energia elettrica
53,64;ENEL ENERGIA SPA; ;SALDO Fatt.n. 004800654442  del 12/05/2017 FORNITURA ENERGIA ELETTRICA. APRILE 2017. VIA GORGHETTI SNC.;18/05/2017;1656;0;148;1;Spese correnti;3;Acquisto di beni e servizi;2;Acquisto di servizi;5;Utenze e canoni;4;Energia elettrica
0,23;ENEL ENERGIA SPA; ;SALDO Fatt.n. 004800608411  del 08/05/2017 FORNITURA ENERGIA ELETTRICA. APRILE 2017. VIA GORGHETTI 5.;18/05/2017;1937;0;149;1;Spese correnti;3;Acquisto di beni e servizi;2;Acquisto di servizi;5;Utenze e canoni;4;Energia elettrica
0,49;ENEL ENERGIA SPA; ;SALDO Fatt.n. 004800608437  del 08/05/2017 FORNITURA ENERGIA ELETTRICA. APRILE 2017. VIA ONARI VIC 4.;18/05/2017;1937;0;149;1;Spese correnti;3;Acquisto di beni e servizi;2;Acquisto di servizi;5;Utenze e canoni;4;Energia elettrica
4,12;ENEL ENERGIA SPA; ;SALDO Fatt.n. 004800608442  del 08/05/2017 FORNITURA ENERGIA ELETTRICA. APRILE 2017. VIA XI NOVEMBRE 36.;18/05/2017;1937;0;149;1;Spese correnti;3;Acquisto di beni e servizi;2;Acquisto di servizi;5;Utenze e canoni;4;Energia elettrica
10,97;ENEL ENERGIA SPA; ;SALDO Fatt.n. 004800608443  del 08/05/2017 FORNITURA ENERGIA ELETTRICA. APRILE 2017. VIA VECCHIA VIC 2.;18/05/2017;1937;0;149;1;Spese correnti;3;Acquisto di beni e servizi;2;Acquisto di servizi;5;Utenze e canoni;4;Energia elettrica
26,75;ENEL ENERGIA SPA; ;SALDO Fatt.n. 004800664201  del 12/05/2017 FORNITURA ENERGIA ELETTRICA. APRILE 2017. VIA FONTANE SNC.;18/05/2017;1937;0;149;1;Spese correnti;3;Acquisto di beni e servizi;2;Acquisto di servizi;5;Utenze e canoni;4;Energia elettrica
53,62;ENEL ENERGIA SPA; ;SALDO Fatt.n. 004800627322  del 09/05/2017 FORNITURA ENERGIA ELETTRICA. MARZO-APRILE 2017. VIA CANALETTA SNC.;18/05/2017;1937;0;149;1;Spese correnti;3;Acquisto di beni e servizi;2;Acquisto di servizi;5;Utenze e canoni;4;Energia elettrica
53,64;ENEL ENERGIA SPA; ;SALDO Fatt.n. 004800651737  del 12/05/2017 FORNITURA ENERGIA ELETTRICA. APRILE 2017. VIA GALLO VIC 2.;18/05/2017;1937;0;149;1;Spese correnti;3;Acquisto di beni e servizi;2;Acquisto di servizi;5;Utenze e canoni;4;Energia elettrica
87,21;ENEL ENERGIA SPA; ;SALDO Fatt.n. 004800608439  del 08/05/2017 FORNITURA ENERGIA ELETTRICA. APRILE 2017. VIA GALLO 50.;18/05/2017;1937;0;149;1;Spese correnti;3;Acquisto di beni e servizi;2;Acquisto di servizi;5;Utenze e canoni;4;Energia elettrica
119,9;ENEL ENERGIA SPA; ;SALDO Fatt.n. 004800608441  del 08/05/2017 FORNITURA ENERGIA ELETTRICA. APRILE 2017. VIA FERRARIA SNC.;18/05/2017;1937;0;149;1;Spese correnti;3;Acquisto di beni e servizi;2;Acquisto di servizi;5;Utenze e canoni;4;Energia elettrica
154,99;ENEL ENERGIA SPA; ;SALDO Fatt.n. 004800608438  del 08/05/2017 FORNITURA ENERGIA ELETTRICA. APRILE 2017. VIA BONIOLE SNC.;18/05/2017;1937;0;149;1;Spese correnti;3;Acquisto di beni e servizi;2;Acquisto di servizi;5;Utenze e canoni;4;Energia elettrica
164,71;ENEL ENERGIA SPA; ;SALDO Fatt.n. 004800608417  del 08/05/2017 FORNITURA ENERGIA ELETTRICA. APRILE 2017. VIA CANALETTA SNC.;18/05/2017;1937;0;149;1;Spese correnti;3;Acquisto di beni e servizi;2;Acquisto di servizi;5;Utenze e canoni;4;Energia elettrica
249,28;ENEL ENERGIA SPA; ;SALDO Fatt.n. 004800608423  del 08/05/2017 FORNITURA ENERGIA ELETTRICA. APRILE 2017. VIA FERRARIA SNC.;18/05/2017;1937;0;149;1;Spese correnti;3;Acquisto di beni e servizi;2;Acquisto di servizi;5;Utenze e canoni;4;Energia elettrica
328,16;ENEL ENERGIA SPA; ;SALDO Fatt.n. 004800650531  del 12/05/2017 FORNITURA ENERGIA ELETTRICA. APRILE 2017. VIA DELL'ARTIGIANATO SNC.;18/05/2017;1937;0;149;1;Spese correnti;3;Acquisto di beni e servizi;2;Acquisto di servizi;5;Utenze e canoni;4;Energia elettrica
342,88;ENEL ENERGIA SPA; ;SALDO Fatt.n. 004800608436  del 08/05/2017 FORNITURA ENERGIA ELETTRICA. APRILE 2017. VIA DELLO SPORT SN.;18/05/2017;1937;0;149;1;Spese correnti;3;Acquisto di beni e servizi;2;Acquisto di servizi;5;Utenze e canoni;4;Energia elettrica
391,97;ENEL ENERGIA SPA; ;SALDO Fatt.n. 004800608430  del 08/05/2017 FORNITURA ENERGIA ELETTRICA. APRILE 2017. VIA BARCHESSA VIC 5.;18/05/2017;1937;0;149;1;Spese correnti;3;Acquisto di beni e servizi;2;Acquisto di servizi;5;Utenze e canoni;4;Energia elettrica
534,66;ENEL ENERGIA SPA; ;SALDO Fatt.n. 004800608421  del 08/05/2017 FORNITURA ENERGIA ELETTRICA. APRILE 2017. VIA XI NOVEMBRE SNC.;18/05/2017;1937;0;149;1;Spese correnti;3;Acquisto di beni e servizi;2;Acquisto di servizi;5;Utenze e canoni;4;Energia elettrica
755,09;ENEL ENERGIA SPA; ;SALDO Fatt.n. 004800608418  del 08/05/2017 FORNITURA ENERGIA ELETTRICA. APRILE 2017. VIA ROMA VIC 6.;18/05/2017;1937;0;149;1;Spese correnti;3;Acquisto di beni e servizi;2;Acquisto di servizi;5;Utenze e canoni;4;Energia elettrica
0,45;ENEL ENERGIA SPA; ;SALDO Fatt.n. 004800608426  del 08/05/2017 FORNITURA ENERGIA ELETTRICA. APRILE 2017. VIA FONTANE VIC 3.;18/05/2017;1937;0;149;1;Spese correnti;3;Acquisto di beni e servizi;2;Acquisto di servizi;5;Utenze e canoni;4;Energia elettrica
3,05;ENEL ENERGIA SPA; ;SALDO Fatt.n. 004800609167  del 08/05/2017 FORNITURA ENERGIA ELETTRICA. APRILE 2017. VIA VECCHIA SNC.;18/05/2017;1937;0;149;1;Spese correnti;3;Acquisto di beni e servizi;2;Acquisto di servizi;5;Utenze e canoni;4;Energia elettrica
8,49;ENEL ENERGIA SPA; ;SALDO Fatt.n. 004800610610  del 08/05/2017 FORNITURA ENERGIA ELETTRICA. APRILE 2017. VIA PASCOLON VIC 9;18/05/2017;1937;0;149;1;Spese correnti;3;Acquisto di beni e servizi;2;Acquisto di servizi;5;Utenze e canoni;4;Energia elettrica
9,86;ENEL ENERGIA SPA; ;SALDO Fatt.n. 004800610606  del 08/05/2017 FORNITURA ENERGIA ELETTRICA. APRILE 2017. VIA CA' BIANCA SNC.;18/05/2017;1937;0;149;1;Spese correnti;3;Acquisto di beni e servizi;2;Acquisto di servizi;5;Utenze e canoni;4;Energia elettrica
10,59;ENEL ENERGIA SPA; ;SALDO Fatt.n. 004800610607  del 08/05/2017 FORNITURA ENERGIA ELETTRICA. APRILE 2017. VIA DEL GATTO 1.;18/05/2017;1937;0;149;1;Spese correnti;3;Acquisto di beni e servizi;2;Acquisto di servizi;5;Utenze e canoni;4;Energia elettrica
13,61;ENEL ENERGIA SPA; ;SALDO Fatt.n. 004800608407  del 08/05/2017 FORNITURA ENERGIA ELETTRICA. APRILE 2017. VIA DEL GATTO 17.;18/05/2017;1937;0;149;1;Spese correnti;3;Acquisto di beni e servizi;2;Acquisto di servizi;5;Utenze e canoni;4;Energia elettrica
17,87;ENEL ENERGIA SPA; ;SALDO Fatt.n. 004800617821  del 08/05/2017 FORNITURA ENERGIA ELETTRICA. APRILE 2017. VIA BRAGANTE SNC.;18/05/2017;1937;0;149;1;Spese correnti;3;Acquisto di beni e servizi;2;Acquisto di servizi;5;Utenze e canoni;4;Energia elettrica
22,02;ENEL ENERGIA SPA; ;SALDO Fatt.n. 004800608433  del 08/05/2017 FORNITURA ENERGIA ELETTRICA. APRILE 2017. VIA FONTANE VIC 2.;18/05/2017;1937;0;149;1;Spese correnti;3;Acquisto di beni e servizi;2;Acquisto di servizi;5;Utenze e canoni;4;Energia elettrica
45,52;ENEL ENERGIA SPA; ;SALDO Fatt.n. 004800610611  del 08/05/2017 FORNITURA ENERGIA ELETTRICA. APRILE 2017. VIA FERRARIA VIC 3.;18/05/2017;1937;0;149;1;Spese correnti;3;Acquisto di beni e servizi;2;Acquisto di servizi;5;Utenze e canoni;4;Energia elettrica
73,66;ENEL ENERGIA SPA; ;SALDO Fatt.n. 004800608422  del 08/05/2017 FORNITURA ENERGIA ELETTRICA. APRILE 2017. VIA GORGHETTI VIC 2.;18/05/2017;1937;0;149;1;Spese correnti;3;Acquisto di beni e servizi;2;Acquisto di servizi;5;Utenze e canoni;4;Energia elettrica
111,96;ENEL ENERGIA SPA; ;SALDO Fatt.n. 004800608434  del 08/05/2017 FORNITURA ENERGIA ELETTRICA. APRILE 2017. VIA STRADON 27.;18/05/2017;1937;0;149;1;Spese correnti;3;Acquisto di beni e servizi;2;Acquisto di servizi;5;Utenze e canoni;4;Energia elettrica
128,6;ENEL ENERGIA SPA; ;SALDO Fatt.n. 004800608425  del 08/05/2017 FORNITURA ENERGIA ELETTRICA. APRILE 2017. VIA FERRATA 3.;18/05/2017;1937;0;149;1;Spese correnti;3;Acquisto di beni e servizi;2;Acquisto di servizi;5;Utenze e canoni;4;Energia elettrica
174,41;ENEL ENERGIA SPA; ;SALDO Fatt.n. 004800608408  del 08/05/2017 FORNITURA ENERGIA ELETTRICA. APRILE 2017. VIA II GIUGNO 1.;18/05/2017;1937;0;149;1;Spese correnti;3;Acquisto di beni e servizi;2;Acquisto di servizi;5;Utenze e canoni;4;Energia elettrica
259,36;ENEL ENERGIA SPA; ;SALDO Fatt.n. 004800608432  del 08/05/2017 FORNITURA ENERGIA ELETTRICA. APRILE 2017. VIA BONIOLE SNC.;18/05/2017;1937;0;149;1;Spese correnti;3;Acquisto di beni e servizi;2;Acquisto di servizi;5;Utenze e canoni;4;Energia elettrica
265,96;ENEL ENERGIA SPA; ;SALDO Fatt.n. 004800608435  del 08/05/2017 FORNITURA ENERGIA ELETTRICA. APRILE 2017. VIA BONIOLE SNC.;18/05/2017;1937;0;149;1;Spese correnti;3;Acquisto di beni e servizi;2;Acquisto di servizi;5;Utenze e canoni;4;Energia elettrica
317,1;ENEL ENERGIA SPA; ;SALDO Fatt.n. 004800608429  del 08/05/2017 FORNITURA ENERGIA ELETTRICA. APRILE 2017. VIA L. DA VINCI VIC 1;18/05/2017;1937;0;149;1;Spese correnti;3;Acquisto di beni e servizi;2;Acquisto di servizi;5;Utenze e canoni;4;Energia elettrica
412,91;ENEL ENERGIA SPA; ;SALDO Fatt.n. 004800608420  del 08/05/2017 FORNITURA ENERGIA ELETTRICA. APRILE 2017. VIA ROMA SNC.;18/05/2017;1937;0;149;1;Spese correnti;3;Acquisto di beni e servizi;2;Acquisto di servizi;5;Utenze e canoni;4;Energia elettrica
0,22;ENEL ENERGIA SPA; ;SALDO Fatt.n. 004800610608  del 08/05/2017 FORNITURA ENERGIA ELETTRICA. APRILE 2017. VIA STRADON VIC 1.;18/05/2017;1937;0;149;1;Spese correnti;3;Acquisto di beni e servizi;2;Acquisto di servizi;5;Utenze e canoni;4;Energia elettrica
0,23;ENEL ENERGIA SPA; ;SALDO Fatt.n. 004800618890  del 08/05/2017 FORNITURA ENERGIA ELETTRICA. APRILE 2017. VIA DELL'ARTIGIANATO SNC.;18/05/2017;1937;0;149;1;Spese correnti;3;Acquisto di beni e servizi;2;Acquisto di servizi;5;Utenze e canoni;4;Energia elettrica
3,23;ENEL ENERGIA SPA; ;SALDO Fatt.n. 004800610609  del 08/05/2017 FORNITURA ENERGIA ELETTRICA. APRILE 2017. VIA ONARI VIC 4.;18/05/2017;1937;0;149;1;Spese correnti;3;Acquisto di beni e servizi;2;Acquisto di servizi;5;Utenze e canoni;4;Energia elettrica
13,02;ENEL ENERGIA SPA; ;SALDO Fatt.n. 004800608427  del 08/05/2017 FORNITURA ENERGIA ELETTRICA. APRILE 2017. VIA SABBIONI VIC 3.;18/05/2017;1937;0;149;1;Spese correnti;3;Acquisto di beni e servizi;2;Acquisto di servizi;5;Utenze e canoni;4;Energia elettrica
13,26;ENEL ENERGIA SPA; ;SALDO Fatt.n. 004800608412  del 08/05/2017 FORNITURA ENERGIA ELETTRICA. APRILE 2017. VIA PASCOLON SNC.;18/05/2017;1937;0;149;1;Spese correnti;3;Acquisto di beni e servizi;2;Acquisto di servizi;5;Utenze e canoni;4;Energia elettrica
14,1;ENEL ENERGIA SPA; ;SALDO Fatt.n. 004800608431  del 08/05/2017 FORNITURA ENERGIA ELETTRICA. APRILE 2017. VIA DEL GALLO 23.;18/05/2017;1937;0;149;1;Spese correnti;3;Acquisto di beni e servizi;2;Acquisto di servizi;5;Utenze e canoni;4;Energia elettrica
30,67;ENEL ENERGIA SPA; ;SALDO Fatt.n. 004800608416  del 08/05/2017 FORNITURA ENERGIA ELETTRICA. APRILE 2017. VIA FERRARIA VIC 1.;18/05/2017;1937;0;149;1;Spese correnti;3;Acquisto di beni e servizi;2;Acquisto di servizi;5;Utenze e canoni;4;Energia elettrica
30,67;ENEL ENERGIA SPA; ;SALDO Fatt.n. 004800608419  del 08/05/2017 FORNITURA ENERGIA ELETTRICA. APRILE 2017. VIA SABBIONI VIC 4.;18/05/2017;1937;0;149;1;Spese correnti;3;Acquisto di beni e servizi;2;Acquisto di servizi;5;Utenze e canoni;4;Energia elettrica
31,46;ENEL ENERGIA SPA; ;SALDO Fatt.n. 004800610604  del 08/05/2017 FORNITURA ENERGIA ELETTRICA. APRILE 2017. VIA PASCOLONVIC 2.;18/05/2017;1937;0;149;1;Spese correnti;3;Acquisto di beni e servizi;2;Acquisto di servizi;5;Utenze e canoni;4;Energia elettrica
32,74;ENEL ENERGIA SPA; ;SALDO Fatt.n. 004800608410  del 08/05/2017 FORNITURA ENERGIA ELETTRICA. APRILE 2017. VIA PASCOLON 3.;18/05/2017;1937;0;149;1;Spese correnti;3;Acquisto di beni e servizi;2;Acquisto di servizi;5;Utenze e canoni;4;Energia elettrica
39,13;ENEL ENERGIA SPA; ;SALDO Fatt.n. 004800608414  del 08/05/2017 FORNITURA ENERGIA ELETTRICA. APRILE 2017. VIA DEL GATTO SNC.;18/05/2017;1937;0;149;1;Spese correnti;3;Acquisto di beni e servizi;2;Acquisto di servizi;5;Utenze e canoni;4;Energia elettrica
63,2;ENEL ENERGIA SPA; ;SALDO Fatt.n. 004800608428  del 08/05/2017 FORNITURA ENERGIA ELETTRICA. APRILE 2017. VIA ROMA VIC 4.;18/05/2017;1937;0;149;1;Spese correnti;3;Acquisto di beni e servizi;2;Acquisto di servizi;5;Utenze e canoni;4;Energia elettrica
64,68;ENEL ENERGIA SPA; ;SALDO Fatt.n. 004800608413  del 08/05/2017 FORNITURA ENERGIA ELETTRICA. APRILE 2017. VIA VOLTA SNC.;18/05/2017;1937;0;149;1;Spese correnti;3;Acquisto di beni e servizi;2;Acquisto di servizi;5;Utenze e canoni;4;Energia elettrica
65,54;ENEL ENERGIA SPA; ;SALDO Fatt.n. 004800610605  del 08/05/2017 FORNITURA ENERGIA ELETTRICA. APRILE 2017. VIA G. MARCONI 7;18/05/2017;1937;0;149;1;Spese correnti;3;Acquisto di beni e servizi;2;Acquisto di servizi;5;Utenze e canoni;4;Energia elettrica
109,9;ENEL ENERGIA SPA; ;SALDO Fatt.n. 004800608424  del 08/05/2017 FORNITURA ENERGIA ELETTRICA. APRILE 2017. VIA ONARI VIC 3.;18/05/2017;1937;0;149;1;Spese correnti;3;Acquisto di beni e servizi;2;Acquisto di servizi;5;Utenze e canoni;4;Energia elettrica
264,61;ENEL ENERGIA SPA; ;SALDO Fatt.n. 004800608409  del 08/05/2017 FORNITURA ENERGIA ELETTRICA. APRILE 2017. VIA ROMA SNC.;18/05/2017;1937;0;149;1;Spese correnti;3;Acquisto di beni e servizi;2;Acquisto di servizi;5;Utenze e canoni;4;Energia elettrica
593,07;ENEL ENERGIA SPA; ;SALDO Fatt.n. 004800608440  del 08/05/2017 FORNITURA ENERGIA ELETTRICA. APRILE 2017. VIA XXV APRILE SNC.;18/05/2017;1937;0;149;1;Spese correnti;3;Acquisto di beni e servizi;2;Acquisto di servizi;5;Utenze e canoni;4;Energia elettrica
682,76;SERVIZIO ELETTRICO NAZIONALE; ;SALDO Fatt.n. 281801005580014  del 10/05/2017 FORNITURA ENERGIA ELETTRICA. APRILE-MAGGIO 2017. VIA VALLAZZA SN.;18/05/2017;1937;0;149;1;Spese correnti;3;Acquisto di beni e servizi;2;Acquisto di servizi;5;Utenze e canoni;4;Energia elettrica
800;ASSOCIAZIONE AUSER; ;Erogazione contributi economici a persone giuridiche/enti - anno 2017.;23/05/2017;2089;0;128;1;Spese correnti;4;Trasferimenti correnti;4;Trasferimenti correnti a Istituzioni Sociali Private;1;Trasferimenti correnti a Istituzioni Sociali Private;1;Trasferimenti correnti a Istituzioni Sociali Private
800;COMITATO SABBIONI GIARON; ;Erogazione contributi economici a persone giuridiche/enti - anno 2017.;23/05/2017;2089;0;128;1;Spese correnti;4;Trasferimenti correnti;4;Trasferimenti correnti a Istituzioni Sociali Private;1;Trasferimenti correnti a Istituzioni Sociali Private;1;Trasferimenti correnti a Istituzioni Sociali Private
800;GRUPPO SPORTIVO SABBADINA; ;Erogazione contributi economici a persone giuridiche/enti - anno 2017.;23/05/2017;2089;0;128;1;Spese correnti;4;Trasferimenti correnti;4;Trasferimenti correnti a Istituzioni Sociali Private;1;Trasferimenti correnti a Istituzioni Sociali Private;1;Trasferimenti correnti a Istituzioni Sociali Private
1.500,00;ASSOCIAZIONE CULTURALE ATHESIS; ;Erogazione contributi economici a persone giuridiche/enti - anno 2017.;23/05/2017;2089;0;128;1;Spese correnti;4;Trasferimenti correnti;4;Trasferimenti correnti a Istituzioni Sociali Private;1;Trasferimenti correnti a Istituzioni Sociali Private;1;Trasferimenti correnti a Istituzioni Sociali Private
1.500,00;CSI - COMITATO PROVINCIALE ROVIGO; ;Erogazione contributi economici a persone giuridiche/enti - anno 2017.;23/05/2017;2089;0;128;1;Spese correnti;4;Trasferimenti correnti;4;Trasferimenti correnti a Istituzioni Sociali Private;1;Trasferimenti correnti a Istituzioni Sociali Private;1;Trasferimenti correnti a Istituzioni Sociali Private
1.307,18;SINERGIE SPA;3888505FD2;ACCONTO Fatt.n. 331700001483  del 29/04/2017 FORNITURA CALORE A.T. 2016-2017. 7^ RATA APRILE 2017.;23/05/2017;1043;3;141;1;Spese correnti;3;Acquisto di beni e servizi;2;Acquisto di servizi;5;Utenze e canoni;6;Gas
1.021,14;BNP PARIBAS LEASE GROUP SA;ZEA1DD64CF;SALDO Fatt.n. BKB63292  del 28/04/2017 NOLEGGIO STAMPANTI MULTIFUNZIONE. CONTRATTO Z0013108. RATA 1/20.;23/05/2017;1077;0;64;1;Spese correnti;3;Acquisto di beni e servizi;2;Acquisto di servizi;19;Servizi informatici e di telecomunicazioni;1;Gestione e manutenzione applicazioni
2.614,40;SINERGIE SPA;3888505FD2;ACCONTO Fatt.n. 331700001483  del 29/04/2017 FORNITURA CALORE A.T. 2016-2017. 7^ RATA APRILE 2017.;23/05/2017;1366;3;142;1;Spese correnti;3;Acquisto di beni e servizi;2;Acquisto di servizi;5;Utenze e canoni;6;Gas
2.614,40;SINERGIE SPA;3888505FD2;SALDO Fatt.n. 331700001483  del 29/04/2017 FORNITURA CALORE A.T. 2016-2017. 7^ RATA APRILE 2017.;23/05/2017;1386;3;143;1;Spese correnti;3;Acquisto di beni e servizi;2;Acquisto di servizi;5;Utenze e canoni;6;Gas
22.000,00;PARR. S. MARIA DELLA NEVE-SCUOLA MATERNA SAN SEBASTIANO; ;Erogazione contributi economici a persone giuridiche/enti - anno 2017.;30/05/2017;1347;0;129;1;Spese correnti;4;Trasferimenti correnti;4;Trasferimenti correnti a Istituzioni Sociali Private;1;Trasferimenti correnti a Istituzioni Sociali Private;1;Trasferimenti correnti a Istituzioni Sociali Private
15.000,00;PARR. S. MARIA DELLA NEVE-SCUOLA MATERNA SAN SEBASTIANO; ;Erogazione contributi economici a persone giuridiche/enti - anno 2017.;30/05/2017;1346;0;130;1;Spese correnti;4;Trasferimenti correnti;4;Trasferimenti correnti a Istituzioni Sociali Private;1;Trasferimenti correnti a Istituzioni Sociali Private;1;Trasferimenti correnti a Istituzioni Sociali Private
2.501,00;DEI ROSSI FRANCESCO;ZF31E27F42;SALDO Fatt.n. 55  del 29/04/2017 CHIUSURA ATTIVITA' ASSISTENZA INFORMATICA ANNO 2016;30/05/2017;1056;0;518;1;Spese correnti;3;Acquisto di beni e servizi;2;Acquisto di servizi;19;Servizi informatici e di telecomunicazioni;5;Servizi per i sistemi e relativa manutenzione
2.499,95;SERENISSIMA RISTORAZIONE S.P.A.;Z281244682;SALDO Fatt.n. 02203/4  del 30/04/2017 SERVIZIO MENSA SCUOLE. APRILE 2017.;30/05/2017;1416;0;23;1;Spese correnti;3;Acquisto di beni e servizi;2;Acquisto di servizi;15;Contratti di servizio pubblico;6;Contratti di servizio per le mense scolastiche
201;MAGGIOLI SPA;ZC71CBCCE8;SALDO Fatt.n. 0005962050  del 30/06/2015 FORNITURA PUBBLICAZIONI UFFICIO POLIZIA LOCALE.;30/05/2017;1272;0;450;1;Spese correnti;3;Acquisto di beni e servizi;1;Acquisto di beni;1;Giornali, riviste e pubblicazioni;1;Giornali e riviste
214;MAGGIOLI SPA;ZC71CBCCE8;SALDO Fatt.n. 0005958848  del 31/05/2016 FORNITURA PUBBLICAZIONI;30/05/2017;1272;0;450;1;Spese correnti;3;Acquisto di beni e servizi;1;Acquisto di beni;1;Giornali, riviste e pubblicazioni;1;Giornali e riviste
24,16;CENTRO VENETO SERVIZI SPA; ;Fatt.n. 2017130041 del 28/04/2017 SERVIZIO IDRICO INTEGRATO. 2' SEM. 2016. PIAZZA ATHESIA;05/06/2017;1043;0;483;1;Spese correnti;3;Acquisto di beni e servizi;2;Acquisto di servizi;5;Utenze e canoni;5;Acqua
29,51;CENTRO VENETO SERVIZI SPA; ;Fatt.n. 2017130044 del 28/04/2017 SERVIZIO IDRICO INTEGRATO. 2' SEM. 2016. VIA ROMA 35;05/06/2017;1043;0;483;1;Spese correnti;3;Acquisto di beni e servizi;2;Acquisto di servizi;5;Utenze e canoni;5;Acqua
39,85;CENTRO VENETO SERVIZI SPA; ;Fatt.n. 2017130035 del 28/04/2017 SERVIZIO IDRICO INTEGRATO. 2' SEM. 2016. VIA ONARI 45..;05/06/2017;1043;0;483;1;Spese correnti;3;Acquisto di beni e servizi;2;Acquisto di servizi;5;Utenze e canoni;5;Acqua
85,48;CENTRO VENETO SERVIZI SPA; ;Fatt.n. 2017130039 del 28/04/2017 SERVIZIO IDRICO INTEGRATO. 2' SEM. 2016. VIA GALLO 1.;05/06/2017;1043;0;483;1;Spese correnti;3;Acquisto di beni e servizi;2;Acquisto di servizi;5;Utenze e canoni;5;Acqua
150,95;CENTRO VENETO SERVIZI SPA; ;Fatt.n. 2017130042 del 28/04/2017 SERVIZIO IDRICO INTEGRATO. 2' SEM. 2016. PIAZZA ATHESIA 2.;05/06/2017;1043;0;483;1;Spese correnti;3;Acquisto di beni e servizi;2;Acquisto di servizi;5;Utenze e canoni;5;Acqua
11,35;CENTRO VENETO SERVIZI SPA; ;Fatt.n. 2017130040 del 28/04/2017 SERVIZIO IDRICO INTEGRATO. 2' SEM. 2016. VIA E. FERMI 16;05/06/2017;1366;0;485;1;Spese correnti;3;Acquisto di beni e servizi;2;Acquisto di servizi;5;Utenze e canoni;5;Acqua
11,35;CENTRO VENETO SERVIZI SPA; ;Fatt.n. 2017130040 del 28/04/2017 SERVIZIO IDRICO INTEGRATO. 2' SEM. 2016. VIA E. FERMI 16;05/06/2017;1386;0;487;1;Spese correnti;3;Acquisto di beni e servizi;2;Acquisto di servizi;5;Utenze e canoni;5;Acqua
23,7;CENTRO VENETO SERVIZI SPA; ;Fatt.n. 2017130037 del 28/04/2017 SERVIZIO IDRICO INTEGRATO. 2' SEM. 2016. VIA GORGHETTI 6.;05/06/2017;1656;1;490;1;Spese correnti;3;Acquisto di beni e servizi;2;Acquisto di servizi;5;Utenze e canoni;5;Acqua
33,29;CENTRO VENETO SERVIZI SPA; ;Fatt.n. 2017130036 del 28/04/2017 SERVIZIO IDRICO INTEGRATO. 2' SEM. 2016. VIA GORGHETTI;05/06/2017;1656;1;490;1;Spese correnti;3;Acquisto di beni e servizi;2;Acquisto di servizi;5;Utenze e canoni;5;Acqua
